{"text_format":"1","workbook":"xlsx","n_sheets":7,"sheets":["Main Menu","ChemDose(FR)","ChemDose(PS)","Feed Rate","Stock_Solution","Jar_Testing","Contact"],"not_rendered":{"charts":21,"images":4,"macros":1,"external_links":0,"defined_names":35,"comments":3,"pivot_tables":0},"unopened":[],"bounds":{"document_bytes":16777216,"sheet_cells":100000,"rows_first":2000,"rows_last":500,"rows_between":2000,"halvings":0,"cell_chars":16384,"cell_head_chars":4096},"cells_cut":0,"cells_raw":0,"read":"whole","date_system":"1900"}

{"sheet":"Main Menu","index":0,"n_rows":31,"n_cols":6,"rows_kept":31,"cut":false,"hidden":false,"merged":[]}
[null," Copyright © 1999-2023, Schott, all rights reserved.  (707/576-2732)"]
[]
[null,"Main Menu"]
[]
[null,"ChemRate version 3.20"]
[]
[]
[]
[null,null,null,"For determining chemical dose based on chemical solution "]
[null,null,null,"characteristics, feed rate and plant flow.  "]
[null,null,null,"Also for calculating new solution crock strength and specific gravity."]
[]
[]
[null,null,null,"For determining chemical dose based on chemical solution "]
[null,null,null,"characteristics, chemical feed pump settings and plant flow.  "]
[null,null,null,"Also for calculating new solution crock strength and specific gravity."]
[]
[]
[null,null,null,"Table that list the volumetric amount of chemical to be added"]
[null,null,null,"for making 0.1, 0.15, 1 or 2% stock solutions used for jar testing."]
[]
[]
[null,null,null,"Calculates the volumetric amount of chemical required based"]
[null,null,null,"on user targeted stock solution and chemical characteristics"]
[null,null,null,"used for jar testing."]
[null,null,null,"Also will calculate dose based on mL injected for each jar."]
[]
[]
[null,null,"Contact:","Guy Schott, P.E."]
[null,null,null,"Email: Guy Schott",null,"guy.schott@waterboards.ca.gov"]
[null,null,null,"Office Number: 707-576-2732"]

{"sheet":"ChemDose(FR)","index":1,"n_rows":101,"n_cols":84,"rows_kept":101,"cut":false,"hidden":false,"merged":[]}
[null,{"$f":"'Main Menu'!B1","v":" Copyright © 1999-2023, Schott, all rights reserved.  (707/576-2732)"}]
[null,"ChemDose!Pro"]
[null,"Chemical Feed Dose Calculator (pump rate) for the Water and Wastewater Industry"]
[null,null,null,null,null,null,null,null,null,null,null,null,null,null,null,null,null,null,null,null,null,null,null,null,null,"Mix 1",{"$f":"IF(OR(C13=0, C13=\"-\"),\"-\",IF(D13=\"gal\",C13,IF(D13=\"L\",C13/3.785,IF(D13=\"mL\",C13/3785,IF(D13=\"cc\",C13/3785,IF(D13=\"oz\",C13/128,\"-\"))))))","v":10},"gal",null,"Mix 2",{"$f":"IF(OR(G13=0, G13=\"-\"),\"-\",IF(H13=\"gal\",G13,IF(H13=\"L\",G13/3.785,IF(H13=\"mL\",G13/3785,IF(H13=\"cc\",G13/3785,IF(H13=\"oz\",G13/128,\"-\"))))))","v":0.31704095112285335},"gal"]
[null,"Solution Crock Mixing (1)",null,null,null,"Solution Crock Mixing (2)",null,null,null,null,null,null,null,null,null,null,null,null,null,null,null,null,null,null,null,null,{"$f":"IF(C14=\"-\",\"-\",IF(D14=\"gal\",C14,IF(D14=\"L\",C14/3.785,IF(D14=\"mL\",C14/3785,IF(D14=\"cc\",C14/3785,IF(D14=\"oz\",C14/128,IF(D14=\"lbs.\",C14/8.337,\"-\")))))))","v":0},"gal",null,null,{"$f":"IF(G14=\"-\",\"-\",IF(H14=\"gal\",G14,IF(H14=\"L\",G14/3.785,IF(H14=\"mL\",G14/3785,IF(H14=\"cc\",G14/3785,IF(H14=\"oz\",G14/128,IF(H14=\"lbs.\",G14/8.337,\"-\")))))))","v":4.6829999999999998},"gal"]
[null,"Solution Strength, Specific Gravity and ",null,null,null,"Solution Strength, Specific Gravity and ",null,null,null,null,null,null,null,null,null,null,null,null,null,null,null,null,null,null,null,"Sum:",{"$f":"IF(OR(D14=\"gal\", D14=\"lbs.\"),SUM(AA4:AA5),IF(D14=\"L\",SUM(AA4:AA5)*3.785,IF(D14=\"mL\",SUM(AA4:AA5)*3785,IF(D14=\"oz\",SUM(AA4:AA5)*128,IF(D14=\"cc\",SUM(AA4:AA5)*3785,\"-\")))))","v":10},{"$f":"D14","v":"gal"},null,"Sum:",{"$f":"IF(OR(H14=\"gal\", H14=\"lbs.\"),SUM(AE4:AE5),IF(H14=\"L\",SUM(AE4:AE5)*3.785,IF(H14=\"mL\",SUM(AE4:AE5)*3785,IF(H14=\"oz\",SUM(AE4:AE5)*128,IF(H14=\"cc\",SUM(AE4:AE5)*3785,\"-\")))))","v":5.0000409511228536},{"$f":"IF(H14=\"lbs.\",\"gal\",H14)","v":"gal"}]
[null,"Chemical Dose Calculations",null,null,null,"Chemical Dose Calculations",null,null,null,null,null,null,null,null,null,null,null,null,null,null,null,null,null,null,null,"Sum:",{"$f":"SUM(AA4:AA5)*3785","v":37850},"mL",null,"Sum:",{"$f":"SUM(AE4:AE5)*3785","v":18925.155000000002},"mL"]
[null,"Enter Characteristics of Solution & Mixing Parameters",null,null,null,"Enter Characteristics of Solution & Mixing Parameters"]
[null,"Name of liquid product:","Polymer Blend 960",null,null,"Name of liquid product:","Zeta Floc 20, pDADMAC",null,null,null,null,null,null,null,null,null,null,null,null,null,null,null,null,null,null,"Feedrate:",{"$f":"IF(C20=\"-\",\"-\",IF(D20=\"mL/min\",C20,IF(D20=\"L/min\",C20*1000,IF(D20=\"L/hr\",C20/60*1000,IF(D20=\"L/day\",C20/60/24*1000,IF(D20=\"gal/hr\",C20/(60)*3.785*1000,IF(OR(D20=\"gal/day\",D20=\"Gallons\"),C20/(24*60)*3.785*1000,\"-\")))))))","v":9},"mL/min",null,"Feedrate:",{"$f":"IF(G20=\"-\",\"-\",IF(H20=\"mL/min\",G20,IF(H20=\"L/min\",G20*1000,IF(H20=\"L/hr\",G20/60*1000,IF(H20=\"L/day\",G20/60/24*1000,IF(H20=\"gal/hr\",G20/(60)*3.785*1000,IF(OR(H20=\"gal/day\",H20=\"Gallons\"),G20/(24*60)*3.785*1000,\"-\")))))))","v":6.5},"mL/min"]
[null,"Specific gravity of product:",1.29,null,null,"Specific gravity of product:",1.03,null,null,null,null,null,null,null,null,null,null,null,null,null,null,null,null,null,null,null,{"$f":"IF(D20=\"lbs/day\",1,IF(D20=\"Kg/day\",2,0))","v":0},{"$f":"IF(AA10=1,\"lbs/day\",\"Kg/day\")","v":"Kg/day"},null,null,{"$f":"IF(H20=\"lbs/day\",1,IF(H20=\"Kg/day\",2,0))","v":0},{"$f":"IF(AE10=1,\"lbs/day\",\"Kg/day\")","v":"Kg/day"}]
[null,"Product solution strength:",100,"%",null,"Product solution strength:",100,"%",null,null,null,null,null,null,null,null,null,null,null,null,null,null,null,null,null,"Flowrate",{"$f":"IF(C21=\"-\",\"-\",IF(D21=\"gpm\",C21,IF(D21=\"Liters/min\",C21/3.785,IF(D21=\"m3/hr\",C21/3.78/60*1000,IF(D21=\"MGD\",C21*1000000/60/24,C21/24/60)))))","v":24},"gpm",null,"Flowrate",{"$f":"IF(G21=\"-\",\"-\",IF(H21=\"gpm\",G21,IF(H21=\"Liters/min\",G21/3.785,IF(H21=\"m3/hr\",G21/3.78/60*1000,IF(H21=\"MGD\",G21*1000000/60/24,G21/24/60)))))","v":24},"gpm"]
[null,"Chemical product cost ($) per pound:",2.0299999999999998,{"$f":"IF(C100=1,\"$/lb\", \"$/gal\")","v":"$/lb"},null,"Chemical product cost ($) per pound:",2.1,{"$f":"IF(G100=1,\"$/lb\", \"$/gal\")","v":"$/lb"},null,null,null,null,null,null,null,null,null,null,null,null,null,null,null,null,null,null,{"$f":"IF(OR(C40=0,C40=\"-\"),0,IF(D40=\"gal\",C40,IF(D40=\"L\",C40/3.785,\"-\")))","v":20},"gal",null,null,{"$f":"IF(OR(G40=0,G40=\"-\"),0,IF(H40=\"gal\",G40,IF(H40=\"L\",G40/3.785,\"-\")))","v":5},"gal"]
[null,"Volume of liquid product mixed:",10,"gal",null,"Volume of liquid product mixed:",1200,"mL",null,null,null,null,null,null,null,null,null,null,null,null,null,null,null,null,null,null,{"$f":"IF(OR(C45=0,C45=\"-\"),0,IF(D45=\"gal\",C45,IF(D45=\"L\",C45/3.785,\"-\")))","v":1.2},"gal",null,null,{"$f":"IF(OR(G45=0,G45=\"-\"),0,IF(H45=\"gal\",G45,IF(H45=\"L\",G45/3.785,\"-\")))","v":22},"gal"]
[null,"Volume of water mixed with liquid product:",0,"gal",null,"Volume of water mixed with liquid product:",4.6829999999999998,"gal",null,null,null,null,null,null,null,null,null,null,null,null,null,null,null,null,null,"Sum:",{"$f":"AA12+AA13","v":21.2},"gal",null,"Sum:",{"$f":"AE12+AE13","v":27},"gal"]
[null,"Mixing Results",null,null,null,"Mixing Results",null,null,null,null,null,null,null,null,null,null,null,null,null,null,null,null,null,null,null,"Sum:",{"$f":"AA14*3.785","v":80.242000000000004},"L",null,"Sum:",{"$f":"AE14*3.785","v":102.19500000000001},"L"]
[null,"Total solution volume:",{"$f":"IF(AA6=0,\"-\",AA6)","v":10},{"$f":"IF(D14=\"lbs.\",\"gal\",D14)","v":"gal"},null,"Total solution volume:",{"$f":"IF(AE6=0,\"-\",AE6)","v":5.0000409511228536},{"$f":"IF(H14=\"lbs.\",\"gal\",H14)","v":"gal"},null,null,null,null,null,null,null,null,null,null,null,null,null,null,null,null,null,null,{"$f":"IF(C48=\"-\",0,C48*C49/100*8.337)","v":3.1870652139622635},"lbs/gal",null,null,{"$f":"IF(G48=\"-\",0,G48*G49/100*8.337)","v":3.6404900000000002},"lbs/gal"]
[null,"Specific gravity of solution mix:",{"$f":"IF(OR(C10=0,C10=\"-\",C11=\"-\",C13=0,C13=\"-\",C14=\"-\"),\"-\",IF((C10*AA4+AA5*1)/(AA4+AA5)>1.1,ROUND((C10*AA4+AA5*1)/(AA4+AA5),3),ROUND((C10*AA4+AA5*1)/(AA4+AA5),3)))","v":1.29},null,null,"Specific gravity of solution mix:",{"$f":"IF(OR(G10=0,G10=\"-\",G11=\"-\",G13=0,G13=\"-\",G14=\"-\"),\"-\",IF((G10*AE4+AE5*1)/(AE4+AE5)>1.1,ROUND((G10*AE4+AE5*1)/(AE4+AE5),3),ROUND((G10*AE4+AE5*1)/(AE4+AE5),3)))","v":1.002},null,null,null,null,null,null,null,null,null,null,null,null,null,null,null,null,null,null,null,{"$f":"IF(C48=\"-\",0,C48*C49/100*1000)","v":382.27962264150938},"g/L",null,null,{"$f":"IF(G48=\"-\",0,G48*G49/100*1000)","v":436.66666666666669},"g/L"]
[null,"Chemical solution strength of mix:",{"$f":"IF(OR(C10=0,C10=\"-\",C11=\"-\",C13=0,C13=\"-\",C14=\"-\"),\"-\",IF((AA4*C11/100*C10)/((AA4+AA5)*C17)*100>1,ROUND((AA4*C11/100*C10)/((AA4+AA5)*C17)*100,2),ROUND((AA4*C11/100*C10)/((AA4+AA5)*C17)*100,3)))","v":100},{"$f":"IF(D11=\"%\",\"%\",\"NTU\")","v":"%"},null,"Chemical solution strength of mix:",{"$f":"IF(OR(G10=0,G10=\"-\",G11=\"-\",G13=0,G13=\"-\",G14=\"-\"),\"-\",IF((AE4*G11/100*G10)/((AE4+AE5)*G17)*100>1,ROUND((AE4*G11/100*G10)/((AE4+AE5)*G17)*100,2),ROUND((AE4*G11/100*G10)/((AE4+AE5)*G17)*100,3)))","v":6.52},{"$f":"IF(H11=\"%\",\"%\",\"NTU\")","v":"%"},null,null,null,null,null,null,null,null,null,null,null,null,null,null,null,null,null,"Sum:",{"$f":"IF(D45=\"gal\",SUM(AA12:AA13),IF(D45=\"L\",SUM(AA12:AA13)*3.785,IF(D43=\"mL\",SUM(AA12:AA13)*3785,IF(D43=\"oz\",SUM(AA12:AA13)*124,IF(D43=\"cc\",SUM(AA12:AA13)*3785,\"-\")))))","v":21.2},{"$f":"D45","v":"gal"},null,"Sum:",{"$f":"IF(H45=\"gal\",SUM(AE12:AE13),IF(H45=\"L\",SUM(AE12:AE13)*3.785,IF(H43=\"mL\",SUM(AE12:AE13)*3785,IF(H43=\"oz\",SUM(AE12:AE13)*124,IF(H43=\"cc\",SUM(AE12:AE13)*3785,\"-\")))))","v":27},{"$f":"H45","v":"gal"}]
[null,"Enter Feed Pump Rate, Plant Production and Hrs. Operated",null,null,null,"Enter Feed Pump Rate, Plant Production and Hrs. Operated"]
[null,"Chemical feed pump rate or usage:",9,"mL/min",null,"Chemical feed pump rate or usage:",6.5,"mL/min"]
[null,"Plant flow rate or production:",24,"gpm",null,"Plant flow rate or production:",24,"gpm"]
[null,"Hours operated:",21,"hours",null,"Hours operated:",21,"hours"]
[null,{"$f":"\"Results - Chemical Dose Calculations for \"&C9","v":"Results - Chemical Dose Calculations for Polymer Blend 960"},null,null,null,{"$f":"\"Results - Chemical Dose Calculations for \"&G9","v":"Results - Chemical Dose Calculations for Zeta Floc 20, pDADMAC"}]
[null,"Chemical Feed Dose:",{"$f":"IF(OR(C20=0,C21=0,C20=\"-\",C21=\"-\"),\"-\",IF(AND(AA10=0,C17=\"-\"),\"-\",IF(AND(AA10=0,C18=\"-\"),\"-\",IF(OR(D20=\"mL/min\",D20=\"L/min\",D20=\"L/hr\",D20=\"L/day\",D20=\"gal/hr\",D20=\"gal/day\",D20=\"Gallons\"),AA9/AA11/3.785*1000*C17*C18/100,IF(AA10=1,C20/AA11/(60*24)/3.785*453600,C20/AA11/(60*24)/3.785*1000000)))))","v":127.80713342140027},"mg/L",null,"Chemical Feed Dose:",{"$f":"IF(OR(G20=0,G21=0,G20=\"-\",G21=\"-\"),\"-\",IF(AND(AE10=0,G17=\"-\"),\"-\",IF(AND(AE10=0,G18=\"-\"),\"-\",IF(OR(H20=\"mL/min\",H20=\"L/min\",H20=\"L/hr\",H20=\"L/day\",H20=\"gal/hr\",H20=\"gal/day\",H20=\"Gallons\"),AE9/AE11/3.785*1000*G17*G18/100,IF(AE10=1,G20/AE11/(60*24)/3.785*453600,G20/AE11/(60*24)/3.785*1000000)))))","v":4.6746763540290619},"mg/L"]
[null,"Chemical Feed Dose:",{"$f":"IF(C24=\"-\",\"-\",C24*3.785/453600*1000000)","v":1066.468253968254},"lbs/MG",null,"Chemical Feed Dose:",{"$f":"IF(G24=\"-\",\"-\",G24*3.785/453600*1000000)","v":39.007164902998241},"lbs/MG"]
[null,{"$f":"\"Solution Used (\"&C18&\"% Strength):\"","v":"Solution Used (100% Strength):"},{"$f":"IF(D20=\"mL/min\",C20*1440/1000/3.785,IF(D20=\"L/min\",C20*1440/3.785,IF(D20=\"L/hr\",C20*24/3.785,IF(D20=\"L/day\",C20/3.785,IF(D20=\"gal/hr\",24*C20,IF(D20=\"gal/day\",C20,IF(D20=\"gallon\",C20,C20)))))))*C22/24","v":2.9960369881109643},{"$f":"IF(D20=\"gallons\",\"gallons\",IF(D20=\"lbs/day\",\"lbs/day\",IF(D20=\"Kg/day\",\"Kg/day\",\"gal/day\")))","v":"gal/day"},null,{"$f":"\"Solution Used (\"&G18&\"% Strength):\"","v":"Solution Used (6.52% Strength):"},{"$f":"IF(H20=\"mL/min\",G20*1440/1000/3.785,IF(H20=\"L/min\",G20*1440/3.785,IF(H20=\"L/hr\",G20*24/3.785,IF(H20=\"L/day\",G20/3.785,IF(H20=\"gal/hr\",24*G20,IF(H20=\"gal/day\",G20,IF(H20=\"gallon\",G20,G20)))))))*G22/24","v":2.1638044914134742},{"$f":"IF(H20=\"gallons\",\"gallons\",IF(H20=\"lbs/day\",\"lbs/day\",IF(H20=\"Kg/day\",\"Kg/day\",\"gal/day\")))","v":"gal/day"}]
[null,{"$f":"\"Solution Used (\"&C18&\"% Strength):\"","v":"Solution Used (100% Strength):"},{"$f":"C26*7","v":20.972258916776749},{"$f":"IF(D20=\"gallons\",\"gallons/week\",IF(D20=\"lbs/day\",\"lbs/week\",IF(D20=\"Kg/day\",\"Kg/week\",\"gal/week\")))","v":"gal/week"},null,{"$f":"\"Solution Used (\"&G18&\"% Strength):\"","v":"Solution Used (6.52% Strength):"},{"$f":"G26*7","v":15.146631439894319},{"$f":"IF(H20=\"gallons\",\"gallons/week\",IF(H20=\"lbs/day\",\"lbs/week\",IF(H20=\"Kg/day\",\"Kg/week\",\"gal/week\")))","v":"gal/week"}]
[null,{"$f":"\"Liquid Product Used (\"&C9&\"):\"","v":"Liquid Product Used (Polymer Blend 960):"},{"$f":"C25/(C10*8.345)*AA11/1000000*60*24/C11*100*C22/24","v":2.9958058717795093},{"$f":"IF(D20<>\"gallons\",\"gal/day\",\"gallons\")","v":"gal/day"},null,{"$f":"\"Liquid Product Used (\"&G9&\"):\"","v":"Liquid Product Used (Zeta Floc 20, pDADMAC):"},{"$f":"G25/(G10*8.345)*AE11/1000000*60*24/G11*100*G22/24","v":0.13723427977530486},{"$f":"IF(H20<>\"gallons\",\"gal/day\",\"gallons\")","v":"gal/day"}]
[null,{"$f":"\"Liquid Product Used (\"&C9&\"):\"","v":"Liquid Product Used (Polymer Blend 960):"},{"$f":"C28*7","v":20.970641102456565},"gal/week",null,{"$f":"\"Liquid Product Used (\"&G9&\"):\"","v":"Liquid Product Used (Zeta Floc 20, pDADMAC):"},{"$f":"G28*7","v":0.96063995842713401},"gal/week"]
[null,"Plant production per day:",{"$f":"IF(D21=\"gpm\",C21*1440*C22/24, IF(D21=\"gallons\",C21*C22/24,IF(D21=\"gal/day\",C21*C22/24,IF(D21=\"Liters/min\",C21/3.785*1440*C22/24, IF(D21=\"MGD\",C21*C22/24, IF(D21=\"m3/hr\",C21*1000/3.785/60*1440*C22/24,\"-\"))))))","v":30240},{"$f":"IF(D21=\"MGD\",\"MGD\", \"gal/day\")","v":"gal/day"},null,"Plant production per day:",{"$f":"IF(H21=\"gpm\",G21*1440*G22/24, IF(H21=\"gallons\",G21*G22/24,IF(H21=\"gal/day\",G21*G22/24,IF(H21=\"Liters/min\",G21/3.785*1440*G22/24, IF(H21=\"MGD\",G21*G22/24, IF(H21=\"m3/hr\",G21*1000/3.785/60*1440*G22/24,\"-\"))))))","v":30240},{"$f":"IF(H21=\"MGD\",\"MGD\", \"gal/day\")","v":"gal/day"}]
[null,{"$f":"\"Chemical cost per day\"&\" (\"&C9&\"):\"","v":"Chemical cost per day (Polymer Blend 960):"},{"$f":"IF(C100=2,C12*C28, C12*C28*C10*8.345)","v":65.467500000000015},"$/day",null,{"$f":"\"Chemical cost per day\"&\" (\"&G9&\"):\"","v":"Chemical cost per day (Zeta Floc 20, pDADMAC):"},{"$f":"IF(G100=2,G12*G28, G12*G28*G10*8.345)","v":2.4771110000000007},"$/day"]
[null,"Cost per gallon of treated water:",{"$f":"IF(D30=\"MGD\", C31*100/(1000000*C30),C31*100/C30)","v":0.21649305555555562},"cent/gal",null,"Cost per gallon of treated water:",{"$f":"IF(H30=\"MGD\", G31*100/(1000000*G30),G31*100/G30)","v":8.1915046296296319E-3},"cent/gal"]
[]
[null,"Solution Crock Mixing Modification (1)",null,null,null,"Solution Crock Mixing Modification (2)"]
[null,"Modifying Existing Solution Strength and",null,null,null,"Modifying Existing Solution Strength and"]
[null,"Specific Gravity (mixing in new solution with old)",null,null,null,"Specific Gravity (mixing in new solution with old)"]
[null,"Enter characteristics of existing old solution",null,null,null,"Enter characteristics of existing old solution"]
[null,"Specific gravity of solution:",1.0820000000000001,null,null,"Specific gravity of solution:",1.038]
[null,"Chemical solution strength:",30.02,"%",null,"Chemical solution strength:",100,"%"]
[null,"Volume of solution remaining:",20,"gal",null,"Volume of solution remaining:",5,"gal"]
[null,"Enter characteristics of added new solution",null,null,null,"Enter characteristics of added new solution"]
[null,"Name of liquid product:","9810",null,null,"Name of liquid product:","NaOCl"]
[null,"Specific gravity of solution added:",1.34,null,null,"Specific gravity of solution added:",1.2]
[null,"Chemical solution strength added:",100,"%",null,"Chemical solution strength added:",25,"%"]
[null,"Volume of new solution added to old:",1.2,"gal",null,"Volume of new solution added to old:",22,"gal"]
[null,"Blended Results",null,null,null,"Blended Results"]
[null,"Total solution volume:",{"$f":"IF(AA18=0,\"-\",AA18)","v":21.2},{"$f":"D45","v":"gal"},null,"Total solution volume:",{"$f":"IF(AE18=0,\"-\",AE18)","v":27},{"$f":"H45","v":"gal"}]
[null,"Specific gravity of mix:",{"$f":"IF(OR(C38=0,C38=\"-\",C39=\"-\",C43=0,C43=\"-\",C44=\"-\",C40=\"-\",C45=\"-\",C45=0),\"-\",(C38*AA12+C43*AA13)/(AA12+AA13))","v":1.0966037735849057},null,null,"Specific gravity of mix:",{"$f":"IF(OR(G38=0,G38=\"-\",G39=\"-\",G43=0,G43=\"-\",G44=\"-\",G40=\"-\",G45=\"-\",G45=0),\"-\",(G38*AE12+G43*AE13)/(AE12+AE13))","v":1.17}]
[null,"Chemical solution strength of mix:",{"$f":"IF(C48=\"-\",\"-\",(C38*C39*AA12+C43*C44*AA13)/(C48*(AA12+AA13)))","v":34.860323468685472},"%",null,"Chemical solution strength of mix:",{"$f":"IF(G48=\"-\",\"-\",(G38*G39*AE12+G43*G44*AE13)/(G48*(AE12+AE13)))","v":37.321937321937327},"%"]
[]
[null,null,null,null,null,null,null,null,null,null,null,null,null,null,null,null,null,null,null,null,null,null,null,null,null,null,null,null,null,null,null,null,null,null,null,null,null,null,null,null,null,null,null,null,null,null,null,null,null,null,null,null,null,null,null,null,null,null,null,null,null,null,null,null,null,null,null,null,null,null,null,null,null,null,null,null,null,null,null,null,null,null,null,"-"]
[]
[]
[]
[]
[]
[]
[]
[]
[]
[]
[]
[]
[]
[]
[]
[]
[]
[]
[]
[]
[]
[]
[]
[]
[]
[]
[]
[]
[]
[]
[]
[]
[]
[]
[]
[]
[]
[]
[]
[]
[]
[]
[]
[]
[]
[]
[]
[]
[null,"Chemical product cost ($) per pound:",{"$f":"IF(B100=B12,1,2)","v":1},null,null,"Chemical product cost ($) per pound:",{"$f":"IF(F100=F12,1,2)","v":1}]
[null,"Chemical product cost ($) per gallon:",null,null,null,"Chemical product cost ($) per gallon:"]

{"sheet":"ChemDose(PS)","index":2,"n_rows":102,"n_cols":84,"rows_kept":102,"cut":false,"hidden":false,"merged":[]}
[null,{"$f":"'ChemDose(FR)'!B1","v":" Copyright © 1999-2023, Schott, all rights reserved.  (707/576-2732)"}]
[null,"ChemDose!Pro"]
[null,"Chemical Feed Dose Calculator (pump settings) for the Water and Wastewater Industry"]
[null,null,null,null,null,null,null,null,null,null,null,null,null,null,null,null,null,null,null,null,null,null,null,null,null,"Mix 1",{"$f":"IF(OR(C13=0, C13=\"-\"),\"-\",IF(D13=\"gal\",C13,IF(D13=\"L\",C13/3.785,IF(D13=\"mL\",C13/3785,IF(D13=\"cc\",C13/3785,IF(D13=\"oz\",C13/128,\"-\"))))))","v":1},"gal",null,"Mix 2",{"$f":"IF(OR(G13=0, G13=\"-\"),\"-\",IF(H13=\"gal\",G13,IF(H13=\"L\",G13/3.785,IF(H13=\"mL\",G13/3785,IF(H13=\"cc\",G13/3785,IF(H13=\"oz\",G13/128,\"-\"))))))","v":1},"gal"]
[null,"Solution Crock Mixing (1)",null,null,null,"Solution Crock Mixing (2)",null,null,null,null,null,null,null,null,null,null,null,null,null,null,null,null,null,null,null,null,{"$f":"IF(C14=\"-\",\"-\",IF(D14=\"gal\",C14,IF(D14=\"L\",C14/3.785,IF(D14=\"mL\",C14/3785,IF(D14=\"cc\",C14/3785,IF(D14=\"oz\",C14/128,\"-\"))))))","v":0},"gal",null,null,{"$f":"IF(G14=\"-\",\"-\",IF(H14=\"gal\",G14,IF(H14=\"L\",G14/3.785,IF(H14=\"mL\",G14/3785,IF(H14=\"cc\",G14/3785,IF(H14=\"oz\",G14/128,\"-\"))))))","v":4},"gal"]
[null,"Solution Strength, Specific Gravity and ",null,null,null,"Solution Strength, Specific Gravity and ",null,null,null,null,null,null,null,null,null,null,null,null,null,null,null,null,null,null,null,"Sum:",{"$f":"IF(D14=\"gal\",SUM(AA4:AA5),IF(D14=\"L\",SUM(AA4:AA5)*3.785,IF(D14=\"mL\",SUM(AA4:AA5)*3785,IF(D14=\"oz\",SUM(AA4:AA5)*128,IF(D14=\"cc\",SUM(AA4:AA5)*3785,\"-\")))))","v":1},{"$f":"D14","v":"gal"},null,"Sum:",{"$f":"IF(H14=\"gal\",SUM(AE4:AE5),IF(H14=\"L\",SUM(AE4:AE5)*3.785,IF(H14=\"mL\",SUM(AE4:AE5)*3785,IF(H14=\"oz\",SUM(AE4:AE5)*128,IF(H14=\"cc\",SUM(AE4:AE5)*3785,\"-\")))))","v":5},{"$f":"H14","v":"gal"}]
[null,"Chemical Dose Calculations",null,null,null,"Chemical Dose Calculations",null,null,null,null,null,null,null,null,null,null,null,null,null,null,null,null,null,null,null,"Sum:",{"$f":"SUM(AA4:AA5)*3785","v":3785},"mL",null,"Sum:",{"$f":"SUM(AE4:AE5)*3785","v":18925},"mL"]
[null,"Enter Characteristics of Solution & Mixing Parameters",null,null,null,"Enter Characteristics of Solution & Mixing Parameters"]
[null,"Name of liquid product:","Polymer Blend 960",null,null,"Name of liquid product:","Zeta Floc 20, pDADMAC",null,null,null,null,null,null,null,null,null,null,null,null,null,null,null,null,null,null,"Feedrate:",{"$f":"IF(C26=\"-\",\"-\",IF(D26=\"mL/min\",C26,IF(D26=\"L/min\",C26*1000,IF(D26=\"L/hr\",C26*1000/60,IF(D26=\"L/day\",C26/60/24*1000,IF(D26=\"gal/hr\",C26/(60)*3.785*1000,IF(OR(D26=\"gal/day\",D26=\"Gallons\"),C26/(24*60)*3.785*1000,\"-\")))))))","v":7.002250000000001},"mL/min",null,"Feedrate:",{"$f":"IF(G26=\"-\",\"-\",IF(H26=\"mL/min\",G26,IF(H26=\"L/min\",G26*1000,IF(H26=\"L/hr\",G26*1000/60,IF(H26=\"L/day\",G26/60/24*1000,IF(H26=\"gal/hr\",G26/(60)*3.785*1000,IF(OR(H26=\"gal/day\",H26=\"Gallons\"),G26/(24*60)*3.785*1000,\"-\")))))))","v":1.5770833333333334},"mL/min"]
[null,"Specific gravity of product:",1.29,null,null,"Specific gravity of product:",1.03,null,null,null,null,null,null,null,null,null,null,null,null,null,null,null,null,null,null,null,{"$f":"IF(D26=\"lbs/day\",1,IF(D26=\"Kg/day\",2,0))","v":0},{"$f":"IF(AA10=1,\"lbs/day\",\"Kg/day\")","v":"Kg/day"},null,null,{"$f":"IF(H26=\"lbs/day\",1,IF(H26=\"Kg/day\",2,0))","v":0},{"$f":"IF(AE10=1,\"lbs/day\",\"Kg/day\")","v":"Kg/day"}]
[null,"Product solution strength:",100,"%",null,"Product solution strength:",100,"%",null,null,null,null,null,null,null,null,null,null,null,null,null,null,null,null,null,"Flowrate",{"$f":"IF(C23=\"-\",\"-\",IF(D23=\"gpm\",C23,IF(D23=\"Liters/min\",C23/3.785,IF(D23=\"MGD\",C23*1000000/60/24,C23/24/60))))","v":24},"gpm",null,"Flowrate",{"$f":"IF(G23=\"-\",\"-\",IF(H23=\"gpm\",G23,IF(H23=\"Liters/min\",G23/3.785,IF(H23=\"MGD\",G23*1000000/60/24,G23/24/60))))","v":24},"gpm"]
[null,"Chemical product cost ($) per pound:",2,{"$f":"IF(C101=1,\"$/lb\", \"$/gal\")","v":"$/lb"},null,"Chemical product cost ($) per pound:",2,{"$f":"IF(G101=1,\"$/lb\", \"$/gal\")","v":"$/lb"},null,null,null,null,null,null,null,null,null,null,null,null,null,null,null,null,null,null,{"$f":"IF(OR(C43=0,C43=\"-\"),0,IF(D43=\"gal\",C43,IF(D43=\"L\",C43/3.785,\"-\")))","v":5},"gal",null,null,{"$f":"IF(OR(G43=0,G43=\"-\"),0,IF(H43=\"gal\",G43,IF(H43=\"L\",G43/3.785,\"-\")))","v":5},"gal"]
[null,"Volume of liquid product mixed:",1,"gal",null,"Volume of liquid product mixed:",1,"gal",null,null,null,null,null,null,null,null,null,null,null,null,null,null,null,null,null,null,{"$f":"IF(OR(C48=0,C48=\"-\"),0,IF(D48=\"gal\",C48,IF(D48=\"L\",C48/3.785,\"-\")))","v":22},"gal",null,null,{"$f":"IF(OR(G48=0,G48=\"-\"),0,IF(H48=\"gal\",G48,IF(H48=\"L\",G48/3.785,\"-\")))","v":22},"gal"]
[null,"Volume of water mixed with liquid product:",0,"gal",null,"Volume of water mixed with liquid product:",4,"gal",null,null,null,null,null,null,null,null,null,null,null,null,null,null,null,null,null,"Sum:",{"$f":"AA12+AA13","v":27},"gal",null,"Sum:",{"$f":"AE12+AE13","v":27},"gal"]
[null,"Mixing Results",null,null,null,"Mixing Results",null,null,null,null,null,null,null,null,null,null,null,null,null,null,null,null,null,null,null,"Sum:",{"$f":"AA14*3.785","v":102.19500000000001},"L",null,"Sum:",{"$f":"AE14*3.785","v":102.19500000000001},"L"]
[null,"Total solution volume:",{"$f":"IF(AA6=0,\"-\",AA6)","v":1},{"$f":"D14","v":"gal"},null,"Total solution volume:",{"$f":"IF(AE6=0,\"-\",AE6)","v":5},{"$f":"H14","v":"gal"},null,null,null,null,null,null,null,null,null,null,null,null,null,null,null,null,null,null,{"$f":"IF(C51=\"-\",0,C51*C52/100*8.337)","v":2.2695166666666671},"lbs/gal",null,null,{"$f":"IF(G51=\"-\",0,G51*G52/100*8.337)","v":2.1528366463333337},"lbs/gal"]
[null,"Specific gravity of solution mix:",{"$f":"IF(OR(C10=0,C10=\"-\",C11=\"-\",C13=0,C13=\"-\",C14=\"-\"),\"-\",IF((C10*AA4+AA5*1)/(AA4+AA5)>1.1,ROUND((C10*AA4+AA5*1)/(AA4+AA5),2),ROUND((C10*AA4+AA5*1)/(AA4+AA5),3)))","v":1.29},null,null,"Specific gravity of solution mix:",{"$f":"IF(OR(G10=0,G10=\"-\",G11=\"-\",G13=0,G13=\"-\",G14=\"-\"),\"-\",IF((G10*AE4+AE5*1)/(AE4+AE5)>1.1,ROUND((G10*AE4+AE5*1)/(AE4+AE5),2),ROUND((G10*AE4+AE5*1)/(AE4+AE5),3)))","v":1.006},null,null,null,null,null,null,null,null,null,null,null,null,null,null,null,null,null,null,null,{"$f":"IF(C51=\"-\",0,C51*C52/100*1000)","v":272.22222222222223},"g/L",null,null,{"$f":"IF(G51=\"-\",0,G51*G52/100*1000)","v":258.22677777777778},"g/L"]
[null,"Chemical solution strength of mix:",{"$f":"IF(OR(C10=0,C10=\"-\",C11=\"-\",C13=0,C13=\"-\",C14=\"-\"),\"-\",IF((AA4*C11/100*C10)/((AA4+AA5)*C17)*100>1,ROUND((AA4*C11/100*C10)/((AA4+AA5)*C17)*100,2),ROUND((AA4*C11/100*C10)/((AA4+AA5)*C17)*100,3)))","v":100},{"$f":"IF(D11=\"%\",\"%\",\"NTU\")","v":"%"},null,"Chemical solution strength of mix:",{"$f":"IF(OR(G10=0,G10=\"-\",G11=\"-\",G13=0,G13=\"-\",G14=\"-\"),\"-\",IF((AE4*G11/100*G10)/((AE4+AE5)*G17)*100>1,ROUND((AE4*G11/100*G10)/((AE4+AE5)*G17)*100,2),ROUND((AE4*G11/100*G10)/((AE4+AE5)*G17)*100,3)))","v":20.48},{"$f":"IF(H11=\"%\",\"%\",\"NTU\")","v":"%"},null,null,null,null,null,null,null,null,null,null,null,null,null,null,null,null,null,"Sum:",{"$f":"IF(D48=\"gal\",SUM(AA12:AA13),IF(D48=\"L\",SUM(AA12:AA13)*3.785,IF(D46=\"mL\",SUM(AA12:AA13)*3785,IF(D46=\"oz\",SUM(AA12:AA13)*124,IF(D46=\"cc\",SUM(AA12:AA13)*3785,\"-\")))))","v":27},{"$f":"D48","v":"gal"},null,"Sum:",{"$f":"IF(H48=\"gal\",SUM(AE12:AE13),IF(H48=\"L\",SUM(AE12:AE13)*3.785,IF(H46=\"mL\",SUM(AE12:AE13)*3785,IF(H46=\"oz\",SUM(AE12:AE13)*124,IF(H46=\"cc\",SUM(AE12:AE13)*3785,\"-\")))))","v":27},{"$f":"H48","v":"gal"}]
[null,"Enter Feed Pump Settings, Plant Production and Hrs. Operated",null,null,null,"Enter Feed Pump Settings, Plant Production and Hrs. Operated",null,null,null,null,null,null,null,null,null,null,null,null,null,null,null,null,null,null,null,null,{"$f":"IF(AND(D20=\"gal/day\",D26=\"L/hr\"),3.785/24,IF(AND(D20=\"L/hr\",D26=\"L/day\"),24,IF(AND(D20=\"L/day\",D26=\"L/day\"),1,IF(AND(D20=\"gal/hr\",D26=\"L/day\"),24*3.785,IF(AND(D20=\"gal/day\",D26=\"L/day\"),3.785,IF(AND(D20=\"L/hr\",D26=\"gal/hr\"),1/3.785,IF(AND(D20=\"L/day\",D26=\"gal/hr\"),1/3.785/24,AA20)))))))","v":1},null,null,null,{"$f":"IF(AND(H20=\"gal/day\",H26=\"L/hr\"),3.785/24,IF(AND(H20=\"L/hr\",H26=\"L/day\"),24,IF(AND(H20=\"L/day\",H26=\"L/day\"),1,IF(AND(H20=\"gal/hr\",H26=\"L/day\"),24*3.785,IF(AND(H20=\"gal/day\",H26=\"L/day\"),3.785,IF(AND(H20=\"L/hr\",H26=\"gal/hr\"),1/3.785,IF(AND(H20=\"L/day\",H26=\"gal/hr\"),1/3.785/24,AE20)))))))","v":1}]
[null,"Chemical feed pump capacity rating:",30,"gal/day",null,"Chemical feed pump capacity rating:",15,"gal/day",null,null,null,null,null,null,null,null,null,null,null,null,null,null,null,null,null,null,{"$f":"IF(AND(D20=\"gal/hr\",D26=\"gal/hr\"),1,IF(AND(D20=\"gal/day\",D26=\"gal/hr\"),1/24,IF(AND(D20=\"L/hr\",D26=\"gal/day\"),24/3.785,IF(AND(D20=\"L/day\",D26=\"gal/day\"),1/3.785,IF(AND(D20=\"gal/hr\",D26=\"gal/day\"),24,1)))))","v":1},null,null,null,{"$f":"IF(AND(H20=\"gal/hr\",H26=\"gal/hr\"),1,IF(AND(H20=\"gal/day\",H26=\"gal/hr\"),1/24,IF(AND(H20=\"L/hr\",H26=\"gal/day\"),24/3.785,IF(AND(H20=\"L/day\",H26=\"gal/day\"),1/3.785,IF(AND(H20=\"gal/hr\",H26=\"gal/day\"),24,1)))))","v":1}]
[null,"Chemical feed pump stroke setting:",29.6,"%",null,"Chemical feed pump stroke setting:",20,"%"]
[null,"Chemical feed pump speed setting:",30,"%",null,"Chemical feed pump speed setting:",20,"%"]
[null,"Plant flow rate or production:",24,"gpm",null,"Plant flow rate or production:",24,"gpm"]
[null,"Hours operated:",15,"hours",null,"Hours operated:",20,"hours"]
[null,{"$f":"\"Results - Chemical Dose Calculations for \"&C9","v":"Results - Chemical Dose Calculations for Polymer Blend 960"},null,null,null,{"$f":"\"Results - Chemical Dose Calculations for \"&G9","v":"Results - Chemical Dose Calculations for Zeta Floc 20, pDADMAC"}]
[null,"Chemical feed pump rate (calculated):",{"$f":"C20*(C21*C22)/10000*IF(AND(D20=\"L/hr\",D26=\"mL/min\"),1000/60,IF(AND(D20=\"L/day\",D26=\"mL/min\"),1000/1440,IF(AND(D20=\"gal/hr\",D26=\"mL/min\"),3785/60,IF(AND(D20=\"gal/day\",D26=\"mL/min\"),3785/1440,IF(AND(D20=\"L/hr\",D26=\"L/hr\"),1,IF(AND(D20=\"L/day\",D26=\"L/hr\"),1/24,IF(AND(D20=\"gal/hr\",D26=\"L/hr\"),3.785,AA19)))))))","v":7.002250000000001},"mL/min",null,"Chemical feed pump rate or usage:",{"$f":"G20*(G21*G22)/10000*IF(AND(H20=\"L/hr\",H26=\"mL/min\"),1000/60,IF(AND(H20=\"L/day\",H26=\"mL/min\"),1000/1440,IF(AND(H20=\"gal/hr\",H26=\"mL/min\"),3785/60,IF(AND(H20=\"gal/day\",H26=\"mL/min\"),3785/1440,IF(AND(H20=\"L/hr\",H26=\"L/hr\"),1,IF(AND(H20=\"L/day\",H26=\"L/hr\"),1/24,IF(AND(H20=\"gal/hr\",H26=\"L/hr\"),3.785,AE19)))))))","v":1.5770833333333334},"mL/min"]
[null,"Chemical Feed Dose:",{"$f":"IF(OR(C26=0,C23=0,C26=\"-\",C23=\"-\"),\"-\",IF(AND(AA10=0,C17=\"-\"),\"-\",IF(AND(AA10=0,C18=\"-\"),\"-\",IF(OR(D26=\"mL/min\",D26=\"L/min\",D26=\"L/hr\",D26=\"L/day\",D26=\"gal/hr\",D26=\"gal/day\",D26=\"Gallons\"),AA9/AA11/3.785*1000*C17*C18/100,IF(AA10=1,C26/AA11/(60*24)/3.785*453600,C26/AA11/(60*24)/3.785*1000000)))))","v":99.437500000000014},"mg/L",null,"Chemical Feed Dose:",{"$f":"IF(OR(G26=0,G23=0,G26=\"-\",G23=\"-\"),\"-\",IF(AND(AE10=0,G17=\"-\"),\"-\",IF(AND(AE10=0,G18=\"-\"),\"-\",IF(OR(H26=\"mL/min\",H26=\"L/min\",H26=\"L/hr\",H26=\"L/day\",H26=\"gal/hr\",H26=\"gal/day\",H26=\"Gallons\"),AE9/AE11/3.785*1000*G17*G18/100,IF(AE10=1,G26/AE11/(60*24)/3.785*453600,G26/AE11/(60*24)/3.785*1000000)))))","v":3.5768888888888895},"mg/L"]
[null,"Chemical Feed Dose:",{"$f":"IF(C27=\"-\",\"-\",C27*3.785/453600*1000000)","v":829.74192570546757},"lbs/MG",null,"Chemical Feed Dose:",{"$f":"IF(G27=\"-\",\"-\",G27*3.785/453600*1000000)","v":29.846835194983349},"lbs/MG"]
[null,{"$f":"\"Solution Used (\"&C18&\"% Strength):\"","v":"Solution Used (100% Strength):"},{"$f":"IF(D26=\"L/hr\",C26*24/3.785,IF(D26=\"L/day\",C26/3.785,IF(D26=\"gal/hr\",24*C26,IF(D26=\"mL/min\",C26*1440/1000/3.785,C26))))*C24/24","v":1.665},"gal/day",null,{"$f":"\"Solution Used (\"&G18&\"% Strength):\"","v":"Solution Used (20.48% Strength):"},{"$f":"IF(H26=\"L/hr\",G26*24/3.785,IF(H26=\"L/day\",G26/3.785,IF(H26=\"gal/hr\",24*G26,IF(H26=\"mL/min\",G26*1440/1000/3.785,G26))))*G24/24","v":0.5},"gal/day"]
[null,{"$f":"\"Solution Used (\"&C18&\"% Strength):\"","v":"Solution Used (100% Strength):"},{"$f":"C29*7","v":11.655000000000001},"gal/week",null,{"$f":"\"Solution Used (\"&G18&\"% Strength):\"","v":"Solution Used (20.48% Strength):"},{"$f":"G29*7","v":3.5},"gal/week"]
[null,{"$f":"\"Liquid Product Used (\"&C9&\"):\"","v":"Liquid Product Used (Polymer Blend 960):"},{"$f":"C28/(C10*8.337)*AA11/1000000*60*24/C11*100*C24/24","v":1.6664691345331866},{"$f":"IF(D26<>\"gallons\",\"gal/day\",\"gallons\")","v":"gal/day"},null,{"$f":"\"Liquid Product Used (\"&G9&\"):\"","v":"Liquid Product Used (Zeta Floc 20, pDADMAC):"},{"$f":"G28/(G10*8.337)*AE11/1000000*60*24/G11*100*G24/24","v":0.1001022292267737},{"$f":"IF(H26<>\"gallons\",\"gal/day\",\"gallons\")","v":"gal/day"}]
[null,{"$f":"\"Liquid Product Used (\"&C9&\"):\"","v":"Liquid Product Used (Polymer Blend 960):"},{"$f":"C31*7","v":11.665283941732305},"gal/week",null,{"$f":"\"Liquid Product Used (\"&G9&\"):\"","v":"Liquid Product Used (Zeta Floc 20, pDADMAC):"},{"$f":"G31*7","v":0.70071560458741589},"gal/week"]
[null,"Plant production per day:",{"$f":"IF(D23=\"gpm\",C23*1440*C24/24, IF(D23=\"gallons\",C23*C24/24,IF(D23=\"gal/day\",C23*C24/24,IF(D23=\"Liters/min\",C23/3.785*1440*C24/24, IF(D23=\"MGD\",C23*C24/24, IF(D23=\"m3/hr\",C23*1000/3.785/60*1440*C24/24,\"-\"))))))","v":21600},{"$f":"IF(D23=\"MGD\",\"MGD\", \"gal/day\")","v":"gal/day"},null,"Plant production per day:",{"$f":"IF(H23=\"gpm\",G23*1440*G24/24, IF(H23=\"gallons\",G23*G24/24,IF(H23=\"gal/day\",G23*G24/24,IF(H23=\"Liters/min\",G23/3.785*1440*G24/24, IF(H23=\"MGD\",G23*G24/24, IF(H23=\"m3/hr\",G23*1000/3.785/60*1440*G24/24,\"-\"))))))","v":28800},{"$f":"IF(H23=\"MGD\",\"MGD\", \"gal/day\")","v":"gal/day"}]
[null,{"$f":"\"Chemical cost per day\"&\" (\"&C9&\"):\"","v":"Chemical cost per day (Polymer Blend 960):"},{"$f":"IF(C101=2,C12*C31, C12*C31*C10*8.345)","v":35.879247113412958},"$/day",null,{"$f":"\"Chemical cost per day\"&\" (\"&G9&\"):\"","v":"Chemical cost per day (Zeta Floc 20, pDADMAC):"},{"$f":"IF(G101=2,G12*G31, G12*G31*G10*8.345)","v":1.7208273919686987},"$/day"]
[null,"Cost per gallon of treated water:",{"$f":"IF(D33=\"MGD\", C34*100/(1000000*C33),C34*100/C33)","v":0.16610762552505998},"cent/gal",null,"Cost per gallon of treated water:",{"$f":"IF(H33=\"MGD\", G34*100/(1000000*G33),G34*100/G33)","v":5.9750951110024266E-3},"cent/gal"]
[]
[null,"Solution Crock Mixing Modification (1)",null,null,null,"Solution Crock Mixing Modification (2)"]
[null,"Modifying Existing Solution Strength and",null,null,null,"Modifying Existing Solution Strength and"]
[null,"Specific Gravity (mixing in new solution with old)",null,null,null,"Specific Gravity (mixing in new solution with old)"]
[null,"Enter characteristics of existing old solution",null,null,null,"Enter characteristics of existing old solution"]
[null,"Specific gravity of solution:",1.2,null,null,"Specific gravity of solution:",1.038]
[null,"Chemical solution strength:",12.5,"%",null,"Chemical solution strength:",7.17,"%"]
[null,"Volume of solution remaining:",5,"gal",null,"Volume of solution remaining:",5,"gal"]
[null,"Enter characteristics of added new solution",null,null,null,"Enter characteristics of added new solution"]
[null,"Name of Liquid Chemical:","NaOCl",null,null,"Name of Liquid Chemical:","NaOCl"]
[null,"Specific gravity of solution added:",1.2,null,null,"Specific gravity of solution added:",1.2]
[null,"Chemical solution strength added:",25,"%",null,"Chemical solution strength added:",25,"%"]
[null,"Volume of new solution added to old:",22,"gal",null,"Volume of new solution added to old:",22,"gal"]
[null,"Blended Results",null,null,null,"Blended Results"]
[null,"Total solution volume:",{"$f":"IF(AA18=0,\"-\",AA18)","v":27},{"$f":"D48","v":"gal"},null,"Total solution volume:",{"$f":"IF(AE18=0,\"-\",AE18)","v":27},{"$f":"H48","v":"gal"}]
[null,"Specific gravity of mix:",{"$f":"IF(OR(C41=0,C41=\"-\",C42=\"-\",C46=0,C46=\"-\",C47=\"-\",C43=\"-\",C48=\"-\",C48=0),\"-\",(C41*AA12+C46*AA13)/(AA12+AA13))","v":1.2},null,null,"Specific gravity of mix:",{"$f":"IF(OR(G41=0,G41=\"-\",G42=\"-\",G46=0,G46=\"-\",G47=\"-\",G43=\"-\",G48=\"-\",G48=0),\"-\",(G41*AE12+G46*AE13)/(AE12+AE13))","v":1.17}]
[null,"Chemical solution strength of mix:",{"$f":"IF(C51=\"-\",\"-\",(C41*C42*AA12+C46*C47*AA13)/(C51*(AA12+AA13)))","v":22.685185185185187},"%",null,"Chemical solution strength of mix:",{"$f":"IF(G51=\"-\",\"-\",(G41*G42*AE12+G46*G47*AE13)/(G51*(AE12+AE13)))","v":22.070664767331436},"%"]
[]
[null,null,null,null,null,null,null,null,null,null,null,null,null,null,null,null,null,null,null,null,null,null,null,null,null,null,null,null,null,null,null,null,null,null,null,null,null,null,null,null,null,null,null,null,null,null,null,null,null,null,null,null,null,null,null,null,null,null,null,null,null,null,null,null,null,null,null,null,null,null,null,null,null,null,null,null,null,null,null,null,null,null,null,"-"]
[]
[]
[]
[]
[]
[]
[]
[]
[]
[]
[]
[]
[]
[]
[]
[]
[]
[]
[]
[]
[]
[]
[]
[]
[]
[]
[]
[]
[]
[]
[]
[]
[]
[]
[]
[]
[]
[]
[]
[]
[]
[]
[]
[]
[]
[]
[null,"Chemical product cost ($) per pound:",{"$f":"IF(B101=B12,1,2)","v":1},null,null,"Chemical product cost ($) per pound:",{"$f":"IF(F101=F12,1,2)","v":1}]
[null,"Chemical product cost ($) per gallon:",null,null,null,"Chemical product cost ($) per gallon:"]

{"sheet":"Feed Rate","index":3,"n_rows":343,"n_cols":171,"rows_kept":343,"cut":false,"hidden":true,"merged":[]}
[null,null,null,null,null,null,null,null,null,null,null,null,null,null,null,null,null,null,null,null,null,null,"4 hrs"]
[null,null,null,null,null,null,null,null,null,null,null,null,null,null,null,null,null,null,null,null,null,null,null,null,null,null,null,null,null,null,null,null,null,null,null,null,null,null,null,null,null,null,null,null,null,null,null,null,null,null,null,null,null,null,null,null,null,null,null,null,null,null,null,null,"%NaOCl based on Volume of 12.5% NaOCl added to 10 gallons of water",null,null,null,null,null,null,null,null,null,null,null,null,null,null,null,null,null,null,null,null,null,null,null,null,null,null,null,null,null,null,"%NaOCl based on Volume of 12.5% NaOCl added to 10 gallons of water",null,null,null,null,null,null,null,null,null,null,null,null,null,null,null,null,null,null,null,null,null,null,"%NaOCl (wt/vol) based on Volume of 12.5% NaOCl added to 10 gallons of water",null,null,null,null,null,null,null,null,null,null,null,null,null,null,null,null,null,null,null,null,null,null,null,null,null,null,"Table 1:  %NaOCl (w/v) based on volume of 12.5% NaOCl added to 10 gallons of water",null,null,null,null,null,null,null,null,null,null,null,null,null,"Table 2:"]
[]
[null,null,null,null,"Dosage","Flow","oz","Feed rate","Feed rate",null,null,null,null,null,null,null,null,null,null,null,null,null,null,null,null,null,null,null,null,null,null,null,null,null,null,null,null,null,null,null,null,null,null,null,null,null,null,null,null,null,null,"oz","cups","L","Gal","% \nNaOCl",null,null,null,null,null,null,null,null,"oz.","cups","L","Gal","% \nNaOCl",null,"oz.","cups","L","Gal","% \nNaOCl",null,"oz.","cups","L","Gal","% \nNaOCl",null,null,null,null,null,null,null,null,null,null,null,null,null,null,"oz","cups","L","Gal","% \nNaOCl",null,"oz","cups","L","Gal","% \nNaOCl",null,"below if based of wt/wt",null,null,null,null,null,null,null,null,null,null,"oz","cups","L","Gal","% \nNaOCl",null,null,"oz","cups","L","Gal","% \nNaOCl",null,null,null,null,null,null,null,null,null,null,null,null,null,null,null,"oz","cups","L","Gal","% w/v\nNaOCl",null,"oz","cups","L","Gal","% w/v\nNaOCl",null,null,null,null,"Chemical Feed Rate (mL/min) for a Target Dose of 1 mg/L as Cl2"]
[null,null,null,null,1,10,32,{"$f":"33.173*G5^(-0.985)*(F5)*E5","v":10.919733014290557},{"$f":"33.173/G5*F5*E5","v":10.366562500000001},null,null,null,null,null,null,null,null,null,null,null,null,null,null,null,null,null,null,null,null,null,null,null,null,null,null,null,null,null,null,null,null,null,null,null,null,null,null,null,null,null,null,null,null,null,null,null,null,null,null,null,null,null,null,null,4,{"$f":"BM5/8","v":0.5},{"$f":"BM5*29.5735/1000","v":0.118294},{"$f":"BO5/3.785","v":3.1253368560105681E-2},4.7E-2,null,18,{"$f":"BS5/8","v":2.25},{"$f":"BS5*29.5735/1000","v":0.53232299999999999},{"$f":"BU5/3.785","v":0.14064015852047557},0.20699999999999999,null,48,{"$f":"BY5/8","v":6},{"$f":"BY5*29.5735/1000","v":1.4195280000000001},{"$f":"CA5/3.785","v":0.3750404227212682},0.53800000000000003,null,null,null,null,null,null,null,null,null,null,null,null,null,null,4,{"$f":"CR5/8","v":0.5},{"$f":"CR5*29.5735/1000","v":0.118294},{"$f":"CT5/3.785","v":3.1253368560105681E-2},4.7E-2,null,51,{"$f":"CX5/8","v":6.375},{"$f":"CX5*29.5735/1000","v":1.5082484999999999},{"$f":"CZ5/3.785","v":0.39848044914134739},0.56999999999999995,null,null,null,null,null,null,null,null,null,null,null,null,4,{"$f":"DO5/8","v":0.5},{"$f":"DO5*29.5735/1000","v":0.118294},{"$f":"DQ5/3.785","v":3.1253368560105681E-2},4.7046999999999999E-2,null,null,4,{"$f":"DV5/8","v":0.5},{"$f":"DV5*29.5735/1000","v":0.118294},{"$f":"DX5/3.785","v":3.1253368560105681E-2},4.7046999999999992E-2,{"$f":"105.82*DZ5-11.35","v":-6.3714864600000007},{"$f":"6.1691*DZ5^2+85.19*DZ5","v":4.0215887406113415},null,{"$f":"91.69*DZ5-1.2326","v":3.0811394299999995},null,null,null,null,null,null,null,null,null,1,null,4,{"$f":"EP5/8","v":0.5},{"$f":"EP5*29.5735/1000","v":0.118294},{"$f":"ER5/3.785","v":3.1253368560105681E-2},4.7046999999999992E-2,null,142,{"$f":"EV5/8","v":17.75},{"$f":"EV5*29.5735/1000","v":4.1994369999999996},{"$f":"EX5/3.785","v":1.1094945838837516},1.4994000000000001,null,1,null,"Flow","Based on %NaOCl Solution Strength (w/v)"]
[null,null,null,null,"Dosage","Flow","% NaOCl","Feed rate","Feed rate",null,null,null,null,null,null,null,null,null,null,null,null,null,null,null,null,null,null,null,null,null,null,null,null,null,null,null,null,null,null,null,null,null,null,null,null,null,null,null,null,null,null,null,null,null,null,null,null,null,null,null,null,null,null,null,5,0.625,{"$f":"BM6*29.5735/1000","v":0.14786750000000001},{"$f":"BO6/3.785","v":3.9066710700132103E-2},5.8000000000000003E-2,null,20,2.5,{"$f":"BS6*29.5735/1000","v":0.59147000000000005},{"$f":"BU6/3.785","v":0.15626684280052841},0.23,null,52,6.5,{"$f":"BY6*29.5735/1000","v":1.5378219999999998},{"$f":"CA6/3.785","v":0.40629379128137377},0.58099999999999996,null,null,null,null,null,null,null,null,null,null,null,null,null,null,5,0.625,{"$f":"CR6*29.5735/1000","v":0.14786750000000001},{"$f":"CT6/3.785","v":3.9066710700132103E-2},5.8000000000000003E-2,null,52,6.5,{"$f":"CX6*29.5735/1000","v":1.5378219999999998},{"$f":"CZ6/3.785","v":0.40629379128137377},0.58099999999999996,null,null,null,null,null,null,null,null,null,null,null,null,5,0.625,{"$f":"DO6*29.5735/1000","v":0.14786750000000001},{"$f":"DQ6/3.785","v":3.9066710700132103E-2},5.8000000000000003E-2,null,null,5,{"$f":"DV6/8","v":0.625},{"$f":"DV6*29.5735/1000","v":0.14786750000000001},{"$f":"DX6/3.785","v":3.9066710700132103E-2},5.8057999999999998E-2,null,{"$f":"6.1691*DZ6^2+85.19*DZ6","v":4.9667553988576518},null,4.0907380199999999,null,null,null,null,null,null,null,null,null,null,null,6,0.75,{"$f":"EP6*29.5735/1000","v":0.17744100000000002},{"$f":"ER6/3.785","v":4.6880052840158525E-2},7.0069999999999993E-2,null,146,18.25,4.3177310000000002,1.1407479524438573,1.5402,null,null,null,"gpm","0.04705%\n4 oz","0.09309%\n8 oz","0.13928%\n12 oz","0.1854%\n16 oz","0.2307%\n20 oz","0.2761%\n24 oz","0.3213%\n28 oz","0.3658%\n32 oz","0.4100%\n36 oz","0.45471%\n40 oz","0.4985%\n44 oz"]
[null,null,null,null,1,10,0.151,{"$f":"F7*E7*0.39509*G7^(-1.004)","v":26.363507045429142},{"$f":"F7*E7*0.39509/G7","v":26.164900662251654},null,null,null,null,null,null,null,null,null,null,null,null,null,null,null,null,null,null,null,null,null,null,null,null,null,null,null,null,null,null,null,null,null,null,null,null,null,null,null,null,null,null,null,null,null,null,null,null,null,null,null,null,null,null,null,6,0.75,0.17744100000000002,4.6880052840158525E-2,7.0000000000000007E-2,null,22,2.75,0.650617,0.17189352708058123,0.253,null,56,7,1.6561159999999999,0.43754715984147946,0.624,null,null,null,null,null,null,null,null,null,null,null,null,null,null,6,0.75,0.17744100000000002,4.6880052840158525E-2,7.0000000000000007E-2,null,53,6.625,1.5673954999999999,0.41410713342140021,0.59199999999999997,null,null,null,null,null,null,null,null,null,null,null,null,6,0.75,0.17744100000000002,4.6880052840158525E-2,7.0000000000000007E-2,null,null,6,0.75,0.17744100000000002,4.6880052840158525E-2,7.0069999999999993E-2,null,5.9995523774085902,null,5.1921182999999997,null,null,null,null,null,null,null,null,null,1,null,8,1,0.23658799999999999,6.2506737120211361E-2,9.3092999999999995E-2,null,150,18.75,4.4360249999999999,1.172001321003963,1.5723399999999998,null,null,null,10,84.47000000000024,42.689999999999863,28.540000000000084,21.440000000000069,17.230000000000036,14.399999999999991,12.369999999999992,10.869999999999981,9.6999999999999851,8.7399999999999842,7.9799999999999791]
[null,null,null,null,null,null,null,null,null,null,null,null,null,null,null,null,null,null,null,null,null,null,null,null,null,null,null,null,null,null,null,null,null,null,null,null,null,null,null,null,null,null,null,null,null,null,null,null,null,null,null,null,null,null,null,null,null,null,null,null,null,null,null,null,7,0.875,0.20701449999999999,5.4693394980184933E-2,8.2000000000000003E-2,null,24,3,0.70976400000000006,0.1875202113606341,0.27500000000000002,null,60,7.5,1.7744099999999998,0.46880052840158515,0.66600000000000004,null,null,null,null,null,null,null,null,null,null,null,null,null,null,7,0.875,0.20701449999999999,5.4693394980184933E-2,8.2000000000000003E-2,null,54,6.75,1.5969690000000001,0.4219204755614267,0.60199999999999998,null,null,null,null,null,null,null,null,null,null,null,null,7,0.875,0.20701449999999999,5.4693394980184933E-2,8.2000000000000003E-2,null,null,7,0.875,0.20701449999999999,5.4693394980184933E-2,8.2081999999999988E-2,null,7.0341296119378276,null,6.2934985799999987,null,null,null,null,null,null,null,null,null,null,null,10,1.25,0.29573500000000003,7.8133421400264205E-2,0.116232,null,154,19.25,4.5543189999999996,1.2032546895640686,1.6131799999999998,null,1,null,15,126.70000000000036,64.030000000000015,42.799999999999841,32.159999999999968,25.840000000000131,21.590000000000092,18.560000000000088,16.300000000000047,14.539999999999988,13.109999999999998,11.95999999999998]
[null,null,null,null,null,null,null,null,null,null,null,null,null,null,null,null,null,null,null,null,null,null,null,null,null,null,null,null,null,null,null,null,null,null,null,null,null,null,null,null,null,null,null,null,null,null,null,null,null,null,null,null,null,null,null,null,null,null,null,null,null,null,null,null,8,1,0.23658799999999999,6.2506737120211361E-2,9.2999999999999999E-2,null,26,3.25,0.7689109999999999,0.20314689564068689,0.29699999999999999,null,64,8,1.8927039999999999,0.50005389696169089,0.70699999999999996,null,null,null,null,null,null,null,null,null,null,null,null,null,null,8,1,0.23658799999999999,6.2506737120211361E-2,9.2999999999999999E-2,null,55,6.875,1.6265425,0.42973381770145308,0.61299999999999999,null,null,null,null,null,null,null,null,null,null,null,null,8,1,0.23658799999999999,6.2506737120211361E-2,9.2999999999999999E-2,null,null,8,1,0.23658799999999999,6.2506737120211361E-2,9.3092999999999995E-2,null,7.9840559823483455,null,7.3030971699999991,null,null,null,null,null,null,null,null,null,1,null,12,1.5,0.35488200000000003,9.3760105680317049E-2,0.13927800000000001,null,158,19.75,4.6726130000000001,1.2345080581241743,1.6454200000000001,null,null,null,20,168.92999999999915,85.380000000000194,57.069999999999986,42.879999999999825,34.459999999999908,28.790000000000123,24.740000000000116,21.730000000000114,19.390000000000061,17.480000000000075,15.94999999999998]
[null,null,null,null,null,null,null,null,null,null,null,null,null,null,null,null,null,null,null,null,null,null,null,null,null,null,null,null,null,null,null,null,null,null,null,null,null,null,null,null,null,null,null,null,null,null,null,null,null,null,null,null,null,null,null,null,null,null,null,null,null,null,null,null,9,1.125,0.2661615,7.0320079260237783E-2,0.105,null,28,3.5,0.82805799999999996,0.21877357992073973,0.32,null,68,8.5,2.0109979999999998,0.53130726552179652,0.749,null,null,null,null,null,null,null,null,null,null,null,null,null,null,9,1.125,0.2661615,7.0320079260237783E-2,0.105,null,56,7,1.6561159999999999,0.43754715984147946,0.624,null,null,null,null,null,null,null,null,null,null,null,null,9,1.125,0.2661615,7.0320079260237783E-2,0.105,null,null,9,1.125,0.2661615,7.0320079260237783E-2,0.10510499999999999,null,9.0220453741693269,null,8.4044774499999999,null,null,null,null,null,null,null,null,null,null,null,14,1.75,0.41402899999999998,0.10938678996036987,0.162324,null,162,20.25,4.7909069999999998,1.26576142668428,1.6862999999999999,null,null,null,25,211.15999999999985,106.72000000000037,71.330000000000169,53.599999999999881,43.069999999999986,35.989999999999803,30.930000000000145,27.160000000000025,24.230000000000036,21.850000000000133,19.930000000000145]
[null,null,null,null,null,null,null,null,null,null,null,null,null,null,null,null,null,null,null,null,null,null,null,null,null,null,null,null,null,null,null,null,null,null,null,null,null,null,null,null,null,null,null,null,null,null,null,null,null,null,null,null,null,null,null,null,null,null,null,null,null,null,null,null,10,1.25,0.29573500000000003,7.8133421400264205E-2,0.11600000000000001,null,30,3.75,0.88720499999999991,0.23440026420079257,0.34200000000000003,null,72,9,2.129292,0.56256063408190227,0.79,null,null,null,null,null,null,null,null,null,null,null,null,null,null,10,1.25,0.29573500000000003,7.8133421400264205E-2,0.11600000000000001,null,57,7.125,1.6856895000000001,0.44536050198150595,0.63400000000000001,null,null,null,null,null,null,null,null,null,null,null,null,10,1.25,0.29573500000000003,7.8133421400264205E-2,0.11600000000000001,null,null,10,1.25,0.29573500000000003,7.8133421400264205E-2,0.116232,null,9.9851478672840379,null,9.4247120800000008,null,null,null,null,null,null,null,null,null,1,null,16,2,0.47317599999999999,0.12501347424042272,0.18537000000000001,null,166,20.75,4.9092010000000004,1.2970147952443858,1.7186399999999997,null,1,null,30,253.39999999999964,128.05999999999995,85.600000000000307,64.320000000000164,51.679999999999865,43.179999999999964,37.109999999999978,32.589999999999883,29.080000000000013,26.220000000000034,23.920000000000144]
[null,null,null,null,null,null,null,null,null,null,null,null,null,null,null,null,null,null,null,null,null,null,null,null,null,null,null,null,null,null,null,null,null,null,null,null,null,null,null,null,null,null,null,null,null,null,null,null,null,null,null,null,null,null,null,null,null,null,null,null,null,null,null,null,11,1.375,0.3253085,8.5946763540290613E-2,0.128,null,32,4,0.94635199999999997,0.25002694848084545,0.36399999999999999,null,76,9.5,2.2475859999999996,0.59381400264200779,0.83199999999999996,null,null,null,null,null,null,null,null,null,null,null,null,null,null,11,1.375,0.3253085,8.5946763540290613E-2,0.128,null,58,7.25,1.715263,0.45317384412153233,0.64400000000000002,null,null,null,null,null,null,null,null,null,null,null,null,11,1.375,0.3253085,8.5946763540290613E-2,0.128,null,null,11,1.375,0.3253085,8.5946763540290613E-2,0.12825600000000001,null,11.027607876835738,null,10.527192640000001,null,null,null,null,null,null,null,null,null,null,null,18,2.25,0.53232299999999999,0.14064015852047557,0.20762099999999997,null,170,21.25,5.027495,1.3282681638044913,1.7595599999999998,null,null,null,35,295.62999999999943,149.40999999999963,99.86000000000044,75.030000000000015,60.289999999999942,50.379999999999924,43.289999999999942,38.019999999999996,33.919999999999817,30.590000000000092,27.910000000000142]
[null,null,null,null,"10 gallons of water at 10 gpm",null,null,null,null,null,null,null,null,null,null,null,null,null,null,null,null,null,null,null,null,null,null,null,null,null,null,null,null,null,null,null,null,null,null,null,null,null,null,null,null,null,null,null,null,null,null,null,null,null,null,null,null,null,null,null,null,null,null,null,12,1.5,0.35488200000000003,9.3760105680317049E-2,0.13900000000000001,null,34,4.25,1.0054989999999999,0.26565363276089826,0.38600000000000001,null,80,10,2.3658800000000002,0.62506737120211364,0.872,null,null,null,null,null,null,null,null,null,null,null,null,null,null,12,1.5,0.35488200000000003,9.3760105680317049E-2,0.13900000000000001,null,59,7.375,1.7448364999999999,0.46098718626155877,0.65500000000000003,null,null,null,null,null,null,null,null,null,null,null,null,12,1.5,0.35488200000000003,9.3760105680317049E-2,0.13900000000000001,null,null,12,1.5,0.35488200000000003,9.3760105680317049E-2,0.13927800000000001,null,11.984763250597126,null,11.537799820000002,null,null,null,null,null,null,null,null,null,1,null,20,2.5,0.59147000000000005,0.15626684280052841,0.23068999999999998,null,174,21.75,5.1457889999999997,1.3595215323645971,1.792,null,null,null,40,337.85999999999922,170.74999999999932,114.13000000000007,85.750000000000384,68.910000000000466,57.569999999999887,49.479999999999905,43.459999999999908,38.769999999999847,34.959999999999809,31.890000000000139]
[null,null,null,null,null,null,null,null,null,null,null,null,null,null,null,null,null,null,null,null,null,null,null,null,null,null,null,null,null,null,null,null,null,null,null,null,null,null,null,null,null,null,null,null,null,null,null,null,null,null,null,null,null,null,null,null,null,null,null,null,null,null,null,null,14,{"$f":"BM14/8","v":1.75},{"$f":"BM14*29.5735/1000","v":0.41402899999999998},{"$f":"BO14/3.785","v":0.10938678996036987},0.16200000000000001,null,36,4.5,1.064646,0.28128031704095113,0.40799999999999997,null,84,10.5,2.4841739999999999,0.65632073976221927,0.91300000000000003,null,null,null,null,null,null,null,null,null,null,null,null,null,null,13,1.625,0.38445549999999995,0.10157344782034344,0.151,null,60,7.5,1.7744099999999998,0.46880052840158515,0.66600000000000004,null,null,null,null,null,null,null,null,null,null,null,null,13,1.625,0.38445549999999995,0.10157344782034344,0.151,null,null,13,1.625,0.38445549999999995,0.10157344782034344,0.15130199999999999,null,13.030642238342995,null,12.64028038,null,null,null,null,null,null,null,null,null,null,null,22,2.75,0.650617,0.17189352708058123,0.25375899999999996,null,178,22.25,5.2640829999999994,1.3907749009247026,1.8329600000000001,null,1,null,45,380.08999999999992,192.08999999999992,128.39999999999964,96.47000000000024,77.520000000000266,64.770000000000394,55.659999999999869,48.889999999999823,43.619999999999877,39.329999999999934,35.879999999999825]
[null,"Volume amount of 12.5% NaOCl to 10 gallons of water",null,null,null,null,null,null,null,null,null,null,null,null,null,null,null,null,null,null,null,null,null,null,null,null,null,null,"%NaOCl based of Volume of 12.5% NaOCl added to 10 gallons of water",null,null,null,null,null,null,null,null,null,null,null,null,null,null,null,null,null,null,null,null,null,null,null,null,null,null,null,null,null,null,null,null,null," ",null,16,{"$f":"BM15/8","v":2},{"$f":"BM15*29.5735/1000","v":0.47317599999999999},{"$f":"BO15/3.785","v":0.12501347424042272},0.185,null,44,{"$f":"BS15/8","v":5.5},{"$f":"BS15*29.5735/1000","v":1.301234},{"$f":"BU15/3.785","v":0.34378705416116245},0.495,null,93,{"$f":"BY15/8","v":11.625},{"$f":"BY15*29.5735/1000","v":2.7503355000000003},{"$f":"CA15/3.785","v":0.72664081902245714},1,null,null,null,null,null,null,null,null,null,null,null,null,null,null,14,1.75,0.41402899999999998,0.10938678996036987,0.16200000000000001,null,61,7.625,1.8039835,0.47661387054161158,0.67600000000000005,null,null,null,null,null,null,null,null,null,null,null,null,14,1.75,0.41402899999999998,0.10938678996036987,0.16200000000000001,null,null,14,1.75,0.41402899999999998,0.10938678996036987,0.162324,null,13.99093167544904,null,13.650887559999999,null,null,null,null,null,null,null,null,null,1,null,24,3,0.70976400000000006,0.1875202113606341,0.27610000000000001,null,182,22.75,5.3823769999999991,1.4220282694848081,1.8654999999999999,null,null,null,50,422.31999999999971,213.42999999999961,142.6599999999994,107.1900000000001,86.130000000000067,71.970000000000496,61.849999999999831,54.319999999999936,48.459999999999908,43.699999999999861,39.859999999999829]
[null,"oz","cups","mL","L","Gal","% NaOCl","mL/min",null,null,null,null,null,null,null,null,null,null,null,null,null,null,null,null,null,null,null,null,null,null,null,null,null,null,null,null,null,null,null,null,null,null,null,null,null,null,null,null,null,null,null,null,null,null,null,null,null,null,null,null,null,null,null,null,null,null,null,null,null,null,null,null,null,null,null,null,null,null,null,null,null,null,null,null,null,null,null,null,null,null,null,null,null,null,null,15,1.875,0.44360249999999996,0.11720013210039629,0.17299999999999999,null,62,7.75,1.8335570000000001,0.48442721268163808,0.68700000000000006,null,null,null,null,null,null,null,null,null,null,null,null,15,1.875,0.44360249999999996,0.11720013210039629,0.17299999999999999,null,null,15,1.875,0.44360249999999996,0.11720013210039629,0.173346,null,14.952720012415575,null,14.66149474,null,null,null,null,null,null,null,null,null,null,null,26,3.25,0.7689109999999999,0.20314689564068689,0.29818800000000001,null,186,23.25,5.5006710000000005,1.4532816380449143,1.9064999999999999,null,null,null,55,464.55999999999949,234.77999999999929,156.92999999999915,117.91000000000047,94.750000000000384,79.160000000000082,68.030000000000015,59.749999999999851,53.309999999999938,48.069999999999986,43.849999999999831]
[null,4,{"$f":"B17/8","v":0.5},{"$f":"B17*29.5735","v":118.294},{"$f":"D17/1000","v":0.118294},{"$f":"E17/3.785","v":3.1253368560105681E-2},4.7E-2,85,4,null,null,null,null,null,null,null,null,null,null,null,null,null,null,null,null,null,null,null,"oz","cups","mL","L","Gal","% \nNaOCl",null,"oz","cups","mL","L","Gal","% \nNaOCl",null,null,null,null,null,null,null,null,null,null,null,null,null,null,null,null,null,null,null,null,null,null,null,null,null,null,null,null,null,null,null,null,null,null,null,null,null,null,null,null,null,null,null,null,null,null,null,null,null,null,null,null,null,null,16,{"$f":"CR17/8","v":2},0.47317599999999999,0.12501347424042272,0.185,null,63,{"$f":"CX17/8","v":7.875},1.8631305,0.49224055482166446,0.69699999999999995,null,null,null,null,null,null,null,null,null,null,null,null,16,2,0.47317599999999999,0.12501347424042272,0.185,null,null,16,2,0.47317599999999999,0.12501347424042272,0.18537000000000001,null,16.003653141839791,null,15.7639753,null,null,null,null,null,null,null,null,null,1,null,28,3.5,0.82805799999999996,0.21877357992073973,0.32128000000000001,null,190,23.75,5.6189650000000002,1.4845350066050198,1.9391399999999999,null,1,null,60,506.78999999999928,256.11999999999989,171.18999999999983,128.62999999999943,103.36000000000018,86.360000000000184,74.220000000000113,65.180000000000092,58.14999999999997,52.439999999999912,47.839999999999833]
[null,5,{"$f":"B18/8","v":0.625},147.86750000000001,{"$f":"D18/1000","v":0.14786750000000001},{"$f":"E18/3.785","v":3.9066710700132103E-2},5.8000000000000003E-2,68.5,5,null,null,null,null,null,null,null,null,null,null,null,null,null,null,null,null,null,1,null,4,{"$f":"AC18/8","v":0.5},{"$f":"AC18*29.5735","v":118.294},{"$f":"AE18/1000","v":0.118294},{"$f":"AF18/3.785","v":3.1253368560105681E-2},4.7E-2,null,32,{"$f":"AJ18/8","v":4},{"$f":"AJ18*29.5735","v":946.35199999999998},{"$f":"AL18/1000","v":0.94635199999999997},{"$f":"AM18/3.785","v":0.25002694848084545},0.36399999999999999,null,null,1,null,null,null,null,null,null,null,null,null,null,null,null,null,null,null,null,null,null,null,null,null,null,null,null,null,null,null,null,null,null,null,null,null,null,null,null,null,null,null,null,null,null,null,null,null,null,null,null,null,null,null,17,2.125,{"$f":"CR18*29.5735/1000","v":0.50274949999999996},{"$f":"CT18/3.785","v":0.13282681638044913},0.19600000000000001,null,64,8,1.8927039999999999,0.50005389696169089,0.70699999999999996,null,null,null,null,null,null,null,null,null,null,null,null,17,2.125,0.50274949999999996,0.13282681638044913,0.19600000000000001,null,null,17,2.125,0.50274949999999996,0.13282681638044913,0.19658799999999998,null,16.98574795140291,null,16.792553719999997,null,null,null,null,null,null,null,null,null,null,null,30,3.75,0.88720499999999991,0.23440026420079257,0.34371000000000002,null,194,24.25,5.7372589999999999,1.5157883751651253,1.9699199999999999]
[null,6,0.75,177.441,0.17744100000000002,4.6880052840158525E-2,7.0000000000000007E-2,56.8,6,null,null,null,null,null,null,null,null,null,null,null,null,null,null,null,null,null,2,null,5,0.625,147.86750000000001,0.14786750000000001,3.9066710700132103E-2,5.8000000000000003E-2,null,34,{"$f":"AJ19/8","v":4.25},1005.499,{"$f":"AL19/1000","v":1.0054989999999999},{"$f":"AM19/3.785","v":0.26565363276089826},0.38600000000000001,null,null,2,null,null,null,null,null,null,null,null,null,null,null,null,null,null,null,null,null,null,null,null,null,null,null,null,null,null,null,null,null,null,null,null,null,null,null,null,null,null,null,null,null,null,null,null,null,null,null,null,null,null,null,18,2.25,0.53232299999999999,0.14064015852047557,0.20699999999999999,null,65,8.125,{"$f":"CX19*29.5735/1000","v":1.9222774999999999},{"$f":"CZ19/3.785","v":0.50786723910171727},0.71799999999999997,null,null,null,null,null,null,null,null,null,null,null,null,18,2.25,0.53232299999999999,0.14064015852047557,0.20699999999999999,null,null,18,2.25,0.53232299999999999,0.14064015852047557,0.20762099999999997,null,17.953161173553291,null,{"$f":"91.69*DZ19-1.2326","v":17.804169489999996},null,null,null,null,null,null,null,null,null,1,null,32,4,0.94635199999999997,0.25002694848084545,0.36581999999999998,null,198,24.75,5.8555529999999996,1.5470417437252311,2.0129199999999998]
[null,7,0.875,207.0145,0.20701449999999999,5.4693394980184933E-2,8.2000000000000003E-2,48.5,7,null,null,null,null,null,null,null,null,null,null,null,null,null,null,null,null,null,3,null,6,0.75,177.441,0.17744100000000002,4.6880052840158525E-2,7.0000000000000007E-2,null,36,4.5,1064.646,1.064646,0.28128031704095113,0.40799999999999997,null,null,3,null,null,null,null,null,null,null,null,null,null,null,null,null,null,null,null,null,null,null,null,null,null,null,null,null,null,null,null,null,null,null,null,null,null,null,null,null,null,null,null,null,null,null,null,null,null,null,null,null,null,null,19,2.375,0.56189649999999991,0.14845350066050195,0.219,null,66,8.25,1.9518509999999998,0.51568058124174365,0.72799999999999998,null,null,null,null,null,null,null,null,null,null,null,null,19,2.375,0.56189649999999991,0.14845350066050195,0.219,null,null,19,2.375,0.56189649999999991,0.14845350066050195,0.21965699999999996,null,19.010233955216442,null,{"$f":"91.69*DZ20-1.2326","v":18.907750329999995},null,null,null,null,null,null,null,null,null,null,null,34,4.25,1.0054989999999999,0.26565363276089826,0.38792999999999994,null,204,25.5,6.0329939999999995,1.5939217965653896,2.0642699999999996,null,1,null,null,"Chemical Feed Rate (mL/min) for a Target Dose of 1 mg/L as Cl2"]
[null,8,1,236.58799999999999,0.23658799999999999,6.2506737120211361E-2,9.2999999999999999E-2,42.7,8,null,null,null,null,null,null,null,null,null,null,null,null,null,null,null,null,null,4,null,7,0.875,207.0145,0.20701449999999999,5.4693394980184933E-2,8.2000000000000003E-2,null,38,4.75,1123.7929999999999,1.1237929999999998,0.29690700132100389,0.43,null,null,4,null,null,null,null,null,null,null,null,null,null,null,null,null,null,null,null,null,null,null,null,null,null,null,null,null,null,null,null,null,null,null,null,null,null,null,null,null,null,null,null,null,null,null,null,null,null,null,null,null,null,null,20,2.5,0.59147000000000005,0.15626684280052841,0.23,null,68,8.5,2.0109979999999998,0.53130726552179652,0.749,null,null,null,null,null,null,null,null,null,null,null,null,20,2.5,0.59147000000000005,0.15626684280052841,0.23,null,null,20,2.5,0.59147000000000005,0.15626684280052841,0.23068999999999998,null,19.98078749944851,null,19.919366099999998,null,null,null,null,null,null,null,null,null,1,null,36,4.5,1.064646,0.28128031704095113,0.4100399999999999,null,210,26.25,6.2104349999999995,1.6408018494055481,2.11768,null,null,null,"Flow","Based on %NaOCl Solution Strength (w/v)"]
[null,9,1.125,266.16149999999999,0.2661615,7.0320079260237783E-2,0.105,38.799999999999997,9,null,null,null,null,null,null,null,null,null,null,null,null,null,null,null,null,null,5,null,8,1,236.58799999999999,0.23658799999999999,6.2506737120211361E-2,9.2999999999999999E-2,null,40,{"$f":"AJ22/8","v":5},1182.94,{"$f":"AL22/1000","v":1.1829400000000001},{"$f":"AM22/3.785","v":0.31253368560105682},0.45200000000000001,null,null,5,null,null,null,null,null,null,null,null,null,null,null,null,null,null,null,null,null,null,null,null,null,null,null,null,null,null,null,null,null,null,null,null,null,null,null,null,null,null,null,null,null,null,null,null,null,null,null,null,null,null,null,21,2.625,0.62104349999999997,0.16408018494055482,0.24099999999999999,null,70,8.75,2.0701450000000001,0.5469339498018494,0.77,null,null,null,null,null,null,null,null,null,null,null,null,21,2.625,0.62104349999999997,0.16408018494055482,0.24099999999999999,null,null,21,2.625,0.62104349999999997,0.16408018494055482,0.24172299999999997,null,20.952842936850068,null,20.930981869999997,null,null,null,null,null,null,null,null,null,null,null,38,4.75,1.1237929999999998,0.29690700132100389,0.43258000000000002,null,216,27,6.3878760000000003,1.6876819022457068,2.1608999999999998,null,null,null,"gpm","0.54177%\n48 oz","0.6498%\n58 oz","0.7777%\n70 oz","0.9027%\n82 oz","1.024%\n94 oz","1.147%\n106 oz","1.261%\n118 oz","1.384%\n130 oz","1.499%\n142 oz","1.613%\n154 oz","1.719%\n166 oz"]
[null,10,1.25,295.73500000000001,0.29573500000000003,7.8133421400264205E-2,0.11600000000000001,34.200000000000003,10,null,null,null,null,null,null,null,null,null,null,null,null,null,null,null,null,null,6,null,9,1.125,266.16149999999999,0.2661615,7.0320079260237783E-2,0.105,null,44,5.5,1301.2339999999999,1.301234,0.34378705416116245,0.495,null,null,6,null,null,null,null,null,null,null,null,null,null,null,null,null,null,null,null,null,null,null,null,null,null,null,null,null,null,null,null,null,null,null,null,null,null,null,null,null,null,null,null,null,null,null,null,null,null,null,null,null,null,null,22,2.75,0.650617,0.17189352708058123,0.253,null,72,9,2.129292,0.56256063408190227,0.79,null,null,null,null,null,null,null,null,null,null,null,null,22,2.75,0.650617,0.17189352708058123,0.253,null,null,22,2.75,0.650617,0.17189352708058123,0.25375899999999996,null,22.014979953332695,null,22.034562709999992,null,null,null,null,null,null,null,null,null,1,null,40,5,1.1829400000000001,0.31253368560105682,0.45471200000000001,null,222,27.75,6.5653170000000003,1.7345619550858653,2.2145000000000001,null,1,null,10,7.3399999999999928,6.1199999999999974,5.1099999999999977,4.4099999999999913,3.889999999999981,3.46999999999999,3.1599999999999966,2.8799999999999812,2.6599999999999859,2.46999999999999,2.3199999999999932]
[null,11,1.375,325.30849999999998,0.3253085,8.5946763540290613E-2,0.128,31,11,null,null,null,null,null,null,null,null,null,null,null,null,null,null,null,null,null,7,null,10,1.25,295.73500000000001,0.29573500000000003,7.8133421400264205E-2,0.11600000000000001,null,48,6,1419.528,1.4195280000000001,0.3750404227212682,0.53800000000000003,null,null,7,null,null,null,null,null,null,null,null,null,null,null,null,null,null,null,null,null,null,null,null,null,null,null,null,null,null,null,null,null,null,null,null,null,null,null,null,null,null,null,null,null,null,null,null,null,null,null,null,null,null,null,23,2.875,0.68019049999999992,0.17970686922060763,0.26400000000000001,null,74,9.25,2.1884389999999998,0.57818731836195503,0.81100000000000005,null,null,null,null,null,null,null,null,null,null,null,null,23,2.875,0.68019049999999992,0.17970686922060763,0.26400000000000001,null,null,23,2.875,0.68019049999999992,0.17970686922060763,0.26505600000000001,null,23.0135288057343,null,23.07038464,null,null,null,null,null,null,null,null,null,null,null,42,5.25,1.2420869999999999,0.32816036988110964,0.47684399999999999,null,228,28.5,6.7427580000000003,1.7814420079260238,2.2660000000000005,null,null,null,15,11.01,9.1799999999999962,7.6699999999999857,6.609999999999987,5.8299999999999823,5.1999999999999957,4.7299999999999844,4.3099999999999934,3.9799999999999791,3.6999999999999851,3.46999999999999]
[null,12,1.5,354.88200000000001,0.35488200000000003,9.3760105680317049E-2,0.13900000000000001,28.6,12,null,null,null,null,null,null,null,null,null,null,null,null,null,null,null,null,null,8,null,11,1.375,325.30849999999998,0.3253085,8.5946763540290613E-2,0.128,null,52,6.5,1537.8219999999999,1.5378219999999998,0.40629379128137377,0.58099999999999996,null,null,8,null,null,null,null,null,null,null,null,null,null,null,null,null,null,null,null,null,null,null,null,null,null,null,null,null,null,null,null,null,null,null,null,null,null,null,null,null,null,null,null,null,null,null,null,null,null,null,null,null,null,null,24,3,0.70976400000000006,0.1875202113606341,0.27500000000000002,null,76,9.5,2.2475859999999996,0.59381400264200779,0.83199999999999996,null,null,null,null,null,null,null,null,null,null,null,null,24,3,0.70976400000000006,0.1875202113606341,0.27500000000000002,null,null,24,3,0.70976400000000006,0.1875202113606341,0.27610000000000001,null,23.991236957611001,null,24.083009000000001,null,null,null,null,null,null,null,null,null,1,null,44,5.5,1.301234,0.34378705416116245,0.49846499999999994,null,234,29.25,6.9201989999999993,1.8283220607661821,2.31975,null,null,null,20,14.669999999999986,12.239999999999995,10.219999999999995,8.8099999999999827,7.7699999999999836,6.9299999999999802,6.3099999999999934,5.749999999999984,5.3099999999999934,4.9299999999999802,4.6299999999999866]
[null,13,1.625,384.45549999999997,0.38445549999999995,0.10157344782034344,0.151,26.3,13,null,null,null,null,null,null,null,null,null,null,null,null,null,null,null,null,null,9,null,12,1.5,354.88200000000001,0.35488200000000003,9.3760105680317049E-2,0.13900000000000001,null,56,7,1656.116,1.6561159999999999,0.43754715984147946,0.624,null,null,9,null,null,null,null,null,null,null,null,null,null,null,null,null,null,null,null,null,null,null,null,null,null,null,null,null,null,null,null,null,null,null,null,null,null,null,null,null,null,null,null,null,null,null,null,null,null,null,null,null,null,null,25,3.125,0.73933749999999998,0.19533355350066048,0.28599999999999998,null,78,9.75,2.3067329999999999,0.60944068692206077,0.85199999999999998,null,null,null,null,null,null,null,null,null,null,null,null,25,3.125,0.73933749999999998,0.19533355350066048,0.28599999999999998,null,null,25,3.125,0.73933749999999998,0.19533355350066048,0.28714399999999995,null,24.970449998952052,null,25.095633359999994,null,null,null,null,null,null,null,null,null,null,null,46,5.75,1.3603809999999998,0.35941373844121527,0.52061899999999994,null,240,30,7.0976399999999993,1.8752021136063406,2.36328,null,1,null,25,18.340000000000053,15.289999999999994,12.779999999999983,11.01,9.7099999999999849,8.6699999999999857,7.8799999999999812,7.1799999999999962,6.6299999999999866,6.1599999999999966,5.7899999999999832]
[null,14,1.75,414.029,0.41402899999999998,0.10938678996036987,0.16200000000000001,24.5,14,null,null,null,null,null,null,null,null,null,null,null,null,null,null,null,null,null,10,null,13,1.625,384.45549999999997,0.38445549999999995,0.10157344782034344,0.151,null,60,7.5,1774.4099999999999,1.7744099999999998,0.46880052840158515,0.66600000000000004,null,null,10,null,null,null,null,null,null,null,null,null,null,null,null,null,null,null,null,null,null,null,null,null,null,null,null,null,null,null,null,null,null,null,null,null,null,null,null,null,null,null,null,null,null,null,null,null,null,null,null,null,null,null,26,3.25,0.7689109999999999,0.20314689564068689,0.29699999999999999,null,80,10,2.3658800000000002,0.62506737120211364,0.872,null,null,null,null,null,null,null,null,null,null,null,null,26,3.25,0.7689109999999999,0.20314689564068689,0.29699999999999999,null,null,26,3.25,0.7689109999999999,0.20314689564068689,0.29818800000000001,null,25.951167929757471,null,26.108257719999997,null,null,null,null,null,null,null,null,null,1,null,48,6,1.4195280000000001,0.3750404227212682,0.54176599999999997,null,246,30.75,7.2750810000000001,1.9220821664464993,2.4148800000000001,null,null,null,30,22.01,18.350000000000055,15.329999999999993,13.209999999999996,11.649999999999986,10.399999999999991,9.4599999999999902,8.6199999999999868,7.9599999999999795,7.3899999999999917,6.93999999999998]
[null,15,1.875,443.60249999999996,0.44360249999999996,0.11720013210039629,0.17299999999999999,23,15,null,null,null,null,null,null,null,null,null,null,null,null,null,null,null,null,null,11,null,14,1.75,414.029,0.41402899999999998,0.10938678996036987,0.16200000000000001,null,64,{"$f":"AJ28/8","v":8},{"$f":"AJ28*29.5735","v":1892.704},{"$f":"AL28/1000","v":1.8927039999999999},{"$f":"AM28/3.785","v":0.50005389696169089},0.70699999999999996,null,null,11,null,null,null,null,null,null,null,null,null,null,null,null,null,null,null,null,null,null,null,null,null,null,null,null,null,null,null,null,null,null,null,null,null,null,null,null,null,null,null,null,null,null,null,null,null,null,null,null,null,null,null,27,3.375,0.79848450000000004,0.21096023778071335,0.309,null,82,10.25,2.425027,0.6406940554821664,0.89200000000000002,null,null,null,null,null,null,null,null,null,null,null,null,27,3.375,0.79848450000000004,0.21096023778071335,0.309,null,null,27,3.375,0.79848450000000004,0.21096023778071335,0.31023600000000001,null,27.022758356306195,null,27.21293884,null,null,null,null,null,null,null,null,null,null,null,50,6.25,1.478675,0.39066710700132096,0.56347200000000008,null,252,31.5,7.4525220000000001,1.9689622192866578,2.4688699999999999,null,null,null,35,25.680000000000106,21.410000000000064,17.890000000000139,15.409999999999991,13.589999999999987,12.129999999999997,11.03,10.049999999999999,9.279999999999994,8.6299999999999866,8.0999999999999979]
[null,16,2,473.17599999999999,0.47317599999999999,0.12501347424042272,0.185,21.5,16,null,null,null,null,null,null,null,null,null,null,null,null,null,null,null,null,null,12,null,15,1.875,443.60249999999996,0.44360249999999996,0.11720013210039629,0.17299999999999999,null,68,8.5,2010.998,2.0109979999999998,0.53130726552179652,0.749,null,null,12,null,null,null,null,null,null,null,null,null,null,null,null,null,null,null,null,null,null,null,null,null,null,null,null,null,null,null,null,null,null,null,null,null,null,null,null,null,null,null,null,null,null,null,null,null,null,null,null,null,null,null,28,3.5,0.82805799999999996,0.21877357992073973,0.32,null,84,10.5,2.4841739999999999,0.65632073976221927,0.91300000000000003,null,null,null,null,null,null,null,null,null,null,null,null,28,3.5,0.82805799999999996,0.21877357992073973,0.32,null,null,28,3.5,0.82805799999999996,0.21877357992073973,0.32128000000000001,null,28.006622874173441,{"$f":"9.2551*DZ29^2+77.091*DZ29+5.6136","v":31.336715661475836},28.2255632,null,null,null,null,null,null,null,null,null,null,null,54,6.75,1.5969690000000001,0.4219204755614267,0.60681600000000002,null,258,32.25,7.6299630000000001,2.0158422721268163,2.5126200000000001,null,1,null,40,29.340000000000053,24.470000000000073,20.440000000000069,17.610000000000095,15.529999999999989,13.859999999999982,12.609999999999987,11.48999999999999,10.609999999999987,9.8599999999999817,9.2499999999999947]
[null,18,2.25,532.32299999999998,0.53232299999999999,0.14064015852047557,0.20699999999999999,19.2,18,null,null,null,null,null,null,null,null,null,null,null,null,null,null,null,null,null,13,null,16,2,473.17599999999999,0.47317599999999999,0.12501347424042272,0.185,null,72,9,2129.2919999999999,2.129292,0.56256063408190227,0.79,null,null,13,null,null,null,null,null,null,null,null,null,null,null,null,null,null,null,null,null,null,null,null,null,null,null,null,null,null,null,null,null,null,null,null,null,null,null,null,null,null,null,null,null,null,null,null,null,null,null,null,null,null,null,29,3.625,0.85763149999999999,0.22658692206076617,0.33100000000000002,null,86,10.75,2.5433209999999997,0.67194742404227203,0.93200000000000005,null,null,null,null,null,null,null,null,null,null,null,null,29,3.625,0.85763149999999999,0.22658692206076617,0.33100000000000002,null,null,29,3.625,0.85763149999999999,0.22658692206076617,0.33232400000000001,null,28.991992281505041,null,29.23818756,null,null,null,null,null,null,null,null,null,1,null,58,7.25,1.715263,0.45317384412153233,0.64979599999999993,null,264,33,7.8074039999999991,2.0627223249669746,2.5643199999999999,null,null,null,45,33.01,27.520000000000081,23.000000000000156,19.810000000000127,17.470000000000073,15.599999999999987,14.179999999999996,12.91999999999998,11.92999999999998,11.089999999999998,10.409999999999991]
[null,20,2.5,591.47,0.59147000000000005,0.15626684280052841,0.23,17.3,20,null,null,null,null,null,null,null,null,null,null,null,null,null,null,null,null,null,14,null,18,2.25,532.32299999999998,0.53232299999999999,0.14064015852047557,0.20699999999999999,null,76,9.5,2247.5859999999998,2.2475859999999996,0.59381400264200779,0.83199999999999996,null,null,14,null,null,null,null,null,null,null,null,null,null,null,null,null,null,null,null,null,null,null,null,null,null,null,null,null,null,null,null,null,null,null,null,null,null,null,null,null,null,null,null,null,null,null,null,null,null,null,null,null,null,null,30,3.75,0.88720499999999991,0.23440026420079257,0.34200000000000003,null,88,11,2.602468,0.68757410832232491,0.95299999999999996,null,null,null,null,null,null,null,null,null,null,null,null,30,3.75,0.88720499999999991,0.23440026420079257,0.34200000000000003,null,null,30,3.75,0.88720499999999991,0.23440026420079257,0.34371000000000002,null,30.009451177589312,null,30.2821699,null,null,null,null,null,null,null,null,null,null,null,62,7.75,1.8335570000000001,0.48442721268163808,0.69318299999999999,null,270,33.75,7.9848449999999991,2.1096023778071329,2.6081999999999996,null,null,null,50,36.679999999999865,30.580000000000091,25.550000000000086,22.020000000000003,19.410000000000064,17.330000000000052,15.759999999999984,14.359999999999992,13.259999999999994,12.319999999999993,11.569999999999988]
[null,22,2.75,650.61699999999996,0.650617,0.17189352708058123,0.253,15.7,22,null,null,null,null,null,null,null,null,null,null,null,null,null,null,null,null,null,15,null,20,2.5,591.47,0.59147000000000005,0.15626684280052841,0.23,null,80,10,2365.88,2.3658800000000002,0.62506737120211364,0.872,null,null,15,null,null,null,null,null,null,null,null,null,null,null,null,null,null,null,null,null,null,null,null,null,null,null,null,null,null,null,null,null,null,null,null,null,null,null,null,null,null,null,null,null,null,null,null,null,null,null,null,null,null,null,31,3.875,0.91677850000000005,0.24221360634081904,0.35299999999999998,null,90,11.25,2.6616149999999998,0.70320079260237778,0.97299999999999998,null,null,null,null,null,null,null,null,null,null,null,null,31,3.875,0.91677850000000005,0.24221360634081904,0.35299999999999998,null,null,31,3.875,0.91677850000000005,0.24221360634081904,0.35476499999999994,null,30.998862203853541,null,31.295802849999991,null,null,null,null,null,null,null,null,null,null,null,66,8.25,1.9518509999999998,0.51568058124174365,0.73527999999999993,null,276,34.5,8.1622859999999999,2.1564824306472921,2.6599499999999998,null,null,null,55,40.34999999999993,33.639999999999873,28.110000000000017,24.220000000000034,21.350000000000055,19.060000000000009,17.340000000000053,15.789999999999983,14.579999999999988,13.549999999999988,12.719999999999985]
[null,24,3,709.76400000000001,0.70976400000000006,0.1875202113606341,0.27500000000000002,14.5,24,null,null,null,null,null,null,null,null,null,null,null,null,null,null,null,null,null,16,null,22,2.75,650.61699999999996,0.650617,0.17189352708058123,0.253,null,84,10.5,2484.174,2.4841739999999999,0.65632073976221927,0.91300000000000003,null,null,16,null,null,null,null,null,null,null,null,null,null,null,null,null,null,null,null,null,null,null,null,null,null,null,null,null,null,null,null,null,null,null,null,null,null,null,null,null,null,null,null,null,null,null,null,null,null,null,null,null,null,null,32,4,0.94635199999999997,0.25002694848084545,0.36399999999999999,null,92,11.5,2.7207619999999997,0.71882747688243054,0.99299999999999999,null,null,null,null,null,null,null,null,null,null,null,null,32,4,0.94635199999999997,0.25002694848084545,0.36399999999999999,null,null,32,4,0.94635199999999997,0.25002694848084545,0.36581999999999998,null,31.989781118862837,null,32.309435800000003,null,null,null,null,null,null,null,null,null,1,null,70,8.75,2.0701450000000001,0.5469339498018494,0.77770000000000006,null,282,35.25,8.3397269999999981,2.2033624834874499,2.7039599999999999,null,1,null,60,44.01,36.699999999999861,30.660000000000103,26.420000000000066,23.290000000000045,20.790000000000123,18.910000000000142,17.230000000000036,15.909999999999981,14.779999999999983,13.879999999999981]
[null,26,3.25,768.91099999999994,0.7689109999999999,0.20314689564068689,0.29699999999999999,13.4,26,null,null,null,null,null,null,null,null,null,null,null,null,null,null,null,null,null,17,null,24,{"$f":"AC34/8","v":3},{"$f":"AC34*29.5735","v":709.76400000000001},{"$f":"AE34/1000","v":0.70976400000000006},{"$f":"AF34/3.785","v":0.1875202113606341},0.27500000000000002,null,88,11,2602.4679999999998,2.602468,0.68757410832232491,0.95299999999999996,null,null,17,null,null,null,null,null,null,null,null,null,null,null,null,null,null,null,null,null,null,null,null,null,null,null,null,null,null,null,null,null,null,null,null,null,null,null,null,null,null,null,null,null,null,null,null,null,null,null,null,null,15,null,33,4.125,0.97592549999999989,0.25784029062087183,0.375,null,93,11.625,2.7503355000000003,0.72664081902245714,1,null,null,null,null,null,null,null,null,null,null,null,null,33,4.125,0.97592549999999989,0.25784029062087183,0.375,null,null,33,4.125,0.97592549999999989,0.25784029062087183,0.37687499999999996,null,32.982207922617185,null,33.323068749999997,null,null,null,null,null,null,null,null,null,null,null,74,9.25,2.1884389999999998,0.57818731836195503,0.81992100000000001,null,288,36,8.5171679999999999,2.2502425363276091,2.7584200000000001]
[null,28,3.5,828.05799999999999,0.82805799999999996,0.21877357992073973,0.32,12.4,28,null,null,null,null,null,null,null,null,null,null,null,null,null,null,null,null,null,18,null,26,{"$f":"AC35/8","v":3.25},{"$f":"AC35*29.5735","v":768.91099999999994},{"$f":"AE35/1000","v":0.7689109999999999},{"$f":"AF35/3.785","v":0.20314689564068689},0.29699999999999999,null,92,11.5,2720.7619999999997,2.7207619999999997,0.71882747688243054,0.99299999999999999,null,null,18,null,null,null,null,null,null,null,null,null,null,null,null,null,null,null,null,null,null,null,null,null,null,null,null,null,null,null,null,null,null,null,null,null,null,null,null,null,null,null,null,null,null,null,null,null,null,null,null,null,null,null,34,4.25,1.0054989999999999,0.26565363276089826,0.38600000000000001,null,96,12,2.8390560000000002,0.75008084544253639,1.03,null,null,null,null,null,null,null,null,null,null,null,null,34,4.25,1.0054989999999999,0.26565363276089826,0.38600000000000001,null,null,34,4.25,1.0054989999999999,0.26565363276089826,0.38792999999999994,null,33.976142615116586,null,34.336701699999999,null,null,null,null,null,null,null,null,null,null,null,78,9.75,2.3067329999999999,0.60944068692206077,0.86137199999999992,null,294,36.75,8.6946089999999998,2.2971225891677673,2.7999000000000001]
[null,30,3.75,887.20499999999993,0.88720499999999991,0.23440026420079257,0.34200000000000003,11.6,30,null,null,null,null,null,null,null,null,null,null,null,null,null,null,null,null,null,19,null,28,{"$f":"AC36/8","v":3.5},{"$f":"AC36*29.5735","v":828.05799999999999},{"$f":"AE36/1000","v":0.82805799999999996},{"$f":"AF36/3.785","v":0.21877357992073973},0.32,null,96,12,2839.056,2.8390560000000002,0.75008084544253639,1.03,null,null,19,null,null,null,null,null,null,null,null,null,null,null,null,null,null,null,null,null,null,null,null,null,null,null,null,null,null,null,null,null,null,null,null,null,null,null,null,null,null,null,null,null,null,null,null,null,null,null,null,null,null,null,35,4.375,1.0350725000000001,0.2734669749009247,0.39700000000000002,null,98,12.25,2.8982030000000001,0.76570752972258915,1.05,null,null,null,null,null,null,null,null,null,null,null,null,35,4.375,1.0350725000000001,0.2734669749009247,0.39700000000000002,null,null,35,4.375,1.0350725000000001,0.2734669749009247,0.39898499999999998,null,34.97158519636104,null,35.350334650000001,null,null,null,null,null,null,null,null,null,1,null,82,10.25,2.425027,0.6406940554821664,0.90270400000000006,null,300,37.5,8.8720499999999998,2.3440026420079261,2.8441200000000002,null,null,null,null,"Chemical Feed Rate (mL/min) for a Target Dose of 1 mg/L as Cl2"]
[null,32,4,946.35199999999998,0.94635199999999997,0.25002694848084545,0.36399999999999999,10.9,32,null,null,null,null,null,null,null,null,null,null,null,null,null,null,null,null,null,20,null,30,{"$f":"AC37/8","v":3.75},{"$f":"AC37*29.5735","v":887.20499999999993},{"$f":"AE37/1000","v":0.88720499999999991},{"$f":"AF37/3.785","v":0.23440026420079257},0.34200000000000003,null,100,12.5,2957.35,2.9573499999999999,0.78133421400264191,1.07,null,null,20,null,null,null,null,null,null,null,null,null,null,null,null,null,null,null,null,null,null,null,null,null,null,null,null,null,null,null,null,null,null,null,null,null,null,null,null,null,null,null,null,null,null,null,null,null,null,null,null,null,null,null,36,4.5,1.064646,0.28128031704095113,0.40799999999999997,null,100,12.5,2.9573499999999999,0.78133421400264191,1.07,null,null,null,null,null,null,null,null,null,null,null,null,36,4.5,1.064646,0.28128031704095113,0.40799999999999997,null,null,36,4.5,1.064646,0.28128031704095113,0.4100399999999999,null,35.968535666350547,null,36.363967599999995,null,null,null,null,null,null,null,null,null,null,null,86,10.75,2.5433209999999997,0.67194742404227203,0.94411599999999996,null,306,38.25,9.0494909999999997,2.3908826948480844,2.8988099999999997,null,1,null,"Flow","Based on %NaOCl Solution Strength (w/v)"]
[null,48,6,1419.528,1.4195280000000001,0.3750404227212682,0.53800000000000003,7.34,48,null,null,null,null,null,null,null,null,null,null,null,null,null,null,null,null,null,null,null,null,null,null,null,null,null,null,null,null,null,null,null,null,null,null,null,null,null,null,null,null,null,null,null,null,null,null,null,null,null,null,null,null,null,null,null,null,null,null,null,null,null,null,null,null,null,null,null,null,null,null,null,null,null,null,null,null,null,null,null,null,null,null,null,null,null,null,37,4.625,1.0942194999999999,0.28909365918097751,0.41899999999999998,null,102,12.75,3.0164969999999998,0.79696089828269479,1.0900000000000001,null,null,null,null,null,null,null,null,null,null,null,null,37,4.625,1.0942194999999999,0.28909365918097751,0.41899999999999998,null,null,37,4.625,1.0942194999999999,0.28909365918097751,0.421514,null,37.004866655402338,null,37.416018659999999,null,null,null,null,null,null,null,null,null,null,null,90,11.25,2.6616149999999998,0.70320079260237778,0.98564899999999989,null,312,39,9.2269319999999997,2.4377627476882431,2.9403699999999997,null,null,null,"gpm","1.833%\n178 oz","1.939%\n190 oz","2.064%\n204 oz","2.215%\n222 oz","2.363%\n240 oz","2.533%\n260 oz","2.704%\n282 oz","2.899%\n306 oz","3.071%\n330 oz","3.254%\n354 oz","3.462%\n384 oz"]
[null,64,8,1892.704,1.8927039999999999,0.50005389696169089,0.70699999999999996,5.57,64,null,null,null,null,null,null,null,null,null,null,null,null,null,null,null,null,null,null,null,null,null,null,null,null,null,null,null,null,null,null,null,null,null,null,null,null,null,null,null,null,null,null,null,null,null,null,null,null,null,null,null,null,null,null,null,null,null,null,null,null,null,null,null,null,null,null,null,null,null,null,null,null,null,null,null,null,null,null,null,null,null,null,null,null,null,null,38,4.75,1.1237929999999998,0.29690700132100389,0.43,null,104,13,3.0756439999999996,0.81258758256274755,1.1100000000000001,null,null,null,null,null,null,null,null,null,null,null,null,38,4.75,1.1237929999999998,0.29690700132100389,0.43,null,null,38,4.75,1.1237929999999998,0.29690700132100389,0.43258000000000002,null,38.005885853077238,null,38.430660200000005,null,null,null,null,null,null,null,null,null,1,null,94,11.75,2.779909,0.73445416116248341,1.0241400000000001,null,318,39.75,9.4043729999999996,2.4846428005284014,2.9848000000000003,null,null,null,10,2.1699999999999964,2.0499999999999989,1.9300000000000008,1.8000000000000007,1.6900000000000006,1.5700000000000005,1.4700000000000004,1.3800000000000003,1.3000000000000003,1.2300000000000002,1.1500000000000001]
[null,68,8.5,2010.998,2.0109979999999998,0.53130726552179652,0.749,null,null,null,null,null,null,null,null,null,null,null,null,null,null,null,null,null,null,null,null,null,null,null,null,null,null,null,null,null,null,null,null,null,null,null,null,null,null,null,null,null,null,null,null,null,null,null,null,null,null,null,null,null,null,null,null,null,null,null,null,null,null,null,null,null,null,null,null,null,null,null,null,null,null,null,null,null,null,null,null,null,null,null,null,null,null,null,null,39,4.875,1.1533665,0.30472034346103039,0.441,null,106,13.25,3.1347909999999999,0.82821426684280042,1.1299999999999999,null,null,null,null,null,null,null,null,null,null,null,null,39,4.875,1.1533665,0.30472034346103039,0.441,null,null,39,4.875,1.1533665,0.30472034346103039,0.44364599999999998,null,39.00841594176373,null,39.445301739999998,null,null,null,null,null,null,null,null,null,null,null,98,12.25,2.8982030000000001,0.76570752972258915,1.0647,null,324,40.5,9.5818139999999996,2.5315228533685601,3.0264000000000002,null,null,null,15,3.2599999999999945,3.0799999999999983,2.889999999999981,2.6999999999999851,2.5299999999999887,2.3599999999999923,2.2099999999999955,2.0599999999999987,1.9500000000000008,1.8400000000000007,1.7300000000000006]
[null,72,{"$f":"B41/8","v":9},{"$f":"B41*29.5735","v":2129.2919999999999},{"$f":"D41/1000","v":2.129292},{"$f":"E41/3.785","v":0.56256063408190227},0.79,null,null,null,null,null,null,null,null,null,null,null,null,null,null,null,null,null,null,null,null,null,null,null,null,null,null,null,null,null,null,null,null,null,null,null,null,null,null,null,null,null,null,null,null,null,null,null,null,null,null,null,null,null,null,null,null,null,null,null,null,null,null,null,null,null,null,null,null,null,null,null,null,null,null,null,null,null,null,null,null,null,null,null,null,null,null,null,null,40,5,1.1829400000000001,0.31253368560105682,0.45200000000000001,null,108,13.5,3.1939380000000002,0.8438409511228534,1.1499999999999999,null,null,null,null,null,null,null,null,null,null,null,null,40,5,1.1829400000000001,0.31253368560105682,0.45200000000000001,null,null,40,5,1.1829400000000001,0.31253368560105682,0.45471200000000001,null,40.012456921461826,null,40.459943280000005,null,null,null,null,null,null,null,null,null,null,null,102,12.75,3.0164969999999998,0.79696089828269479,1.1063499999999999,null,330,41.25,9.7592549999999996,2.5784029062087184,3.0709499999999998,null,1,null,20,4.3399999999999928,4.0999999999999979,3.8599999999999817,3.5899999999999874,3.3699999999999921,3.139999999999997,2.93999999999998,2.749999999999984,2.5899999999999874,2.4499999999999904,2.2999999999999936]
[null,76,9.5,2247.5859999999998,2.2475859999999996,0.59381400264200779,0.83199999999999996,null,null,null,null,null,null,null,null,null,null,null,null,null,null,null,null,null,null,null,null,null,null,null,null,null,null,null,null,null,null,null,null,null,null,null,null,null,null,null,null,null,null,null,null,null,null,null,null,null,null,null,null,null,null,null,null,null,null,null,null,null,null,null,null,null,null,null,null,null,null,null,null,null,null,null,null,null,null,null,null,null,null,null,null,null,null,null,null,41,5.125,1.2125135,0.3203470277410832,0.46300000000000002,null,110,13.75,3.253085,0.85946763540290616,1.17,null,null,null,null,null,null,null,null,null,null,null,null,41,5.125,1.2125135,0.3203470277410832,0.46300000000000002,null,null,41,5.125,1.2125135,0.3203470277410832,0.46577800000000003,null,41.018008792171528,null,41.474584820000004,null,null,null,null,null,null,null,null,null,1,null,106,13.25,3.1347909999999999,0.82821426684280042,1.1469499999999997,null,336,42,9.9366959999999995,2.6252829590488771,3.1155800000000005,null,null,null,25,5.419999999999991,5.1299999999999972,4.8199999999999825,4.4899999999999896,4.2099999999999955,3.9299999999999802,3.6799999999999855,3.4299999999999908,3.2399999999999949,3.0599999999999987,2.8699999999999815]
[null,80,10,2365.88,2.3658800000000002,0.62506737120211364,0.872,null,null,null,null,null,null,null,null,null,null,null,null,null,null,null,null,null,null,null,null,null,null,null,null,null,null,null,null,null,null,null,null,null,null,null,null,null,null,null,null,null,null,null,null,null,null,null,null,null,null,null,null,null,null,null,null,null,null,null,null,null,null,null,null,null,null,null,null,null,null,null,null,null,null,null,null,null,null,null,null,null,null,null,null,null,null,null,null,42,5.25,1.2420869999999999,0.32816036988110964,0.47399999999999998,null,112,14,3.3122319999999998,0.87509431968295892,1.19,null,null,null,null,null,null,null,null,null,null,null,null,42,5.25,1.2420869999999999,0.32816036988110964,0.47399999999999998,null,null,42,5.25,1.2420869999999999,0.32816036988110964,0.47684399999999999,null,42.025071553892815,null,42.489226360000004,null,null,null,null,null,null,null,null,null,null,null,110,13.75,3.253085,0.85946763540290616,1.18872,null,342,42.75,10.114137000000001,2.6721630118890358,3.1676800000000003,null,null,null,30,6.5099999999999891,6.1499999999999968,5.7799999999999834,5.3899999999999917,5.0499999999999989,4.7099999999999849,4.4099999999999913,4.1199999999999974,3.889999999999981,3.6699999999999857,3.4499999999999904]
[null,84,10.5,2484.174,2.4841739999999999,0.65632073976221927,0.91300000000000003,null,null,null,null,null,null,null,null,null,null,null,null,null,null,null,null,null,null,null,null,null,null,null,null,null,null,null,null,null,null,null,null,null,null,null,null,null,null,null,null,null,null,null,null,null,null,null,null,null,null,null,null,null,null,null,null,null,null,null,null,null,null,null,null,null,null,null,null,null,null,null,null,null,null,null,null,null,null,null,null,null,null,null,null,null,null,null,null,43,5.375,1.2716604999999999,0.33597371202113602,0.48399999999999999,null,114,14.25,3.3713790000000001,0.8907210039630119,1.21,null,null,null,null,null,null,null,null,null,null,null,null,43,5.375,1.2716604999999999,0.33597371202113602,0.48399999999999999,null,null,43,5.375,1.2716604999999999,0.33597371202113602,0.48738799999999993,null,42.986035303540177,null,43.456005719999993,null,null,null,null,null,null,null,null,null,null,null,114,14.25,3.3713790000000001,0.8907210039630119,1.22936,null,348,43.5,10.291577999999999,2.7190430647291941,3.2020099999999996,null,null,null,35,7.5899999999999874,7.1799999999999962,6.7399999999999842,6.2899999999999938,5.889999999999981,5.4999999999999893,5.1499999999999968,4.7999999999999829,4.5299999999999887,4.279999999999994,4.0199999999999996]
[null,88,11,2602.4679999999998,2.602468,0.68757410832232491,0.95299999999999996,null,null,null,null,null,null,null,null,null,null,null,null,null,null,null,null,null,null,null,null,null,null,null,null,null,null,null,null,null,null,null,null,null,null,null,null,null,null,null,null,null,null,null,null,null,null,null,null,null,null,null,null,null,null,null,null,null,null,null,null,null,null,null,null,null,null,null,null,null,null,null,null,null,null,null,null,null,null,null,null,null,null,null,null,null,null,null,null,44,5.5,1.301234,0.34378705416116245,0.495,null,116,14.5,3.430526,0.90634768824306466,1.23,null,null,null,null,null,null,null,null,null,null,null,null,44,5.5,1.301234,0.34378705416116245,0.495,null,null,44,5.5,1.301234,0.34378705416116245,0.49846499999999994,null,43.997053317287637,null,44.471655849999998,null,null,null,null,null,null,null,null,null,1,null,118,14.75,3.4896729999999998,0.92197437252311754,1.26108,null,354,44.25,10.469018999999999,2.7659231175693524,3.2541599999999997,null,1,null,40,8.6799999999999855,8.1999999999999957,7.7099999999999849,7.1799999999999962,6.7299999999999844,6.279999999999994,5.8799999999999812,5.4899999999999896,5.1799999999999962,4.889999999999981,4.5999999999999872]
[null,92,11.5,2720.7619999999997,2.7207619999999997,0.71882747688243054,0.99299999999999999,null,null,null,null,null,null,null,null,null,null,null,null,null,null,null,null,null,null,null,null,null,null,null,null,null,null,null,null,null,null,null,null,null,null,null,null,null,null,null,null,null,null,null,null,null,null,null,null,null,null,null,null,null,null,null,null,null,null,null,null,null,null,null,null,null,null,null,null,null,null,null,null,null,null,null,null,null,null,null,null,null,null,null,null,null,null,null,null,45,5.625,1.3308074999999999,0.35160039630118889,0.50600000000000001,null,118,14.75,3.4896729999999998,0.92197437252311754,1.24,null,null,null,null,null,null,null,null,null,null,null,null,45,5.625,1.3308074999999999,0.35160039630118889,0.50600000000000001,null,null,45,5.625,1.3308074999999999,0.35160039630118889,0.50954199999999994,null,45.009585227299091,null,45.487305979999995,null,null,null,null,null,null,null,null,null,null,null,122,15.25,3.6079669999999999,0.95322774108322317,1.3017599999999998,null,360,45,10.646459999999999,2.8128031704095111,3.2886000000000002,null,null,null,45,9.7599999999999838,9.2299999999999951,8.6699999999999857,8.0799999999999983,7.5699999999999878,7.0599999999999987,6.6199999999999868,6.1699999999999964,5.8299999999999823,5.4999999999999893,5.1699999999999964]
[null,96,12,2839.056,2.8390560000000002,0.75008084544253639,1.03,null,null,null,null,null,null,null,null,null,null,null,null,null,null,null,null,null,null,null,null,null,null,null,null,null,null,null,null,null,null,null,null,null,null,null,null,null,null,null,null,null,null,null,null,null,null,null,null,null,null,null,null,null,null,null,null,null,null,null,null,null,null,null,null,null,null,null,null,null,null,null,null,null,null,null,null,null,null,null,null,null,null,null,null,null,null,null,null,46,5.75,1.3603809999999998,0.35941373844121527,0.51700000000000002,null,120,15,3.5488199999999996,0.9376010568031703,1.26,null,null,null,null,null,null,null,null,null,null,null,null,46,5.75,1.3603809999999998,0.35941373844121527,0.51700000000000002,null,null,46,5.75,1.3603809999999998,0.35941373844121527,0.52061899999999994,null,46.023631033574517,null,46.502956109999992,null,null,null,null,null,null,null,null,null,null,null,126,15.75,3.726261,0.98448110964332891,1.3437600000000001,null,366,45.75,10.823900999999999,2.8596832232496694,3.3303600000000002,null,null,null,50,10.839999999999982,10.249999999999995,9.6299999999999866,8.9799999999999791,8.4099999999999913,7.8499999999999819,7.3499999999999925,6.8599999999999817,6.46999999999999,6.1099999999999977,5.7399999999999842]
[null,100,{"$f":"B48/8","v":12.5},{"$f":"B48*29.5735","v":2957.35},{"$f":"D48/1000","v":2.9573499999999999},{"$f":"E48/3.785","v":0.78133421400264191},1.07,3.5,100,null,null,null,null,null,null,null,null,null,null,null,null,null,null,null,null,null,null,null,null,null,null,null,null,null,null,null,null,null,null,null,null,null,null,null,null,null,null,null,null,null,null,null,null,null,null,null,null,null,null,null,null,null,null,null,null,null,null,null,null,null,null,null,null,null,null,null,null,null,null,null,null,null,null,null,null,null,null,null,null,null,null,null,null,null,null,47,5.875,1.3899545,0.3672270805812417,0.52800000000000002,null,122,15.25,3.6079669999999999,0.95322774108322317,1.28,null,null,null,null,null,null,null,null,null,null,null,null,47,5.875,1.3899545,0.3672270805812417,0.52800000000000002,null,null,47,5.875,1.3899545,0.3672270805812417,0.53169599999999995,null,47.039190736113937,null,47.518606239999997,null,null,null,null,null,null,null,null,null,1,null,130,16.25,3.8445549999999997,1.0157344782034345,1.3844800000000002,null,372,46.5,11.001342000000001,2.9065632760898286,3.3753499999999996,null,null,null,55,11.92999999999998,11.279999999999994,10.589999999999987,9.8699999999999815,9.2499999999999947,8.6299999999999866,8.0899999999999981,7.5399999999999885,7.1199999999999974,6.7199999999999847,6.3199999999999932]
[null,null,null,null,null,null,null,null,null,null,null,null,null,null,null,null,null,null,null,null,null,null,null,null,null,null,null,null,null,null,null,null,null,null,null,null,null,null,null,null,null,null,null,null,null,null,null,null,null,null,null,null,null,null,null,null,null,null,null,null,null,null,null,null,null,null,null,null,null,null,null,null,null,null,null,null,null,null,null,null,null,null,null,null,null,null,null,null,null,null,null,null,null,null,null,48,6,1.4195280000000001,0.3750404227212682,0.53800000000000003,null,124,15.5,3.6671140000000002,0.96885442536327615,1.3,null,null,null,null,null,null,null,null,null,null,null,null,48,6,1.4195280000000001,0.3750404227212682,0.53800000000000003,null,null,48,6,1.4195280000000001,0.3750404227212682,0.54176599999999997,null,47.963740540965631,null,48.441924539999995,null,null,null,null,null,null,null,null,null,null,null,134,16.75,3.9628489999999998,1.0469878467635403,1.4164099999999997,null,378,47.25,11.178782999999999,2.9534433289299864,3.42042,null,null,null,60,13.01,12.299999999999994,11.559999999999988,10.769999999999984,10.089999999999998,9.419999999999991,8.8199999999999825,8.2299999999999951,7.7699999999999836,7.329999999999993,6.889999999999981]
[null,null,null,null,null,null,null,null,null,null,null,null,null,null,null,null,null,null,null,null,null,null,null,null,null,null,null,null,null,null,null,null,null,null,null,null,null,null,null,null,null,null,null,null,null,null,null,null,null,null,null,null,null,null,null,null,null,null,null,null,null,null,null,null,null,null,null,null,null,null,null,null,null,null,null,null,null,null,null,null,null,null,null,null,null,null,null,null,null,null,null,null,null,null,null,49,6.125,1.4491015,0.38285376486129458,0.54900000000000004,null,126,15.75,3.726261,0.98448110964332891,1.32,null,null,null,null,null,null,null,null,null,null,null,null,49,6.125,1.4491015,0.38285376486129458,0.54900000000000004,null,null,49,6.125,1.4491015,0.38285376486129458,0.55284299999999997,null,48.982190409099942,null,49.45757467,null,null,null,null,null,null,null,null,null,null,null,138,17.25,4.081143,1.078241215323646,1.4571699999999999,null,384,48,11.356224000000001,3.0003233817701456,3.4622600000000001,null,1]
[null,null,"1.0 mg/L dosage measured as Cl2",null,null,null,null,null,null,null,null,null,null,null," ",null,null,null,null,null,null,null,null,null,null,null,null,null,null,{"$f":"15/0.25","v":60},null,null,null,null,null,null,{"$f":"14/0.5","v":28},null,null,null,null,null,null,{"$f":"14","v":14},null,null,null,null,null,null,null,null,null,null,null,null,null,{"$f":"19/3","v":6.333333333333333},null,null,null,null,null,null,{"$f":"14.5/3","v":4.833333333333333},null,null,null,null,null,null,{"$f":"15/4","v":3.75},null,null,null,null,null,null,{"$f":"12/4","v":3},null,null,null,null,null,null,null,null,null,null,null,null,null,null,null,null,50,6.25,1.478675,0.39066710700132096,0.55900000000000005,null,128,16,3.7854079999999999,1.0001077939233818,1.34,null,null,null,null,null,null,null,null,null,null,null,null,50,6.25,1.478675,0.39066710700132096,0.55900000000000005,null,null,50,6.25,1.478675,0.39066710700132096,0.56347200000000008,null,49.960873216191978,null,50.432147680000007]
[null,null,null,null,null,null,null,null,null,null,null,null,null,null,null,null,null,null,null,null,null,null,null,null,"0.245% Strength NaOCl Solution",null,null,null,null,null,null,null,"0.514% Strength NaOCl Solution",null,null,null,null,null,null,"0.987% Strength NaOCl Solution",null,null,null,null,null,null,"1.47% Strength NaOCl Solution",null,null,null,null,null,"`","1.99% Strength NaOCl Solution",null,null,null,null,null,"`","2.49% Strength NaOCl Solution",null,null,null,null,null,"`","3% Strength NaOCl Solution",null,null,null,null,null,"`","3.57% Strength NaOCl Solution",null,null,null,null,null,null,null,null,null,null,null,null,null,null,null,null,null,null,null,null,51,{"$f":"CR52/8","v":6.375},1.5082484999999999,0.39848044914134739,0.56999999999999995,null,null,null,null,null,null,null,null,null,null,null,null,null,null,null,null,null,null,51,6.375,1.5082484999999999,0.39848044914134739,0.56999999999999995,null,null,51,6.375,1.5082484999999999,0.39848044914134739,0.57455999999999996,null,50.983304717237758,null,51.448806399999995]
[null,null,"15 H2O to 0.10 NaOCl",null,null,"15 H2O to 0.25 NaOCl",null,null,"14 H2O to 0.5 NaOCl",null,null,"14 H2O to1 NaOCl",null,null,null,null,"9 H2O to1 NaOCl",null,null,null,null,null,null,null,"1.0 mg/L NaOCl dosage measured as Cl2",null,null,null,null,null,0.51400000000000001,null,"1.0 mg/L NaOCl dosage measured as Cl2",null,null,null,null,1,null,"1.0 mg/L NaOCl dosage measured as Cl2",null,null,null,null,null,null,"1.0 mg/L NaOCl dosage measured as Cl2",null,null,null,null,null,null,"1.0 mg/L NaOCl dosage measured as Cl2",null,null,null,null,null,null,"1.0 mg/L NaOCl dosage measured as Cl2",null,null,null,null,3.03,null,"1.0 mg/L NaOCl dosage measured as Cl2",null,null,null,null,null,null,"1.0 mg/L NaOCl dosage measured as Cl2",null,null,null,null,null,null,null,null,null,null,null,null,null,null,null,null,null,null,null,null,52,6.5,{"$f":"CR53*29.5735/1000","v":1.5378219999999998},{"$f":"CT53/3.785","v":0.40629379128137377},0.58099999999999996,null,null,null,null,null,null,null,null,null,null,null,null,null,null,null,null,null,null,52,6.5,1.5378219999999998,0.40629379128137377,0.58099999999999996,null,null,52,6.5,1.5378219999999998,0.40629379128137377,0.58564799999999995,null,52.007253122785755,null,52.465465119999998]
[null,null,"0.1% NaOCl Solution",null,null,"0.25% NaOCl Solution",null,null,"0.5% NaOCl Solution",null,null,"1.0% NaOCl Solution",null,null,null,null,"1.47% NaOCl Solution",null,null,null,"10 hr/day","10 Days",null,null,null,null,null,"10 hr/day","10 Days",null,null,null,null,null,null,"10 hr/day","10 Days",null,null,null,null,null,"10 hr/day","10 Days",null,null,null,null,null,"10 hr/day","10 Days",null,null,"1.99% NaOCl Solution",null,null,"10 hr/day","10 Days",null,null,"2.49% NaOCl Solution",null,null,"10 hr/day","10 Days",null,null,"3% NaOCl Solution",null,null,"10 hr/day","10 Days",null,null,"3.57% NaOCl Solution",null,null,"10 hr/day","10 Days",null,null,null,null,null,null,null,null,null,null,null,null,null,null,null,null,53,6.625,1.5673954999999999,0.41410713342140021,0.59199999999999997,null,null,null,null,null,null,null,null,null,null,null,null,null,null,null,null,null,null,53,6.625,1.5673954999999999,0.41410713342140021,0.59199999999999997,null,null,53,6.625,1.5673954999999999,0.41410713342140021,0.59673599999999993,null,53.032718432835985,null,53.482123839999993]
[null,"Flow","Chemical Feed Rate",null,null,"Chemical Feed Rate",null,null,"Chemical Feed Rate",null,null,"Chemical Feed Rate",null,null,null,null,"Chemical Feed Rate",null,null,null,"Usage","10 hr/day",null,"Flow",null,null,null,"Usage","10 hr/day",null,null,"Flow",null,null,null,"Usage","10 hr/day",null,"Flow",null,null,null,"Usage","10 hr/day",null,"Flow",null,null,null,"Usage","10 hr/day",null,"Flow","Chemical Feed Rate",null,null,"Usage","10 hr/day",null,"Flow","Chemical Feed Rate",null,null,"Usage","10 hr/day",null,"Flow","Chemical Feed Rate",null,null,"Usage","10 hr/day",null,"Flow","Chemical Feed Rate",null,null,"Usage","10 hr/day",null,null,null,null,null,null,null,null,null,null,null,null,null,null,null,null,54,6.75,1.5969690000000001,0.4219204755614267,0.60199999999999998,null,null,null,null,null,null,null,null,null,null,null,null,null,null,null,null,null,null,54,6.75,1.5969690000000001,0.4219204755614267,0.60199999999999998,null,null,54,6.75,1.5969690000000001,0.4219204755614267,0.60681600000000002,null,53.966275945879453,null,54.406359040000005]
[null,"gpm","mL/min","L/hr","Gal/hr","mL/min","L/hr","Gal/hr","mL/min","L/hr","Gal/hr","mL/min","L/hr","Gal/hr",null,null,"mL/min","L/hr","Gal/hr",null,"gallons","Usage, gal",null,"gpm",null,null,null,"gallons","Usage, gal",null,null,"gpm",null,null,null,"gallons","Usage, gal",null,"gpm",null,null,null,"gallons","Usage, gal",null,"gpm",null,null,null,"gallons","Usage, gal",null,"gpm","mL/min","L/hr","Gal/hr","gallons","Usage, gal",null,"gpm","mL/min","L/hr","Gal/hr","gallons","Usage, gal",null,"gpm","mL/min","L/hr","Gal/hr","gallons","Usage, gal",null,"gpm","mL/min","L/hr","Gal/hr","gallons","Usage, gal",null,null,null,null,null,null,null,null,null,null,null,null,null,null,null,null,55,6.875,1.6265425,0.42973381770145308,0.61299999999999999,null,null,null,null,null,null,null,null,null,null,null,null,null,null,null,null,null,null,55,6.875,1.6265425,0.42973381770145308,0.61299999999999999,null,null,55,6.875,1.6265425,0.42973381770145308,0.61790400000000001,null,54.994637164524825,null,55.42301776]
[null,10,{"$f":"1*B57*3.785/1000/0.00099*1.049871/1.001","v":40.098908515726698},{"$f":"C57/1000*60","v":2.4059345109436019},{"$f":"D57/3.785","v":0.63564980474071386},{"$f":"1*B57*3.785/1000/0.00245*1.049871/1.003","v":16.170922884408004},{"$f":"F57/1000*60","v":0.97025537306448018},{"$f":"G57/3.785","v":0.25634223859035143},{"$f":"1*B57*3.785/1000/0.00514*1.049871/1.007","v":7.6773127697556811},{"$f":"I57/1000*60","v":0.46063876618534089},{"$f":"J57/3.785","v":0.12170112712954845},{"$f":"1*B57*3.785/1000/0.00987*1.049871/1.013","v":3.9744334142470081},{"$f":"L57/1000*60","v":0.2384660048548205},{"$f":"M57/3.785","v":6.3002907491366042E-2},null,null,{"$f":"1*AT57*3.785/1000/0.0147*1.049871/1.02","v":2.6502345838335337},{"$f":"Q57/1000*60","v":0.15901407503001203},{"$f":"R57/3.785","v":4.2011644657863147E-2},null,{"$f":"E57*10","v":6.3564980474071389},{"$f":"U57*10","v":63.56498047407139},null,10,null,null,null,{"$f":"H57*10","v":2.5634223859035146},{"$f":"AB57*10","v":25.634223859035146},{"$f":"I57/AE57","v":1.0126093825133231},{"$f":"0.3897/$AE$53*AF57","v":7.581712062256809},10,null,null,null,{"$f":"K57*10","v":1.2170112712954846},{"$f":"AJ57*10","v":12.170112712954847},null,10,null,null,null,{"$f":"N57*10","v":0.63002907491366045},{"$f":"AQ57*10","v":6.3002907491366047},null,10,null,null,null,{"$f":"S57*10","v":0.42011644657863145},{"$f":"AX57*10","v":4.2011644657863148},null,10,{"$f":"1*BA57*3.785/1000/0.0199*1.049871/1.027","v":1.9443672769886435},{"$f":"BB57/1000*60","v":0.11666203661931862},{"$f":"BC57/3.785","v":3.0822202541431604E-2},{"$f":"BD57*10","v":0.30822202541431604},{"$f":"BE57*10","v":3.0822202541431603},null,10,{"$f":"1*BH57*3.785/1000/0.0249*1.049871/1.034","v":1.5434122311295475},{"$f":"BI57/1000*60","v":9.2604733867772848E-2},{"$f":"BJ57/3.785","v":2.4466244086597845E-2},{"$f":"BK57*10","v":0.24466244086597844},{"$f":"BL57*10","v":2.4466244086597841},{"$f":"0.4048/$BN$53*BO57","v":1.3359735973597362},10,{"$f":"1*BO57*3.785/1000/0.0303*1.049871/1.042","v":1.2586108635335702},{"$f":"BP57/1000*60","v":7.551665181201421E-2},{"$f":"BQ57/3.785","v":1.9951559263411942E-2},{"$f":"BR57*10","v":0.19951559263411942},{"$f":"BS57*10","v":1.9951559263411942},null,10,{"$f":"1*BV57*3.785/1000/0.0357*1.049871/1.05","v":1.0600938335334134},{"$f":"BW57/1000*60","v":6.3605630012004796E-2},{"$f":"BX57/3.785","v":1.6804657863145257E-2},{"$f":"BY57*10","v":0.16804657863145256},{"$f":"BZ57*10","v":1.6804657863145256},null,null,null,null,22.98977,15.9994,35.453000000000003,null,null,null,null,null,null,null,null,null,56,7,1.6561159999999999,0.43754715984147946,0.624,null,null,null,null,null,null,null,null,null,null,null,null,null,null,null,null,null,null,56,7,1.6561159999999999,0.43754715984147946,0.624,null,null,56,7,1.6561159999999999,0.43754715984147946,0.628992,null,56.024515287672422,null,56.439676480000003]
[null,15,{"$f":"1*B58*3.785/1000/0.00099*1.049871/1.001","v":60.148362773590065},{"$f":"C58/1000*60","v":3.6089017664154039},{"$f":"D58/3.785","v":0.95347470711107107},{"$f":"1*B58*3.785/1000/0.00245*1.049871/1.003","v":24.256384326612007},{"$f":"F58/1000*60","v":1.4553830595967203},{"$f":"G58/3.785","v":0.38451335788552715},{"$f":"1*B58*3.785/1000/0.00514*1.049871/1.007","v":11.515969154633522},{"$f":"I58/1000*60","v":0.69095814927801136},{"$f":"J58/3.785","v":0.18255169069432267},{"$f":"1*B58*3.785/1000/0.00987*1.049871/1.013","v":5.9616501213705133},{"$f":"L58/1000*60","v":0.35769900728223081},{"$f":"M58/3.785","v":9.4504361237049084E-2},null,null,3.975351875750301,{"$f":"Q58/1000*60","v":0.23852111254501804},{"$f":"R58/3.785","v":6.3017466986794723E-2},null,{"$f":"E58*10","v":9.5347470711107114},{"$f":"U58*10","v":95.347470711107121},null,15,null,null,null,3.8451335788552714,{"$f":"AB58*10","v":38.451335788552711},1.0126093825133231,{"$f":"0.3897/$AE$53*AF58","v":11.372568093385214},15,null,null,null,1.8255169069432267,{"$f":"AJ58*10","v":18.255169069432267},null,15,null,null,null,0.94504361237049084,{"$f":"AQ58*10","v":9.4504361237049075},null,15,null,null,null,0.63017466986794723,{"$f":"AX58*10","v":6.3017466986794721},null,15,{"$f":"1*BA58*3.785/1000/0.0199*1.049871/1.027","v":2.916550915482965},{"$f":"BB58/1000*60","v":0.1749930549289779},{"$f":"BC58/3.785","v":4.6233303812147394E-2},{"$f":"BD58*10","v":0.46233303812147397},{"$f":"BE58*10","v":4.6233303812147399},null,15,{"$f":"1*BH58*3.785/1000/0.0249*1.049871/1.034","v":2.3151183466943208},{"$f":"BI58/1000*60","v":0.13890710080165924},{"$f":"BJ58/3.785","v":3.6699366129896764E-2},{"$f":"BK58*10","v":0.36699366129896765},{"$f":"BL58*10","v":3.6699366129896767},{"$f":"0.4048/$BN$53*BO58","v":2.0039603960396044},15,{"$f":"1*BO58*3.785/1000/0.0303*1.049871/1.042","v":1.8879162953003554},{"$f":"BP58/1000*60","v":0.11327497771802132},{"$f":"BQ58/3.785","v":2.9927338895117919E-2},{"$f":"BR58*10","v":0.29927338895117916},{"$f":"BS58*10","v":2.9927338895117916},null,15,{"$f":"1*BV58*3.785/1000/0.0357*1.049871/1.05","v":1.5901407503001201},{"$f":"BW58/1000*60","v":9.5408445018007201E-2},{"$f":"BX58/3.785","v":2.5206986794717886E-2},{"$f":"BY58*10","v":0.25206986794717884},{"$f":"BZ58*10","v":2.5206986794717885},null,null,null,null,null,null,null,null,null,null,null,null,null,null,null,null,57,7.125,1.6856895000000001,0.44536050198150595,0.63400000000000001,null,null,null,null,null,null,null,null,null,null,null,null,null,null,null,null,null,null,57,7.125,1.6856895000000001,0.44536050198150595,0.63400000000000001,null,null,57,7.125,1.6856895000000001,0.44536050198150595,0.639706,null,57.021096477520331,null,57.42204314]
[null,20,80.197817031453397,{"$f":"C59/1000*60","v":4.8118690218872038},1.2712996094814277,32.341845768816007,{"$f":"F59/1000*60","v":1.9405107461289604},0.51268447718070287,15.354625539511362,{"$f":"I59/1000*60","v":0.92127753237068177},0.2434022542590969,7.9488668284940163,{"$f":"L59/1000*60","v":0.476932009709641},0.12600581498273208,null,null,5.3004691676670674,{"$f":"Q59/1000*60","v":0.31802815006002405},8.4023289315726293E-2,null,12.712996094814278,127.12996094814278,null,20,null,null,null,5.1268447718070291,51.268447718070291,1.0126093825133231,15.163424124513618,20,null,null,null,2.4340225425909692,24.340225425909694,null,20,null,null,null,1.2600581498273209,12.600581498273209,null,20,null,null,null,0.84023289315726291,8.4023289315726295,null,20,3.8887345539772871,{"$f":"BB59/1000*60","v":0.23332407323863724},6.1644405082863209E-2,0.61644405082863207,6.1644405082863205,null,20,3.086824462259095,{"$f":"BI59/1000*60","v":0.1852094677355457},4.893248817319569E-2,0.48932488173195687,4.8932488173195683,2.6719471947194724,20,2.5172217270671404,{"$f":"BP59/1000*60","v":0.15103330362402842},3.9903118526823884E-2,0.39903118526823883,3.9903118526823884,null,20,2.1201876670668267,{"$f":"BW59/1000*60","v":0.12721126002400959},3.3609315726290515E-2,0.33609315726290512,3.3609315726290512,null,null,null,null,{"$f":"CF57+CG57+CH57","v":74.442170000000004},{"$f":"CH57*2","v":70.906000000000006},null,{"$f":"CG59/CF59","v":0.95249775765537192},{"$f":"CF59/CG59","v":1.0498712379770401},null,null,null,null,null,null,null,58,7.25,1.715263,0.45317384412153233,0.64400000000000002,null,null,null,null,null,null,null,null,null,null,null,null,null,null,null,null,null,null,58,7.25,1.715263,0.45317384412153233,0.64400000000000002,null,null,58,7.25,1.715263,0.45317384412153233,0.64979599999999993,null,57.960930201413255,null,58.347195239999991]
[null,25,100.24727128931676,6.0148362773590049,1.5891245118517845,40.427307211020008,2.4256384326612004,0.64085559647587853,19.193281924389204,1.1515969154633523,0.30425281782387115,9.9360835356175219,0.59616501213705131,0.15750726872841514,null,null,6.6255864595838334,0.39753518757503004,0.10502911164465786,null,15.891245118517844,158.91245118517844,null,25,null,null,null,6.4085559647587855,64.085559647587857,1.0126093825133231,18.954280155642024,25,null,null,null,3.0425281782387117,30.425281782387117,null,25,null,null,null,1.5750726872841514,15.750726872841515,null,25,null,null,null,1.0502911164465787,10.502911164465786,null,25,4.8609181924716092,0.29165509154829655,7.7055506353579009E-2,0.77055506353579006,7.7055506353579002,null,25,3.8585305778238683,0.23151183466943209,6.1165610216494609E-2,0.61165610216494604,6.1165610216494599,3.3399339933993404,25,3.1465271588339259,0.18879162953003553,4.9878898158529861E-2,0.49878898158529861,4.9878898158529861,null,25,2.6502345838335333,0.159014075030012,4.201164465786314E-2,0.4201164465786314,4.2011644657863139,null,null,null,null,null,null,null,null,null,null,null,null,null,null,null,null,59,7.375,1.7448364999999999,0.46098718626155877,0.65500000000000003,null,null,null,null,null,null,null,null,null,null,null,null,null,null,null,null,null,null,59,7.375,1.7448364999999999,0.46098718626155877,0.65500000000000003,null,null,59,7.375,1.7448364999999999,0.46098718626155877,0.66089500000000001,null,58.996198126343323,null,59.364862549999998]
[null,30,120.29672554718013,7.2178035328308079,1.9069494142221421,48.512768653224015,2.9107661191934406,0.7690267157710543,23.031938309267044,1.3819162985560227,0.36510338138864534,11.923300242741027,0.71539801456446162,0.18900872247409817,null,null,7.950703751500602,0.47704222509003608,0.12603493397358945,null,19.069494142221423,190.69494142221424,null,30,null,null,null,7.6902671577105428,76.902671577105423,1.0126093825133231,22.745136186770427,30,null,null,null,3.6510338138864533,36.510338138864533,null,30,null,null,null,1.8900872247409817,18.900872247409815,null,30,null,null,null,1.2603493397358945,12.603493397358944,null,30,5.8331018309659299,0.34998610985795581,9.2466607624294789E-2,0.92466607624294794,9.2466607624294799,null,30,4.6302366933886416,0.27781420160331849,7.3398732259793528E-2,0.73398732259793531,7.3398732259793533,4.0079207920792088,30,3.7758325906007109,0.22654995543604264,5.9854677790235837E-2,0.59854677790235833,5.9854677790235833,null,30,3.1802815006002403,0.1908168900360144,5.0413973589435772E-2,0.50413973589435768,5.041397358943577,null,null,null,null,null,null,null,null,null,null,null,null,null,null,null,null,60,7.5,1.7744099999999998,0.46880052840158515,0.66600000000000004,null,null,null,null,null,null,null,null,null,null,null,null,null,null,null,null,null,null,60,7.5,1.7744099999999998,0.46880052840158515,0.66600000000000004,null,null,60,7.5,1.7744099999999998,0.46880052840158515,0.67199399999999998,null,60.032985966999682,null,60.382529859999998]
[null,35,140.34617980504345,8.4207707883026064,2.2247743165924985,56.598230095427994,3.3958938057256796,0.89719783506622974,26.870594694144877,1.6122356816486927,0.42595394495341943,13.910516949864526,0.83463101699187159,0.22051017621978111,null,null,9.2758210434173645,0.55654926260504189,0.14704075630252098,null,22.247743165924984,222.47743165924985,null,35,null,null,null,8.9719783506622974,89.719783506622974,1.0126093825133229,26.53599221789883,35,null,null,null,4.2595394495341941,42.595394495341942,null,35,null,null,null,2.2051017621978111,22.051017621978112,null,35,null,null,null,1.4704075630252098,14.704075630252099,null,35,6.8052854694602507,0.40831712816761501,0.10787770889501057,1.0787770889501056,10.787770889501056,null,35,5.4019428089534154,0.32411656853720494,8.5631854303092447E-2,0.85631854303092447,8.5631854303092449,4.6759075907590768,35,4.4051380223674945,0.26430828134204964,6.9830457421941786E-2,0.69830457421941783,6.9830457421941787,null,35,3.710328417366946,0.22261970504201675,5.881630252100839E-2,0.5881630252100839,5.8816302521008392,null,null,null,null,null,null,null,null,null,null,null,null,null,null,null,null,61,7.625,1.8039835,0.47661387054161158,0.67600000000000005,null,null,null,null,null,null,null,null,null,null,null,null,null,null,null,null,null,null,61,7.625,1.8039835,0.47661387054161158,0.67600000000000005,null,null,61,7.625,1.8039835,0.47661387054161158,0.68208400000000002,null,60.976839302730774,null,61.307681960000004]
[null,40,160.39563406290679,9.6237380437744076,2.5425992189628555,64.683691537632015,3.8810214922579207,1.0253689543614057,30.709251079022724,1.8425550647413635,0.48680450851819379,15.897733656988033,0.95386401941928201,0.25201162996546417,null,null,10.600938335334135,0.6360563001200481,0.16804657863145259,null,25.425992189628555,254.25992189628556,null,40,null,null,null,10.253689543614058,102.53689543614058,1.0126093825133231,30.326848249027236,40,null,null,null,4.8680450851819383,48.680450851819387,null,40,null,null,null,2.5201162996546418,25.201162996546419,null,40,null,null,null,1.6804657863145258,16.804657863145259,null,40,7.7774691079545741,0.46664814647727448,0.12328881016572642,1.2328881016572641,12.328881016572641,null,40,6.17364892451819,0.37041893547109139,9.786497634639138E-2,0.97864976346391375,9.7864976346391366,5.3438943894389448,40,5.0344434541342808,0.30206660724805684,7.9806237053647769E-2,0.79806237053647766,7.9806237053647768,null,40,4.2403753341336534,0.25442252004801919,6.7218631452581029E-2,0.67218631452581024,6.7218631452581024,null,null,null,null,null,null,null,null,null,null,null,null,null,null,null,null,62,7.75,1.8335570000000001,0.48442721268163808,0.68700000000000006,null,null,null,null,null,null,null,null,null,null,null,null,null,null,null,null,null,null,62,7.75,1.8335570000000001,0.48442721268163808,0.68700000000000006,null,null,62,7.75,1.8335570000000001,0.48442721268163808,0.69318299999999999,null,62.016528800682792,null,62.325349269999997]
[null,45,180.4450883207702,10.826705299246212,2.8604241213332133,72.769152979836008,4.3661491787901605,1.1535400736565813,34.547907463900565,2.072874447834034,0.54765507208296804,17.884950364111539,1.0730970218466924,0.28351308371114725,null,null,11.9260556272509,0.71556333763505398,0.18905240096038414,null,28.604241213332134,286.04241213332136,null,45,null,null,null,11.535400736565812,115.35400736565812,1.0126093825133231,34.117704280155642,45,null,null,null,5.47655072082968,54.765507208296796,null,45,null,null,null,2.8351308371114725,28.351308371114726,null,45,null,null,null,1.8905240096038414,18.905240096038412,null,45,8.7496527464488967,0.52497916478693374,0.1386999114364422,1.386999114364422,13.869991143644221,null,45,6.9453550400829629,0.41672130240497779,0.1100980983896903,1.1009809838969029,11.00980983896903,6.0118811881188128,45,5.6637488859010663,0.33982493315406398,8.9782016685353752E-2,0.89782016685353749,8.9782016685353749,null,45,4.77042225090036,0.28622533505402159,7.5620960384153654E-2,0.75620960384153657,7.5620960384153655,null,null,null,null,null,null,null,null,null,null,null,null,null,null,null,null,63,{"$f":"CR64/8","v":7.875},1.8631305,0.49224055482166446,0.69699999999999995,null,null,null,null,null,null,null,null,null,null,null,null,null,null,null,null,null,null,63,7.875,1.8631305,0.49224055482166446,0.69699999999999995,null,null,63,7.875,1.8631305,0.49224055482166446,0.70327299999999993,null,62.963020006682648,null,63.250501369999988]
[null,50,200.49454257863351,12.02967255471801,3.178249023703569,80.854614422040015,4.8512768653224008,1.2817111929517571,38.386563848778408,2.3031938309267046,0.60850563564774229,19.872167071235044,1.1923300242741026,0.31501453745683028,null,null,13.251172919167667,0.79507037515006007,0.21005822328931573,null,31.782490237035688,317.82490237035688,null,50,null,null,null,12.817111929517571,128.17111929517571,1.0126093825133231,37.908560311284049,50,null,null,null,6.0850563564774234,60.850563564774234,null,50,null,null,null,3.1501453745683028,31.50145374568303,null,50,null,null,null,2.1005822328931574,21.005822328931572,null,50,9.7218363849432183,0.5833101830965931,0.15411101270715802,1.5411101270715801,15.4111012707158,null,50,7.7170611556477366,0.46302366933886419,0.12233122043298922,1.2233122043298921,12.23312204329892,6.6798679867986808,50,6.2930543176678517,0.37758325906007106,9.9757796317059722E-2,0.99757796317059722,9.9757796317059722,null,50,5.3004691676670666,0.318028150060024,8.4023289315726279E-2,0.84023289315726279,8.4023289315726277,null,null,null,null,null,null,null,null,null,null,null,null,null,null,94,null,64,8,1.8927039999999999,0.50005389696169089,0.70699999999999996,null,null,null,null,null,null,null,null,null,null,null,null,null,null,null,null,null,null,64,8,1.8927039999999999,0.50005389696169089,0.70699999999999996,null,null,64,8,1.8927039999999999,0.50005389696169089,0.71406999999999998,null,63.977222497064588,null,64.240478299999992]
[null,55,220.54399683649683,13.232639810189809,3.4960739260739255,88.940075864244022,5.336404551854641,1.4098823122469328,42.225220233656238,2.5335132140193743,0.66935619921251632,21.859383778358545,1.3115630267015126,0.3465159912025132,null,null,14.576290211084435,0.87457741266506606,0.23106404561824731,null,34.960739260739253,349.60739260739251,null,55,null,null,null,14.098823122469328,140.98823122469329,1.0126093825133229,41.699416342412448,55,null,null,null,6.6935619921251632,66.935619921251629,null,55,null,null,null,3.4651599120251317,34.651599120251319,null,55,null,null,null,2.3106404561824729,23.106404561824728,null,55,10.69402002343754,0.64164120140625247,0.16952211397787384,1.6952211397787385,16.952211397787384,null,55,8.4887672712125095,0.50932603627275064,0.13456434247628815,1.3456434247628815,13.456434247628815,7.3478547854785488,55,6.9223597494346363,0.41534158496607815,0.10973357594876569,1.0973357594876569,10.973357594876569,null,55,5.8305160844337722,0.34983096506602634,9.2425618247298905E-2,0.92425618247298902,9.24256182472989,null,null,null,null,null,null,null,null,null,null,null,null,null,null,null,null,65,8.125,{"$f":"CR66*29.5735/1000","v":1.9222774999999999},{"$f":"CT66/3.785","v":0.50786723910171727},0.71799999999999997,null,null,null,null,null,null,null,null,null,null,null,null,null,null,null,null,null,null,65,8.125,1.9222774999999999,0.50786723910171727,0.71799999999999997,null,null,65,8.125,1.9222774999999999,0.50786723910171727,0.72517999999999994,null,65.022327722478835,null,65.259154199999983]
[null,60,240.59345109436026,14.435607065661616,3.8138988284442843,97.02553730644803,5.8215322383868813,1.5380534315421086,46.063876618534088,2.7638325971120454,0.73020676277729069,23.846600485482053,1.4307960291289232,0.37801744494819634,null,null,15.901407503001204,0.95408445018007215,0.25206986794717889,null,38.138988284442846,381.38988284442848,null,60,null,null,null,15.380534315421086,153.80534315421085,1.0126093825133231,45.490272373540854,60,null,null,null,7.3020676277729066,73.020676277729066,null,60,null,null,null,3.7801744494819634,37.80174449481963,null,60,null,null,null,2.5206986794717889,25.206986794717889,null,60,11.66620366193186,0.69997221971591161,0.18493321524858958,1.8493321524858959,18.49332152485896,null,60,9.2604733867772833,0.55562840320663698,0.14679746451958706,1.4679746451958706,14.679746451958707,8.0158415841584176,60,7.5516651812014217,0.45309991087208529,0.11970935558047167,1.1970935558047167,11.970935558047167,null,60,6.3605630012004806,0.38163378007202881,0.10082794717887154,1.0082794717887154,10.082794717887154,null,null,null,null,null,null,null,null,null,null,null,null,null,null,null,null,66,8.25,1.9518509999999998,0.51568058124174365,0.72799999999999998,null,null,null,null,null,null,null,null,null,null,null,null,null,null,null,null,null,null,66,8.25,1.9518509999999998,0.51568058124174365,0.72799999999999998,null,null,66,8.25,1.9518509999999998,0.51568058124174365,0.73527999999999993,null,65.973744932717437,null,66.185223199999982]
[null,65,260.64290535222358,15.638574321133413,4.1317237308146399,105.11099874865202,6.3066599249191215,1.6662245508372844,49.902533003411925,2.9941519802047152,0.79105732634206471,25.833817192605551,1.550029031556333,0.40951889869387925,null,null,17.226524794917964,1.0335914876950778,0.27307569027611039,null,41.317237308146403,413.172373081464,null,65,null,null,null,16.662245508372845,166.62245508372845,1.0126093825133231,49.281128404669261,65,null,null,null,7.9105732634206474,79.105732634206475,null,65,null,null,null,4.0951889869387923,40.951889869387927,null,65,null,null,null,2.7307569027611041,27.307569027611041,null,65,12.638387300426182,0.75830323802557087,0.20034431651930537,2.0034431651930538,20.034431651930539,null,65,10.032179502342057,0.60193077014052343,0.15903058656288596,1.5903058656288596,15.903058656288596,8.6838283828382856,65,8.1809706129682063,0.49085823677809237,0.12968513521217764,1.2968513521217764,12.968513521217764,null,65,6.8906099179671862,0.41343659507803121,0.10923027611044417,1.0923027611044418,10.923027611044418,null,null,null,null,null,null,null,null,null,null,null,null,null,36,{"$f":"CO68*3","v":108},null,68,8.5,2.0109979999999998,0.53130726552179652,0.749,null,null,null,null,null,null,null,null,null,null,null,null,null,null,null,null,null,null,68,8.5,2.0109979999999998,0.53130726552179652,0.749,null,null,67,8.375,1.9814244999999999,0.52349392338177014,0.74639,null,67.021757569828111,null,67.203899099999987]
[null,70,280.6923596100869,16.841541576605213,4.4495486331849969,113.19646019085599,6.7917876114513591,1.7943956701324595,53.741189388289754,3.2244713632973854,0.85190788990683886,27.821033899729052,1.6692620339837432,0.44102035243956222,null,null,18.551642086834729,1.1130985252100838,0.29408151260504195,null,44.495486331849968,444.95486331849969,null,70,null,null,null,17.943956701324595,179.43956701324595,1.0126093825133229,53.07198443579766,70,null,null,null,8.5190788990683881,85.190788990683885,null,70,null,null,null,4.4102035243956221,44.102035243956223,null,70,null,null,null,2.9408151260504196,29.408151260504198,null,70,13.610570938920501,0.81663425633523001,0.21575541779002114,2.1575541779002112,21.575541779002112,null,70,10.803885617906831,0.64823313707440988,0.17126370860618489,1.7126370860618489,17.12637086061849,9.3518151815181536,70,8.810276044734989,0.52861656268409929,0.13966091484388357,1.3966091484388357,13.966091484388357,null,70,7.4206568347338919,0.4452394100840335,0.11763260504201678,1.1763260504201678,11.763260504201678,null,null,null,null,null,null,null,null,null,null,null,null,null,null,null,null,70,8.75,2.0701450000000001,0.5469339498018494,0.77,null,null,null,null,null,null,null,null,null,null,null,null,null,null,null,null,null,null,70,{"$f":"DO69/8","v":8.75},2.0701450000000001,0.5469339498018494,0.77,null,null,68,8.5,2.0109979999999998,0.53130726552179652,0.75649,null,67.975817881608904,null,68.129968099999999]
[null,75,300.74181386795027,18.044508832077018,4.7673735355553548,121.28192163306002,7.2769152979836011,1.9225667894276357,57.579845773167605,3.4547907463900565,0.91275845347161333,29.80825060685256,1.7884950364111536,0.47252180618524531,null,null,19.876759378751501,1.19260556272509,0.31508733493397356,null,47.673735355553546,476.73735355553549,null,75,null,null,null,19.225667894276356,192.25667894276356,1.0126093825133231,56.862840466926066,75,null,null,null,9.1275845347161333,91.275845347161336,null,75,null,null,null,4.7252180618524529,47.252180618524527,null,75,null,null,null,3.1508733493397356,31.508733493397358,null,75,14.582754577414823,0.87496527464488938,0.23116651906073696,2.3116651906073695,23.116651906073695,null,75,11.575591733471605,0.69453550400829622,0.1834968306494838,1.8349683064948379,18.34968306494838,10.019801980198022,75,9.4395814765017771,0.56637488859010665,0.14963669447558961,1.496366944755896,14.96366944755896,null,75,7.9507037515005994,0.47704222509003597,0.12603493397358942,1.2603493397358942,12.603493397358942,null,null,null,null,null,null,null,null,null,null,null,null,null,null,null,null,72,9,2.129292,0.56256063408190227,0.79,null,null,null,null,null,null,null,null,null,null,null,null,null,null,null,null,null,null,72,9,{"$f":"DO70*29.5735/1000","v":2.129292},{"$f":"DQ70/3.785","v":0.56256063408190227},0.79,null,null,69,{"$f":"DV70/8","v":8.625},{"$f":"DV70*29.5735/1000","v":2.0405715},{"$f":"DX70/3.785","v":0.53912060766182301},0.76760000000000006,null,{"$f":"6.1691*DZ70^2+85.19*DZ70","v":69.026737930416004},null,69.148644000000004]
[null,80,320.79126812581359,19.247476087548815,5.0851984379257109,129.36738307526403,7.7620429845158414,2.0507379087228115,61.418502158045449,3.6851101294827271,0.97360901703638758,31.795467313976065,1.907728038838564,0.50402325993092834,null,null,21.20187667066827,1.2721126002400962,0.33609315726290517,null,50.851984379257111,508.51984379257112,null,80,null,null,null,20.507379087228117,205.07379087228117,1.0126093825133231,60.653696498054472,80,null,null,null,9.7360901703638767,97.360901703638774,null,80,null,null,null,5.0402325993092836,50.402325993092838,null,80,null,null,null,3.3609315726290516,33.609315726290518,null,80,15.554938215909148,0.93329629295454897,0.24657762033145283,2.4657762033145283,24.657762033145282,null,80,12.34729784903638,0.74083787094218279,0.19572995269278276,1.9572995269278275,19.572995269278273,10.68778877887789,80,10.068886908268562,0.60413321449611368,0.15961247410729554,1.5961247410729553,15.961247410729554,null,80,8.4807506682673068,0.50884504009603837,0.13443726290516206,1.3443726290516205,13.443726290516205,null,null,null,null,null,null,null,null,null,null,null,null,null,{"$f":"CP65/CO68","v":2.6111111111111112},null,null,74,9.25,2.1884389999999998,0.57818731836195503,0.81100000000000005,null,null,null,null,null,null,null,null,null,null,null,null,null,null,null,null,null,null,74,9.25,2.1884389999999998,0.57818731836195503,0.81100000000000005,null,null,70,8.75,2.0701450000000001,0.5469339498018494,0.77770000000000006,null,69.983441343739003,null,70.074713000000003]
[null,85,340.84072238367702,20.45044334302062,5.4030233402960688,137.45284451746804,8.2471706710480817,2.178909028017987,65.257158542923293,3.9154295125753977,1.0344595806011618,33.782684021099577,2.0269610412659747,0.53552471367661147,null,null,22.526993962585038,1.3516196377551022,0.35709897959183678,null,54.03023340296069,540.30233402960687,null,85,null,null,null,21.78909028017987,217.89090280179869,1.0126093825133233,64.444552529182872,85,null,null,null,10.344595806011618,103.44595806011618,null,85,null,null,null,5.3552471367661152,53.552471367661155,null,85,null,null,null,3.5709897959183676,35.709897959183678,null,85,16.527121854403468,0.991627311264208,0.26198872160216857,2.6198872160216857,26.198872160216858,null,85,13.119003964601154,0.78714023787606924,0.20796307473608169,2.0796307473608171,20.79630747360817,11.355775577557758,85,10.698192340035348,0.64189154040212082,0.16958825373900152,1.6958825373900153,16.958825373900154,null,85,9.0107975850340143,0.54064785510204083,0.1428395918367347,1.4283959183673469,14.283959183673469,null,null,null,null,null,null,null,null,null,null,null,null,null,null,null,null,76,9.5,2.2475859999999996,0.59381400264200779,0.83199999999999996,null,null,null,null,null,null,null,null,null,null,null,null,null,null,null,null,null,null,76,9.5,2.2475859999999996,0.59381400264200779,0.83199999999999996,null,null,71,8.875,2.0997184999999998,0.55474729194187578,0.78857999999999995,null,71.015436956613229,null,71.072300199999987]
[null,90,360.89017664154039,21.653410598492425,5.7208482426664267,145.53830595967202,8.732298357580321,2.3070801473131626,69.095814927801129,4.1457488956680679,1.0953101441659361,35.769900728223078,2.1461940436933848,0.5670261674222945,null,null,23.8521112545018,1.431126675270108,0.37810480192076829,null,57.208482426664268,572.08482426664273,null,90,null,null,null,23.070801473131624,230.70801473131624,1.0126093825133231,68.235408560311285,90,null,null,null,10.95310144165936,109.53101441659359,null,90,null,null,null,5.670261674222945,56.702616742229452,null,90,null,null,null,3.7810480192076827,37.810480192076824,null,90,17.499305492897793,1.0499583295738675,0.27739982287288439,2.7739982287288441,27.739982287288441,null,90,13.890710080165926,0.83344260480995558,0.2201961967793806,2.2019619677938058,22.01961967793806,12.023762376237626,90,11.327497771802133,0.67964986630812796,0.1795640333707075,1.795640333707075,17.95640333707075,null,90,9.54084450180072,0.57245067010804318,0.15124192076830731,1.5124192076830731,15.124192076830731,null,null,null,null,null,null,null,null,null,null,null,null,null,null,null,null,78,9.75,2.3067329999999999,0.60944068692206077,0.85199999999999998,null,null,null,null,null,null,null,null,null,null,null,null,null,null,null,null,null,null,78,9.75,2.3067329999999999,0.60944068692206077,0.85199999999999998,null,null,72,9,2.129292,0.56256063408190227,0.79869000000000001,null,71.975705253192501,null,71.999286099999992]
[null,95,380.9396308994036,22.856377853964215,6.0386731450367801,153.62376740187602,9.2174260441125622,2.4352512666083386,72.934471312678966,4.3760682787607381,1.1561607077307101,37.757117435346579,2.2654270461207946,0.59852762116797742,null,null,25.177228546418565,1.5106337127851139,0.39911062424969984,null,60.386731450367805,603.86731450367802,null,95,null,null,null,24.352512666083385,243.52512666083385,1.0126093825133231,72.026264591439684,95,null,null,null,11.561607077307102,115.61607077307102,null,95,null,null,null,5.985276211679774,59.852762116797741,null,95,null,null,null,3.9911062424969983,39.911062424969984,null,95,18.471489131392115,1.108289347883527,0.29281092414360022,2.9281092414360019,29.281092414360018,null,95,14.662416195730698,0.87974497174384192,0.2324293188226795,2.324293188226795,23.24293188226795,12.691749174917494,95,11.956803203568915,0.71740819221413488,0.18953981300241343,1.8953981300241343,18.953981300241342,null,95,10.070891418567426,0.60425348511404553,0.15964424969987992,1.5964424969987991,15.964424969987991,null,null,null,null,null,null,null,null,null,null,null,null,null,null,72,null,80,10,2.3658800000000002,0.62506737120211364,0.872,null,null,null,null,null,null,null,null,null,null,null,null,null,null,null,null,null,null,80,10,2.3658800000000002,0.62506737120211364,0.872,null,null,73,9.125,2.1588655000000001,0.57037397622192865,0.80981099999999995,null,73.033456965328412,null,73.018970589999995]
[null,100,400.98908515726703,24.05934510943602,6.356498047407138,161.70922884408003,9.7025537306448015,2.5634223859035141,76.773127697556816,4.6063876618534092,1.2170112712954846,39.744334142470088,2.3846600485482052,0.63002907491366056,null,null,26.502345838335334,1.5901407503001201,0.42011644657863145,null,63.564980474071376,635.64980474071376,null,100,null,null,null,25.634223859035142,256.34223859035143,1.0126093825133231,75.817120622568098,100,null,null,null,12.170112712954847,121.70112712954847,null,100,null,null,null,6.3002907491366056,63.002907491366059,null,100,null,null,null,4.2011644657863148,42.011644657863144,null,100,19.443672769886437,1.1666203661931862,0.30822202541431604,3.0822202541431603,30.822202541431601,null,100,15.434122311295473,0.92604733867772837,0.24466244086597844,2.4466244086597841,24.46624408659784,13.359735973597362,100,12.586108635335703,0.75516651812014213,0.19951559263411944,1.9951559263411944,19.951559263411944,null,100,10.600938335334133,0.63605630012004799,0.16804657863145256,1.6804657863145256,16.804657863145255,null,null,null,null,null,null,null,null,null,null,null,null,null,null,{"$f":"CP74/CO68","v":2},null,82,10.25,2.425027,0.6406940554821664,0.89200000000000002,null,null,null,null,null,null,null,null,null,null,null,null,null,null,null,null,null,null,82,10.25,2.425027,0.6406940554821664,0.89200000000000002,null,null,74,9.25,2.1884389999999998,0.57818731836195503,0.81992100000000001,null,73.996373599905354,null,73.94595649]
[null,"Note:  Mixing ratios are based on using 12.5% NaOCl",null,null,null,null,null,null,null,null,null,null,null,null,null,null,null,null,null,null,null,null,null,null,null,null,null,null,null,null,null,null,null,null,null,null,null,null,null,null,null,null,null,null,null,null,null,null,null,null,null,null,null,null,null,null,null,null,null,null,null,null,null,null,null,null,null,null,null,null,null,null,null,null,null,null,null,null,null,null,null,null,null,null,null,null,null,null,null,null,null,null,null,null,null,84,10.5,2.4841739999999999,0.65632073976221927,0.91300000000000003,null,null,null,null,null,null,null,null,null,null,null,null,null,null,null,null,null,null,84,10.5,2.4841739999999999,0.65632073976221927,0.91300000000000003,null,null,75,9.375,2.2180124999999999,0.58600066050198152,0.83003099999999985,null,74.960551347814487,null,74.872942389999977]
[null,null,null,null,null,null,null,null,null,null,null,null,null,null,null,null,null,null,null,null,null,null,null,null,null,"%","Ratio","Flow","mL/min",null,null,0.51400000000000001,null,null,null,null,null,null,0.98699999999999999,null,null,null,null,null,null,1.47,null,null,null,null,null,null,1.99,null,null,null,null,null,null,2.4900000000000002,null,null,null,null,null,null,3.03,null,null,null,null,null,null,1.05,null,null,null,null,null,null,null,null,null,null,null,null,null,null,null,null,null,null,null,null,null,86,10.75,2.5433209999999997,0.67194742404227203,0.93200000000000005,null,null,null,null,null,null,null,null,null,null,null,null,null,null,null,null,null,null,86,10.75,2.5433209999999997,0.67194742404227203,0.93200000000000005,null,null,76,9.5,2.2475859999999996,0.59381400264200779,0.8411519999999999,null,76.022603456413279,null,75.89262687999998]
[null,null,"0.099% NaOCl Solution",null,null,"0.245% NaOCl Solution",null,null,"0.514% NaOCl Solution",null,null,"0.987% NaOCl Solution",null,null,null,null,null,null,null,null,null,null,null,null,null,null,null,null,null,null,null,null,null,null,null,null,null,null,null,null,null,null,null,null,null,null,null,null,null,null,null,null,null,null,null,null,null,null,null,null,null,null,null,null,null,null,null,null,null,null,null,null,null,null,null,null,null,null,null,null,null,null,null,null,null,null,null,null,null,null,null,null,null,null,null,88,11,2.602468,0.68757410832232491,0.95299999999999996,null,null,null,null,null,null,null,null,null,null,null,null,null,null,null,null,null,null,88,11,2.602468,0.68757410832232491,0.95299999999999996,null,null,77,9.625,2.2771594999999998,0.60162734478203428,0.85126199999999985,null,76.989429542320096,null,76.819612779999986]
[null,null,null,null,null,null,null,null,null,null,null,null,null,null,null,null,null,null,null,null,null,null,null,0.245,null,{"$f":"10.5846/(AA79^0.91998)","v":0.1053692803312906},150,25,{"$f":"AB79*(AA79^0.92)*0.0367","v":92.174338867499188},null,null,null,null,null,null,null,null,null,null,null,null,null,null,null,null,null,null,null,null,null,null,null,null,null,null,null,null,null,null,null,null,null,null,null,null,null,null,null,null,null,null,null,null,null,null,null,null,null,null,null,null,null,null,null,null,null,null,null,null,null,null,null,null,null,null,90,11.25,2.6616149999999998,0.70320079260237778,0.97299999999999998,null,null,null,null,null,null,null,null,null,null,null,null,null,null,null,null,null,null,90,11.25,2.6616149999999998,0.70320079260237778,0.97299999999999998,null,null,78,9.75,2.3067329999999999,0.60944068692206077,0.86137199999999992,null,77.957516741559118,null,77.746598679999991]
[null,null,null,null,null,null,null,null,null,null,null,null,null,null,null,null,null,null,null,null,null,null,null,null,null,null,null,0,null,null,null,null,null,null,null,null,null,null,null,null,null,null,null,null,null,null,null,null,null,null,null,null,null,null,null,null,null,null,null,null,null,null,null,null,null,null,null,null,null,null,null,null,null,null,null,null,null,null,null,null,null,null,null,null,null,null,null,null,null,null,null,null,null,null,null,92,11.5,2.7207619999999997,0.71882747688243054,0.99299999999999999,null,null,null,null,null,null,null,null,null,null,null,null,null,null,null,null,null,null,92,11.5,2.7207619999999997,0.71882747688243054,0.99299999999999999,null,null,79,9.875,2.3363065000000001,0.61725402906208715,0.87234400000000001,null,79.009572089604205,null,78.752621359999992]
[null,null,null,null,null,null,null,null,null,null,null,null,null,null,null,null,null,null,null,null,null,null,null,null,null,null,null,null,null,null,null,null,null,null,null,null,null,null,null,null,null,null,null,null,null,null,null,null,null,null,null,null,null,null,null,null,null,null,null,null,null,null,null,null,null,null,null,null,null,null,null,null,null,null,null,null,null,null,null,null,null,null,null,null,null,null,null,null,null,null,null,null,null,null,null,93,11.625,2.7503355000000003,0.72664081902245714,1,null,null,null,null,null,null,null,null,null,null,null,null,null,null,null,null,null,null,93,11.625,2.7503355000000003,0.72664081902245714,1,null,null,80,10,2.3658800000000002,0.62506737120211364,0.88246400000000003,null,79.981249820256153,null,79.68052415999999]
[null,null,null,null,null,null,null,null,null,null,null,null,null,null,null,null,null,null,null,null,null,null,null,null,null,null,null,null,null,null,null,null,null,null,null,null,null,null,null,null,null,null,null,null,null,null,null,null,null,null,null,null,null,null,null,null,null,null,null,null,null,null,null,null,null,null,null,null,null,null,null,null,null,null,null,null,null,null,null,null,null,null,null,null,null,null,null,null,null,null,null,null,null,null,null,96,12,2.8390560000000002,0.75008084544253639,1.03,null,null,null,null,null,null,null,null,null,null,null,null,null,null,null,null,null,null,96,12,2.8390560000000002,0.75008084544253639,1.03,null,null,81,10.125,2.3954534999999999,0.63288071334214002,0.89258400000000004,null,80.954191160258162,null,80.608426960000003]
[null,null,null,null,null,null,null,null,null,null,null,null,null,null,null,null,null,null,null,null,null,null,null,null,null,null,null,null,null,null,null,null,null,null,null,null,null,null,null,null,null,null,null,null,null,null,null,null,null,null,null,null,null,null,null,null,null,null,null,null,null,null,null,null,null,null,null,null,null,null,null,null,null,null,null,null,null,null,null,null,null,null,null,null,null,null,null,null,null,null,null,null,null,null,null,98,12.25,2.8982030000000001,0.76570752972258915,1.05,null,null,null,null,null,null,null,null,null,null,null,null,null,null,null,null,null,null,98,12.25,2.8982030000000001,0.76570752972258915,1.05,null,null,82,10.25,2.425027,0.6406940554821664,0.90270400000000006,null,81.928396109610276,null,81.536329760000001]
[null,null,null,null,null,null,null,null,null,null,null,null,null,null,null,null,null,null,null,null,null,null,null,null,null,null,null,null,null,null,null,null,null,null,null,null,null,null,null,null,null,null,null,null,null,null,null,null,null,null,null,null,null,null,null,null,null,null,null,null,null,null,null,null,null,null,null,null,null,null,null,null,null,null,null,null,null,null,null,null,null,null,null,null,null,null,null,null,null,null,null,null,null,null,null,100,12.5,2.9573499999999999,0.78133421400264191,1.07,null,null,null,null,null,null,null,null,null,null,null,null,null,null,null,null,null,null,100,12.5,2.9573499999999999,0.78133421400264191,1.07,null,null,83,10.375,2.4546005000000002,0.64850739762219289,0.91383599999999998,null,83.001481022696908,null,{"$f":"91.69*DZ84-1.2326","v":82.557022839999988}]
[null,null,null,null,null,null,null,null,null,null,null,null,null,null,null,null,null,null,null,null,null,null,null,null,null,null,null,null,null,null,null,null,null,null,null,null,null,null,null,null,null,null,null,null,null,null,null,null,null,null,null,null,null,null,null,null,null,null,null,null,null,null,null,null,null,null,null,null,null,null,null,null,null,null,null,null,null,null,null,null,null,null,null,null,null,null,null,null,null,null,null,null,null,null,null,102,12.75,3.0164969999999998,0.79696089828269479,1.0900000000000001,null,null,null,null,null,null,null,null,null,null,null,null,null,null,null,null,null,null,102,12.75,3.0164969999999998,0.79696089828269479,1.0900000000000001,null,null,84,10.5,2.4841739999999999,0.65632073976221927,0.923956,null,83.978339551684172,null,83.484925639999986]
[null,null,null,null,null,null,null,null,null,null,null,null,null,null,null,null,null,null,null,null,null,null,null,null,null,null,null,null,null,null,null,null,null,null,null,null,null,null,null,null,null,null,null,null,null,null,null,null,null,null,null,null,null,null,null,null,null,null,null,null,null,null,null,null,null,null,null,null,null,null,null,null,null,null,null,null,null,null,null,null,null,null,null,null,null,null,null,null,null,null,null,null,null,null,null,104,13,3.0756439999999996,0.81258758256274755,1.1100000000000001,null,null,null,null,null,null,null,null,null,null,null,null,null,null,null,null,null,null,104,13,3.0756439999999996,0.81258758256274755,1.1100000000000001,null,null,85,10.625,2.5137475,0.66413408190224565,0.93407600000000002,null,84.956461690021527,null,84.412828439999998]
[null,null,null,null,null,null,null,null,null,null,null,null,null,null,null,null,null,null,null,null,null,null,null,null,null,null,null,null,null,null,null,null,null,null,null,null,null,null,null,null,null,null,null,null,null,null,null,null,null,null,null,null,null,null,null,null,null,null,null,null,null,null,null,null,null,null,null,null,null,null,null,null,null,null,null,null,null,null,null,null,null,null,null,null,null,null,null,null,null,null,null,null,null,null,null,106,13.25,3.1347909999999999,0.82821426684280042,1.1299999999999999,null,null,null,null,null,null,null,null,null,null,null,null,null,null,null,null,null,null,106,13.25,3.1347909999999999,0.82821426684280042,1.1299999999999999,null,null,86,10.75,2.5433209999999997,0.67194742404227203,0.94411599999999996,null,85.928100302864195,null,85.333396039999982]
[null,null,null,null,null,null,null,null,null,null,null,null,null,null,null,null,null,null,null,null,null,null,null,null,null,null,null,null,null,null,null,null,null,null,null,null,null,null,null,null,null,null,null,null,null,null,null,null,null,null,null,null,null,null,null,null,null,null,null,null,null,null,null,null,null,null,null,null,null,null,null,null,null,null,null,null,null,null,null,null,null,null,null,null,null,null,null,null,null,null,null,null,null,null,null,108,13.5,3.1939380000000002,0.8438409511228534,1.1499999999999999,null,null,null,null,null,null,null,null,null,null,null,null,null,null,null,null,null,null,108,13.5,3.1939380000000002,0.8438409511228534,1.1499999999999999,null,null,87,10.875,2.5728944999999999,0.67976076618229853,0.95424599999999982,null,86.909709307058037,null,86.262215739999974]
[null,null,null,null,null,null,null,null,null,null,null,null,null,null,null,null,null,null,null,null,null,null,null,null,null,null,null,null,null,null,null,null,null,null,null,null,null,null,null,null,null,null,null,null,null,null,null,null,null,null,null,null,null,null,null,null,null,null,null,null,null,null,null,null,null,null,null,null,null,null,null,null,null,null,null,null,null,null,null,null,null,null,null,null,null,null,null,null,null,null,null,null,null,null,null,110,13.75,3.253085,0.85946763540290616,1.17,null,null,null,null,null,null,null,null,null,null,null,null,null,null,null,null,null,null,110,13.75,3.253085,0.85946763540290616,1.17,null,null,88,11,2.602468,0.68757410832232491,0.96538899999999983,null,87.990941566221366,null,87.283917409999972]
[null,null,null,null,null,null,null,null,null,null,null,null,null,null,null,null,null,null,null,null,null,null,null,null,null,null,null,null,null,null,null,null,null,null,null,null,null,null,null,null,null,null,null,null,null,null,null,null,null,null,null,null,null,null,null,null,null,null,null,null,null,null,null,null,null,null,null,null,null,null,null,null,null,null,null,null,null,null,null,null,null,null,null,null,null,null,null,null,null,null,null,null,null,null,null,112,14,3.3122319999999998,0.87509431968295892,1.19,null,null,null,null,null,null,null,null,null,null,null,null,null,null,null,null,null,null,112,14,3.3122319999999998,0.87509431968295892,1.19,null,null,89,11.125,2.6320414999999997,0.69538745046235129,0.97551899999999991,null,88.975209396869943,null,88.212737109999992]
[null,null,null,null,null,null,null,null,null,null,null,null,null,null,null,null,null,null,null,null,null,null,null,null,null,null,null,null,null,null,null,null,null,null,null,null,null,null,null,null,null,null,null,null,null,null,null,null,null,null,null,null,null,null,null,null,null,null,null,null,null,null,null,null,null,null,null,null,null,null,null,null,null,null,null,null,null,null,null,null,null,null,null,null,null,null,null,null,null,null,null,null,null,null,null,114,14.25,3.3713790000000001,0.8907210039630119,1.21,null,null,null,null,null,null,null,null,null,null,null,null,null,null,null,null,null,null,114,14.25,3.3713790000000001,0.8907210039630119,1.21,null,null,90,11.25,2.6616149999999998,0.70320079260237778,0.98564899999999989,null,89.960743335354081,null,89.141556809999983]
[null,null,null,null,null,null,null,null,null,null,null,null,null,null,null,null,null,null,null,null,null,null,null,null,null,null,null,null,null,null,null,null,null,null,null,null,null,null,null,null,null,null,null,null,null,null,null,null,null,null,null,null,null,null,null,null,null,null,null,null,null,null,null,null,null,null,null,null,null,null,null,null,null,null,null,null,null,null,null,null,null,null,null,null,null,null,null,null,null,null,null,null,null,null,null,116,14.5,3.430526,0.90634768824306466,1.23,null,null,null,null,null,null,null,null,null,null,null,null,null,null,null,null,null,null,116,14.5,3.430526,0.90634768824306466,1.23,null,null,91,11.375,2.6911884999999995,0.71101413474240405,0.99577899999999986,null,90.947543381673796,null,90.070376509999974]
[null,null,null,null,null,null,null,null,null,null,null,null,null,null,null,null,null,null,null,null,null,null,null,null,null,null,null,null,null,null,null,null,null,null,null,null,null,null,null,null,null,null,null,null,null,null,null,null,null,null,null,null,null,null,null,null,null,null,null,null,null,null,null,null,null,null,null,null,null,null,null,null,null,null,null,null,null,null,null,null,null,null,null,null,null,null,null,null,null,null,null,null,null,null,null,118,14.75,3.4896729999999998,0.92197437252311754,1.24,null,null,null,null,null,null,null,null,null,null,null,null,null,null,null,null,null,null,118,14.75,3.4896729999999998,0.92197437252311754,1.24,null,null,92,11.5,2.7207619999999997,0.71882747688243054,1.0059089999999999,null,91.935609535829116,null,90.999196209999994]
[null,null,null,null,null,null,null,null,null,null,null,null,null,null,null,null,null,null,null,null,null,null,null,null,null,null,null,null,null,null,null,null,null,null,null,null,null,null,null,null,null,null,null,null,null,null,null,null,null,null,null,null,null,null,null,null,null,null,null,null,null,null,null,null,null,null,null,null,null,null,null,null,null,null,null,null,null,null,null,null,null,null,null,null,null,null,null,null,null,null,null,null,null,null,null,120,15,3.5488199999999996,0.9376010568031703,1.26,null,null,null,null,null,null,null,null,null,null,null,null,null,null,null,null,null,null,120,15,3.5488199999999996,0.9376010568031703,1.26,null,null,93,11.625,2.7503355000000003,0.72664081902245714,1.014,null,null,{"$f":"9.2551*DZ94^2+77.091*DZ94+5.6136","v":93.299930799600006}]
[null,null,null,null,null,null,null,null,null,null,null,null,null,null,null,null,null,null,null,null,null,null,null,null,null,null,null,null,null,null,null,null,null,null,null,null,null,null,null,null,null,null,null,null,null,null,null,null,null,null,null,null,null,null,null,null,null,null,null,null,null,null,null,null,null,null,null,null,null,null,null,null,null,null,null,null,null,null,null,null,null,null,null,null,null,null,null,null,null,null,null,null,null,null,null,122,15.25,3.6079669999999999,0.95322774108322317,1.28,null,null,null,null,null,null,null,null,null,null,null,null,null,null,null,null,null,null,122,15.25,3.6079669999999999,0.95322774108322317,1.28,null,null,94,11.75,2.779909,0.73445416116248341,1.0241400000000001,null,null,{"$f":"9.2551*DZ95^2+77.091*DZ95+5.6136","v":94.272906281271958}]
[null,null,null,null,null,null,null,null,null,null,null,null,null,null,null,null,null,null,null,null,null,null,null,null,null,null,null,null,null,null,null,null,null,null,null,null,null,null,null,null,null,null,null,null,null,null,null,null,null,null,null,null,null,null,null,null,null,null,null,null,null,null,null,null,null,null,null,null,null,null,null,null,null,null,null,null,null,null,null,null,null,null,null,null,null,null,null,null,null,null,null,null,null,null,null,124,15.5,3.6671140000000002,0.96885442536327615,1.3,null,null,null,null,null,null,null,null,null,null,null,null,null,null,null,null,null,null,124,15.5,3.6671140000000002,0.96885442536327615,1.3,null,null,95,11.875,2.8094825000000001,0.7422675033025099,1.0342800000000001,null,null,{"$f":"9.2551*DZ96^2+77.091*DZ96+5.6136","v":95.247784974303855}]
[null,null,null,null,null,null,null,null,null,null,null,null,null,null,null,null,null,null,null,null,null,null,null,null,null,null,null,null,null,null,null,null,null,null,null,null,null,null,null,null,null,null,null,null,null,null,null,null,null,null,null,null,null,null,null,null,null,null,null,null,null,null,null,null,null,null,null,null,null,null,null,null,null,null,null,null,null,null,null,null,null,null,null,null,null,null,null,null,null,null,null,null,null,null,null,126,15.75,3.726261,0.98448110964332891,1.32,null,null,null,null,null,null,null,null,null,null,null,null,null,null,null,null,null,null,126,15.75,3.726261,0.98448110964332891,1.32,null,null,96,12,2.8390560000000002,0.75008084544253639,1.0444200000000001,null,null,96.224566878695654]
[null,null,null,null,null,null,null,null,null,null,null,null,null,null,null,null,null,null,null,null,null,null,null,null,null,null,null,null,null,null,null,null,null,null,null,null,null,null,null,null,null,null,null,null,null,null,null,null,null,null,null,null,null,null,null,null,null,null,null,null,null,null,null,null,null,null,null,null,null,null,null,null,null,null,null,null,null,null,null,null,null,null,null,null,null,null,null,null,null,null,null,null,null,null,null,128,16,3.7854079999999999,1.0001077939233818,1.34,null,null,null,null,null,null,null,null,null,null,null,null,null,null,null,null,null,null,128,16,3.7854079999999999,1.0001077939233818,1.34,null,null,97,12.125,2.8686294999999999,0.75789418758256266,1.0545599999999999,null,null,97.203251994447356]
[null,null,null,null,null,null,null,null,null,null,null,null,null,null,null,null,null,null,null,null,null,null,null,null,null,null,null,null,null,null,null,null,null,null,null,null,null,null,null,null,null,null,null,null,null,null,null,null,null,null,null,null,null,null,null,null,null,null,null,null,null,null,null,null,null,null,null,null,null,null,null,null,null,null,null,null,null,null,null,null,null,null,null,null,null,null,null,null,null,null,null,null,null,null,null,null,null,null,null,null,null,null,null,null,null,null,null,null,null,null,null,null,null,null,null,null,null,null,null,null,null,null,null,null,null,98,12.25,2.8982030000000001,0.76570752972258915,1.0647,null,null,98.183840321559003]
[null,null,null,null,null,null,null,null,null,null,null,null,null,null,null,null,null,null,null,null,null,null,null,null,null,null,null,null,null,null,null,null,null,null,null,null,null,null,null,null,null,null,null,null,null,null,null,null,null,null,null,null,null,null,null,null,null,null,null,null,null,null,null,null,null,null,null,null,null,null,null,null,null,null,null,null,null,null,null,null,null,null,null,null,null,null,null,null,null,null,null,null,null,null,null,null,null,null,null,null,null,null,null,null,null,null,null,null,null,null,null,null,null,null,null,null,null,null,null,null,null,null,null,null,null,99,12.375,2.9277764999999998,0.77352087186261553,1.07484,null,null,99.166331860030553]
[null,null,null,null,null,null,null,null,null,null,null,null,null,null,null,null,null,null,null,null,null,null,null,null,null,null,null,null,null,null,null,null,null,null,null,null,null,null,null,null,null,null,null,null,null,null,null,null,null,null,null,null,null,null,null,null,null,null,null,null,null,null,null,null,null,null,null,null,null,null,null,null,null,null,null,null,null,null,null,null,null,null,null,null,null,null,null,null,null,null,null,null,null,null,null,null,null,null,null,null,null,null,null,null,null,null,null,null,null,null,null,null,null,null,null,null,null,null,null,null,null,null,null,null,null,100,12.5,2.9573499999999999,0.78133421400264191,1.0849800000000001,null,null,100.15072660986205]
[null,null,null,null,9.2999999999999999E-2,0.151,null,null,null,null,null,null,null,null,null,null,null,null,null,null,null,null,null,null,null,null,null,null,null,null,null,"%",null,null,null,null,null,null,null,null,null,null,null,null,null,null,null,null,null,null,null,null,null,null,null,null,null,null,null,null,null,null,null,null,null,null,null,null,null,null,null,null,null,null,null,null,null,null,null,null,null,null,null,null,null,null,null,null,null,null,null,null,null,null,null,null,null,null,null,null,null,null,null,null,null,null,null,null,null,null,null,null,null,null,null,null,null,null,null,null,null,null,null,null,null,101,12.625,2.9869235000000001,0.7891475561426684,1.0962000000000001,null,null,101.24218620764401]
[null,null,null,null,1.0009999999999999,1.002,null,null,null,null,null,null,null,null,null,null,null,null,null,null,null,null,null,null,null,null,null,null,null,null,null,9.9000000000000005E-2,4.0099,null,{"$f":"AF103^1.013","v":9.6067934242250394E-2},null,null,null,null,null,null,null,null,null,null,null,null,null,null,null,null,null,null,null,null,null,null,null,null,null,null,null,null,null,null,null,null,null,null,null,null,null,null,null,null,null,null,null,null,null,null,null,null,null,null,null,null,null,null,null,null,null,null,null,null,null,null,null,null,null,null,null,null,null,null,null,null,null,null,null,null,null,null,null,null,null,null,null,null,null,null,null,null,null,null,102,12.75,3.0164969999999998,0.79696089828269479,1.1063499999999999,null,null,102.23156578576975]
[null,null,null,null,null,null,null,null,null,null,null,null,null,null,null,null,null,null,null,null,null,null,null,null,null,null,null,null,null,null,null,0.245,1.6171,null,{"$f":"AF104^1.013","v":0.24056101275366182},null,null,null,null,null,null,null,null,null,null,null,null,null,null,null,null,null,null,null,null,null,null,null,null,null,null,null,null,null,null,null,null,null,null,null,null,null,null,null,null,null,null,null,null,null,null,null,null,null,null,null,null,null,null,null,null,null,null,null,null,null,null,null,null,null,null,null,null,null,null,null,null,null,null,null,null,null,null,null,null,null,null,null,null,null,null,null,null,null,null,103,12.875,3.0460704999999999,0.80477424042272117,1.1165,null,null,103.22285233097502]
[null,null,null,"Chemical Feed Rate (mL/min) for a Target Dose of 1 mg/L as Cl2",null,null,null,null,null,null,null,null,null,null,null,null,null,null,null,null,null,null,null,null,null,null,null,null,null,null,null,0.51400000000000001,0.76770000000000005,null,0.50957209762678946,null,null,null,null,null,null,null,null,null,null,null,null,null,null,null,null,null,null,null,null,null,null,null,null,null,null,null,null,null,null,null,null,null,null,null,null,null,null,null,null,null,null,null,null,null,null,null,null,null,null,null,null,null,null,null,null,null,null,null,null,null,null,null,null,null,null,null,null,null,null,null,null,null,null,null,null,null,null,null,null,null,null,null,null,null,null,null,null,null,null,104,13,3.0756439999999996,0.81258758256274755,1.1266499999999999,null,null,104.21604584325975]
[null,null,"Flow","Based on %NaOCl Solution Strength",null,null,null,null,null,null,null,null,null,null,null,null,null,null,null,null,null,null,null,null,null,null,null,null,null,null,null,0.98699999999999999,0.39739999999999998,null,0.98683211757083777,null,null,null,null,null,null,null,null,null,null,null,null,null,null,null,null,null,null,null,null,null,null,null,null,null,null,null,null,null,null,null,null,null,null,null,null,null,null,null,null,null,null,null,null,null,null,null,null,null,null,null,null,null,null,null,null,null,null,null,null,null,null,null,null,null,null,null,null,null,null,null,null,null,null,null,null,null,null,null,null,null,null,null,null,null,null,null,null,null,null,105,13.125,3.1052174999999997,0.82040092470277404,1.1368,null,null,105.211146322624]
[null,null,"gpm",4.6999999999999999E-4,9.3000000000000005E-4,1.5100000000000001E-3,2.0699999999999998E-3,2.5300000000000001E-3,2.97E-3,3.64E-3,4.5199999999999997E-3,5.4900000000000001E-3,6.6600000000000001E-3,8.7200000000000003E-3,0.01,null,null,7.9000000000000008E-3,null,null,null,null,null,null,null,null,null,null,null,null,null,1.47,0.26500000000000001,null,1.4773808321718991,null,null,null,null,null,null,null,null,"%",null,null,null,null,null,null,null,null,null,null,null,null,null,null,null,null,null,null,null,null,null,null,null,null,null,null,null,null,null,null,null,null,null,null,null,null,null,null,null,null,null,null,null,null,null,null,null,null,null,null,null,null,null,null,null,null,null,null,null,null,null,null,null,null,null,null,null,null,null,null,null,null,null,null,null,null,null,null,null,null,null,106,13.25,3.1347909999999999,0.82821426684280042,1.1469499999999997,null,null,106.20815376906772]
[null,null,10,{"$f":"1*$C108*3.785/1000/0.00047*1.049871/1.001","v":84.463658362913691},{"$f":"1*$C108*3.785/1000/0.00093*1.049871/1.001","v":42.685934871580031},{"$f":"1*$C108*3.785/1000/0.00151*1.049871/1.002","v":26.263775330134436},{"$f":"1*$C108*3.785/1000/0.00207*1.049871/1.003","v":19.139498099903197},{"$f":"1*$C108*3.785/1000/0.00253*1.049871/1.003","v":15.659589354466247},{"$f":"1*$C108*3.785/1000/0.00297*1.049871/1.004","v":13.32636368666747},{"$f":"1*$C108*3.785/1000/0.00364*1.049871/1.005","v":10.862614769558803},{"$f":"1*$C108*3.785/1000/0.00452*1.049871/1.006","v":8.7390738203522247},{"$f":"1*$C108*3.785/1000/0.00549*1.049871/1.007","v":7.1878666004634244},{"$f":"1*$C108*3.785/1000/0.00666*1.049871/1.009","v":5.9133887132920835},{"$f":"1*$C108*3.785/1000/0.00872*1.049871/1.012","v":4.5030298516426726},{"$f":"1*$C108*3.785/1000/0.01*1.049871/1.014","v":3.9188971745562129},null,null,{"$f":"1*$C108*3.785/1000/0.0079*1.049871/1.011","v":4.9753493032340463},null,null,null,null,null,null,null,null,null,null,null,null,null,1.99,0.19439999999999999,null,2.0078819073913787,null,null,null,null,null,null,null,null,0.25,null,{"$f":"(0.4048*AR108^(-0.985))*AR111","v":39.646933646318807},null,{"$f":"1/AR108","v":4},{"$f":"1/(AR108^0.985)","v":3.9176811903477078},null,null,null,null,null,null,null,null,null,null,null,null,null,null,null,null,null,null,null,null,null,null,null,null,null,null,null,null,null,null,null,null,null,null,null,null,null,null,null,null,null,null,null,null,null,null,null,null,null,null,null,null,null,null,null,null,null,null,null,null,null,null,null,null,null,null,null,null,null,null,null,null,null,null,null,null,107,13.375,3.1643645,0.83602760898282691,1.1570999999999998,null,null,107.20706818259097]
[null,null,15,{"$f":"1*$C109*3.785/1000/0.00047*1.049871/1.001","v":126.69548754437055},{"$f":"1*$C109*3.785/1000/0.00093*1.049871/1.001","v":64.028902307370075},{"$f":"1*$C109*3.785/1000/0.00151*1.049871/1.002","v":39.395662995201654},{"$f":"1*$C109*3.785/1000/0.00207*1.049871/1.003","v":28.709247149854789},{"$f":"1*$C109*3.785/1000/0.00253*1.049871/1.003","v":23.489384031699373},{"$f":"1*$C109*3.785/1000/0.00297*1.049871/1.004","v":19.989545530001209},{"$f":"1*$C109*3.785/1000/0.00364*1.049871/1.005","v":16.293922154338205},{"$f":"1*$C109*3.785/1000/0.00452*1.049871/1.006","v":13.108610730528337},{"$f":"1*$C109*3.785/1000/0.00549*1.049871/1.007","v":10.781799900695136},{"$f":"1*$C109*3.785/1000/0.00666*1.049871/1.009","v":8.8700830699381257},{"$f":"1*$C109*3.785/1000/0.00872*1.049871/1.012","v":6.7545447774640097},{"$f":"1*$C109*3.785/1000/0.01*1.049871/1.014","v":5.8783457618343196},null,null,7.4630239548510691,null,null,null,null,null,null,null,null,null,null,null,null,null,2.4900000000000002,0.15429999999999999,null,2.5197063972625031,null,null,null,null,null,null,null,null,null,null,null,null,null,null,null,null,null,null,null,null,null,null,null,null,null,null,null,null,null,null,null,null,null,null,null,null,null,null,null,null,null,null,null,null,null,null,null,null,null,null,null,null,null,null,null,null,null,null,null,null,null,null,null,null,null,null,null,null,null,null,null,null,null,null,null,null,null,null,null,null,null,null,null,null,null,null,null,null,null,null,108,13.5,3.1939380000000002,0.8438409511228534,1.1683999999999999,null,null,108.32140338865598]
[null,null,20,168.92731672582738,85.371869743160062,52.527550660268872,38.278996199806393,31.319178708932494,26.65272737333494,21.725229539117606,17.478147640704449,14.375733200926849,11.826777426584167,9.0060597032853451,7.8377943491124258,null,null,9.9506986064680927,null,null,null,null,null,null,null,null,null,null,null,null,null,3.03,0.12590000000000001,null,3.0739824427720297,null,null,null,null,null,null,null,null,"Flow",null,null,null,null,null,null,null,null,null,null,null,null,null,null,null,null,null,null,null,null,null,null,null,null,null,null,null,null,null,null,null,null,null,null,null,null,null,null,null,null,null,null,null,null,null,null,null,null,null,null,null,null,null,null,null,null,null,null,null,null,null,null,null,null,null,null,null,null,null,null,null,null,null,null,null,null,null,null,null,null,null,109,13.625,3.2235114999999999,0.85165429326287967,1.1785599999999998,null,null,109.32533685953534]
[null,null,25,211.15914590728423,106.71483717895008,65.659438325336083,47.848745249757982,39.148973386165615,33.315909216668679,27.156536923897001,21.847684550880562,17.96966650115856,14.783471783230208,11.257574629106681,9.797242936390532,null,null,12.438373258085116,null,null,null,null,null,null,null,null,null,null,null,null,null,3.57,0.106,null,3.6295509977153895,null,null,null,null,null,null,null,null,25,null,null,null,null,null,null,null,null,null,null,null,null,null,null,null,null,null,null,null,null,null,null,null,null,null,null,null,null,null,null,null,null,null,null,null,null,null,null,null,null,null,null,null,null,null,null,null,null,null,null,null,null,null,null,null,null,null,null,null,null,null,null,null,null,null,null,null,null,null,null,null,null,null,null,null,null,null,null,null,null,null,110,13.75,3.253085,0.85946763540290616,1.18872,null,null,110.33118105691584]
[null,null,30,253.3909750887411,128.05780461474015,78.791325990403308,57.418494299709579,46.978768063398746,39.979091060002418,32.587844308676409,26.217221461056674,21.563599801390271,17.740166139876251,13.509089554928019,11.756691523668639,null,null,14.926047909702138,null,null,null,null,null,null,null,null,null,null,null,null,null,null,null,null,null,null,null,null,null,null,null,null,null,null,null,null,null,null,null,null,null,null,null,null,null,null,null,null,null,null,null,null,null,null,null,null,null,null,null,null,null,null,null,null,null,null,null,null,null,null,null,null,null,null,null,null,null,null,null,null,null,null,null,null,null,null,null,null,null,null,null,null,null,null,null,null,null,null,null,null,null,null,null,null,null,null,null,null,null,null,null,null,null,null,null,111,13.875,3.2826585000000001,0.86728097754293265,1.1988799999999999,null,null,111.33893598079743]
[null,null,35,295.62280427019789,149.40077205053009,91.923213655470491,66.988243349661161,54.808562740631857,46.642272903336149,38.019151693455804,30.586758371232779,25.157533101621979,20.696860496522287,15.760604480749354,13.716140110946744,null,null,17.413722561319158,null,null,null,null,null,null,null,null,null,null,null,null,null,null,null,null,null,null,null,null,null,null,null,null,null,null,null,null,null,null,null,null,null,null,null,null,null,null,null,null,null,null,null,null,null,null,null,null,null,null,null,null,null,null,null,null,null,null,null,null,null,null,null,null,null,null,null,null,null,null,null,null,null,null,null,null,null,null,null,null,null,null,null,null,null,null,null,null,null,null,null,null,null,null,null,null,null,null,null,null,null,null,null,null,null,null,null,112,14,3.3122319999999998,0.87509431968295892,1.2090399999999999,null,null,112.34860163118014]
[null,null,40,337.85463345165476,170.74373948632012,105.05510132053774,76.557992399612786,62.638357417864988,53.305454746669881,43.450459078235212,34.956295281408899,28.751466401853698,23.653554853168334,18.01211940657069,15.675588698224852,null,null,19.901397212936185,null,null,null,null,null,null,null,null,null,null,null,null,null,null,null,null,null,null,null,null,null,null,null,null,null,null,null,null,null,null,null,null,null,null,null,null,null,null,null,null,null,null,null,null,null,null,null,null,null,null,null,null,null,null,null,null,null,null,null,null,null,null,null,null,null,null,null,null,null,null,null,null,null,null,null,null,null,null,null,null,null,null,null,null,null,null,null,null,null,null,null,null,null,null,null,null,null,null,null,null,null,null,null,null,null,null,null,113,14.125,3.3418055,0.88290766182298541,1.2192000000000001,null,null,113.36017800806401]
[null,null,45,380.08646263311164,192.08670692211015,118.18698898560494,86.127741449564382,70.46815209509812,59.968636590003626,48.8817664630146,39.325832191585008,32.345399702085409,26.610249209814373,20.26363433239203,17.635037285502957,null,null,22.389071864553205,null,null,null,null,null,null,null,null,null,null,null,null,null,null,null,null,null,null,null,null,null,null,null,null,null,null,null,{"$f":"1.07/1.05","v":1.019047619047619},null,null,null,null,null,null,null,null,null,null,null,null,null,null,null,null,null,null,null,null,null,null,null,null,null,null,null,null,null,null,null,null,null,null,null,null,null,null,null,null,null,null,null,null,null,null,null,null,null,null,null,null,null,null,null,null,null,null,null,null,null,null,null,null,null,null,null,null,null,null,null,null,null,null,null,null,null,null,null,114,14.25,3.3713790000000001,0.8907210039630119,1.22936,null,null,114.37366511144897]
[null,null,50,422.31829181456845,213.42967435790015,131.31887665067217,95.697490499515965,78.29794677233123,66.631818433337358,54.313073847794001,43.695369101761123,35.93933300231712,29.566943566460417,22.515149258213363,19.594485872781064,null,null,24.876746516170233,null,null,null,null,null,null,null,null,null,null,null,null,null,null,null,null,null,null,null,null,null,null,null,null,null,null,null,null,null,null,null,null,null,null,null,null,null,null,null,null,null,null,null,null,null,null,null,null,null,null,null,null,null,null,null,null,null,null,null,null,null,null,null,null,null,null,null,null,null,null,null,null,null,null,null,null,null,null,null,null,null,null,null,null,null,null,null,null,null,null,null,null,null,null,null,null,null,null,null,null,null,null,null,null,null,null,null,115,14.375,3.4009524999999998,0.89853434610303828,1.23952,null,null,115.38906294133503]
[null,null,55,464.55012099602533,234.77264179369021,144.45076431573938,105.26723954946756,86.127741449564368,73.29500027667109,59.744381232573403,48.064906011937232,39.533266302548824,32.523637923106463,24.766664184034703,21.553934460059171,null,null,27.364421167787249,null,null,null,null,null,null,null,null,null,null,null,null,null,null,null,null,null,null,null,null,null,null,null,null,null,null,null,null,null,null,null,null,null,null,null,null,null,null,null,null,null,null,null,null,null,null,null,null,null,null,null,null,null,null,null,null,null,null,null,null,null,null,null,null,null,null,null,null,null,null,null,null,null,null,null,null,null,null,null,null,null,null,null,null,null,null,null,null,null,null,null,null,null,null,null,null,null,null,null,null,null,null,null,null,null,null,null,116,14.5,3.430526,0.90634768824306466,1.25091,null,null,116.52965957664831]
[null,null,60,506.7819501774822,256.1156092294803,157.58265198080662,114.83698859941916,93.957536126797493,79.958182120004835,65.175688617352819,52.434442922113348,43.127199602780543,35.480332279752503,27.018179109856039,23.513383047337278,null,null,29.852095819404276,null,null,null,null,null,null,null,null,null,null,null,null,null,null,null,null,null,null,null,null,null,null,null,null,null,{"$f":"0.3889/10.5846","v":3.674205921810933E-2},null,null,null,null,null,null,null,null,null,null,null,null,null,null,null,null,null,null,null,null,null,null,null,null,null,null,null,null,null,null,null,null,null,null,null,null,null,null,null,null,null,null,null,null,null,null,null,null,null,null,null,null,null,null,null,null,null,null,null,null,null,null,null,null,null,null,null,null,null,null,null,null,null,null,null,null,null,null,null,null,null,117,14.625,3.4600994999999997,0.91416103038309104,1.26108,null,null,117.55011451530864]
[null,null,null,null,null,null,null,null,null,null,null,null,null,null,null,null,null,null,null,null,null,null,null,null,null,null,null,null,null,null,null,null,null,null,null,null,null,null,null,null,null,null,null,null,null,null,null,null,null,null,null,null,null,null,null,null,null,null,null,null,null,null,null,null,null,null,null,null,null,null,null,null,null,null,null,null,null,null,null,null,null,null,null,null,null,null,null,null,null,null,null,null,null,null,null,null,null,null,null,null,null,null,null,null,null,null,null,null,null,null,null,null,null,null,null,null,null,null,null,null,null,null,null,null,null,118,14.75,3.4896729999999998,0.92197437252311754,1.26108,null,null,117.55011451530864]
[null,null,null,null,null,null,null,null,null,null,null,null,null,null,null,null,null,null,null,null,null,null,null,null,null,null,null,null,null,null,null,null,null,null,null,null,null,null,null,null,null,null,null,null,null,null,null,null,null,null,null,null,null,null,null,null,null,null,null,null,null,null,null,null,null,null,null,null,null,null,null,null,null,null,null,null,null,null,null,null,null,null,null,null,null,null,null,null,null,null,null,null,null,null,null,null,null,null,null,null,null,null,null,null,null,null,null,null,null,null,null,null,null,null,null,null,null,null,null,null,null,null,null,null,null,119,14.875,3.5192464999999999,0.92978771466314392,1.2712499999999998,null,null,118.57248394359372]
[null,null,null,null,null,null,null,null,null,null,null,null,null,null,null,null,null,null,null,null,null,null,null,null,null,null,null,null,null,null,null,null,null,null,null,null,null,null,null,null,null,null,null,null,null,null,null,null,null,null,null,null,null,null,null,null,null,null,null,null,null,null,null,null,null,null,null,null,null,null,null,null,null,null,null,null,null,null,null,null,null,null,null,null,null,null,null,null,null,null,null,null,null,null,null,null,null,null,null,null,null,null,null,null,null,null,null,null,null,null,null,null,null,null,null,null,null,null,null,null,null,null,null,null,null,120,15,3.5488199999999996,0.9376010568031703,1.2814199999999998,null,null,119.59676786150362]
[null,null,null,null,null,null,null,null,null,null,null,null,null,null,null,null,null,null,null,null,null,null,null,null,null,null,null,null,null,null,null,null,null,null,null,null,null,null,null,null,null,null,null,null,null,null,null,null,null,null,null,null,null,null,null,null,null,null,null,null,null,null,null,null,null,null,null,null,null,null,null,null,null,null,null,null,null,null,null,null,null,null,null,null,null,null,null,null,null,null,null,null,null,null,null,null,null,null,null,null,null,null,null,null,null,null,null,null,null,null,null,null,null,null,null,null,null,null,null,null,null,null,null,null,null,121,15.125,3.5783935000000002,0.9454143989431969,1.2915899999999998,null,null,120.62296626903829]
[null,null,null,null,null,null,null,null,null,null,null,null,null,null,null,null,null,null,null,null,null,null,null,null,null,null,null,null,null,null,null,"%",null,null,null,null,null,null,null,null,null,null,null,null,null,null,null,null,null,null,null,null,null,null,null,null,null,null,null,null,null,null,null,null,null,null,null,null,null,null,null,null,null,null,null,null,null,null,null,null,null,null,null,null,null,null,null,null,null,null,null,null,null,null,null,null,null,null,null,null,null,null,null,null,null,null,null,null,null,null,null,null,null,null,null,null,null,null,null,null,null,null,null,null,null,122,15.25,3.6079669999999999,0.95322774108322317,1.3017599999999998,null,null,121.65107916619773]
[null,null,null,null,null,null,null,null,null,null,null,null,null,null,null,null,null,null,null,null,null,null,null,null,null,null,null,null,null,null,150,9.9000000000000005E-2,null,null,null,null,null,null,null,null,null,null,null,null,null,null,null,null,null,null,null,null,null,null,null,null,null,null,null,null,null,null,null,null,null,null,null,null,null,null,null,null,null,null,null,null,null,null,null,null,null,null,null,null,null,null,null,null,null,null,null,null,null,null,null,null,null,null,null,null,null,null,null,null,null,null,null,null,null,null,null,null,null,null,null,null,null,null,null,null,null,null,null,null,null,123,15.375,3.6375405000000001,0.96104108322324966,1.3132200000000001,null,null,122.81189581621885]
[null,null,null,null,null,null,null,null,null,null,null,null,null,null,null,null,null,null,null,null,null,null,null,"Ratio",null,null,null,null,null,null,60,0.245,60,null,null,null,null,null,null,null,null,null,null,null,null,null,null,null,null,null,null,null,null,null,null,null,null,null,null,null,null,null,null,null,null,null,null,null,null,null,null,null,null,null,null,null,null,null,null,null,null,null,null,null,null,null,null,null,null,null,null,null,null,null,null,null,null,null,null,null,null,null,null,null,null,null,null,null,null,null,null,null,null,null,null,null,null,null,null,null,null,null,null,null,null,124,15.5,3.6671140000000002,0.96885442536327615,1.3234000000000001,null,null,123.84509640655601]
[null,null,null,null,null,null,null,null,null,null,null,null,null,null,null,null,null,null,null,null,null,null,null,6.33,{"$f":"10.53783*X126^(-0.91002)","v":1.9654309193473067},null,null,"%",null,null,28,0.51400000000000001,28,null,null,null,null,null,null,null,null,null,null,null,null,null,null,null,null,null,null,null,null,null,null,null,null,null,null,null,null,null,null,null,null,null,null,null,null,null,null,null,null,null,null,null,null,null,null,null,null,null,null,null,null,null,null,null,null,null,null,null,null,null,null,null,null,null,null,null,null,null,null,null,null,null,null,null,null,null,null,null,null,null,null,null,null,null,null,null,null,null,null,null,null,125,15.625,3.6966874999999999,0.97666776750330242,1.33358,null,null,124.88021525334364]
[null,null,null,null,null,null,null,null,null,null,null,null,null,null,null,null,null,null,null,null,null,null,null,null,null,null,null,0.98699999999999999,{"$f":"13.298*AB127^(-1.098)","v":13.490439387045503},null,14,0.98699999999999999,14,null,null,null,null,null,null,null,null,null,null,null,null,null,null,null,null,null,null,null,null,null,null,null,null,null,null,null,null,null,null,null,null,null,null,null,null,null,null,null,null,null,null,null,null,null,null,null,null,null,null,null,null,null,null,null,null,null,null,null,null,null,null,null,null,null,null,null,null,null,null,null,null,null,null,null,null,null,null,null,null,null,null,null,null,null,null,null,null,null,null,null,null,126,15.75,3.726261,0.98448110964332891,1.3437600000000001,null,null,125.91725235658177]
[null,null,null,null,null,null,null,null,null,null,null,null,null,null,null,null,null,null,null,null,null,null,null,null,null,null,null,null,null,null,9,1.47,9,null,null,null,null,null,null,null,null,null,null,null,null,null,null,null,null,null,null,null,null,null,null,null,null,null,null,null,null,null,null,null,null,null,null,null,null,null,null,null,null,null,null,null,null,null,null,null,null,null,null,null,null,null,null,null,null,null,null,null,null,null,null,null,null,null,null,null,null,null,null,null,null,null,null,null,null,null,null,null,null,null,null,null,null,null,null,null,null,null,null,null,null,127,15.875,3.7558344999999997,0.99229445178335529,1.3539400000000001,null,null,126.95620771627037]
[null,null,null,null,null,null,null,null,null,null,null,null,null,null,null,null,null,null,null,null,null,null,null,null,null,null,null,null,null,null,{"$f":"19/3","v":6.333333333333333},1.99,{"$f":"19/3","v":6.333333333333333},null,null,null,null,null,null,null,null,null,null,null,null,null,null,null,null,null,null,null,null,null,null,null,null,null,null,null,null,null,null,null,null,null,null,null,null,null,null,null,null,null,null,null,null,null,null,null,null,null,null,null,null,null,null,null,null,null,null,null,null,null,null,null,null,null,null,null,null,null,null,null,null,null,null,null,null,null,null,null,null,null,null,null,null,null,null,null,null,null,null,null,null,128,16,3.7854079999999999,1.0001077939233818,1.36412,null,null,127.99708133240944]
[null,null,null,null,null,null,null,null,null,null,null,null,null,null,null,null,null,null,null,null,null,null,null,null,null,null,null,null,null,null,{"$f":"14.5/3","v":4.833333333333333},2.4900000000000002,{"$f":"14.5/3","v":4.833333333333333},null,null,null,null,null,null,null,null,null,null,null,null,null,null,null,null,null,null,null,null,null,null,null,null,null,null,null,null,null,null,null,null,null,null,null,null,null,null,null,null,null,null,null,null,null,null,null,null,null,null,null,null,null,null,null,null,null,null,null,null,null,null,null,null,null,null,null,null,null,null,null,null,null,null,null,null,null,null,null,null,null,null,null,null,null,null,null,null,null,null,null,null,129,16.125,3.8149815,1.0079211360634082,1.3743000000000001,null,null,129.039873204999]
[null,null,null,null,null,null,null,null,null,null,null,null,null,null,null,null,null,null,null,null,null,null,null,null,null,null,null,null,null,null,{"$f":"15/4","v":3.75},3.03,3.75,null,null,null,null,null,null,null,null,null,null,null,null,null,null,null,null,null,null,null,null,null,null,null,null,null,null,null,null,null,null,null,null,null,null,null,null,null,null,null,null,null,null,null,null,null,null,null,null,null,null,null,null,null,null,null,null,null,null,null,null,null,null,null,null,null,null,null,null,null,null,null,null,null,null,null,null,null,null,null,null,null,null,null,null,null,null,null,null,null,null,null,null,130,16.25,3.8445549999999997,1.0157344782034345,1.3844800000000002,null,null,130.08458333403905]
[null,null,null,null,null,null,null,null,null,null,null,null,null,null,null,null,null,null,null,null,null,null,null,null,null,null,null,null,null,null,3,3.57,3,null,null,null,null,null,null,null,null,null,null,null,null,null,null,null,null,null,null,null,null,null,null,null,null,null,null,null,null,null,null,null,null,null,null,null,null,null,null,null,null,null,null,null,null,null,null,null,null,null,null,null,null,null,null,null,null,null,null,null,null,null,null,null,null,null,null,null,null,null,null,null,null,null,null,null,null,null,null,null,null,null,null,null,null,null,null,null,null,null,null,null,null,131,16.375,3.8741284999999999,1.0235478203434609,1.3960299999999999,null,null,131.27221090710557]
[null,null,null,null,null,null,null,null,null,null,null,null,null,null,null,null,null,null,null,null,null,null,null,null,null,null,null,null,null,null,null,null,null,null,null,null,null,null,null,null,null,null,null,null,null,null,null,null,null,null,null,null,null,null,null,null,null,null,null,null,null,null,null,null,null,null,null,null,null,null,null,null,null,null,null,null,null,null,null,null,null,null,null,null,null,null,null,null,null,null,null,null,null,null,null,null,null,null,null,null,null,null,null,null,null,null,null,null,null,null,null,null,null,null,null,null,null,null,null,null,null,null,null,null,null,132,16.5,3.9037019999999996,1.0313611624834873,1.4062199999999998,null,null,132.32204690661081]
[null,null,null,null,null,null,null,null,null,null,null,null,null,null,null,null,null,null,null,null,null,null,null,null,null,null,null,null,null,null,null,null,null,null,null,null,null,null,null,null,null,null,null,null,null,null,null,null,null,null,null,null,null,null,null,null,null,null,null,null,null,null,null,null,null,null,null,null,null,null,null,null,null,null,null,null,null,null,null,null,null,null,null,null,null,null,null,null,null,null,null,null,null,null,null,null,null,null,null,null,null,null,null,null,null,null,null,null,null,null,null,null,null,null,null,null,null,null,null,null,null,null,null,null,null,133,{"$f":"DV134/8","v":16.625},{"$f":"DV134*29.5735/1000","v":3.9332754999999997},{"$f":"DX134/3.785","v":1.0391745046235137},1.4164099999999997,null,null,133.37380493309428]
[null,null,null,null,null,null,null,null,null,null,null,null,null,null,null,null,null,null,null,null,null,null,null,null,null,null,null,null,null,null,null,null,null,null,null,null,null,null,null,null,null,null,null,null,null,null,null,null,null,null,null,null,null,null,null,null,null,null,null,null,null,null,null,null,null,null,null,null,null,null,null,null,null,null,null,null,null,null,null,null,null,null,null,null,null,null,null,null,null,null,null,null,null,null,null,null,null,null,null,null,null,null,null,null,null,null,null,null,null,null,null,null,null,null,null,null,null,null,null,null,null,null,null,null,null,134,16.75,3.9628489999999998,1.0469878467635403,1.4164099999999997,null,null,133.37380493309428]
[null,null,null,null,null,null,null,null,null,null,null,null,null,null,null,null,null,null,null,null,null,null,null,null,null,null,null,null,null,null,null,null,null,null,null,null,null,null,null,null,null,null,null,null,null,null,null,null,null,null,null,null,null,null,null,null,null,null,null,null,null,null,null,null,null,null,null,null,null,null,null,null,null,null,null,null,null,null,null,null,null,null,null,null,null,null,null,null,null,null,null,null,null,null,null,null,null,null,null,null,null,null,null,null,null,null,null,null,null,null,null,null,null,null,null,null,null,null,null,null,null,null,null,null,null,135,16.875,3.9924224999999995,1.0548011889035664,1.4265999999999999,null,null,134.42748498655598]
[null,null,null,null,null,null,null,null,null,null,null,null,null,null,null,null,null,null,null,null,null,null,null,null,null,null,null,null,null,null,null,null,null,null,null,null,null,null,null,null,null,null,null,null,null,null,null,null,null,null,null,null,null,null,null,null,null,null,null,null,null,null,null,null,null,null,null,null,null,null,null,null,null,null,null,null,null,null,null,null,null,null,null,null,null,null,null,null,null,null,null,null,null,null,null,null,null,null,null,null,null,null,null,null,null,null,null,null,null,null,null,null,null,null,null,null,null,null,null,null,null,null,null,null,null,136,17,4.0219959999999997,1.062614531043593,1.4367899999999998,null,null,135.48308706699586]
[null,null,null,null,null,null,null,null,null,null,null,null,null,null,null,null,null,null,null,null,null,null,null,null,null,null,null,null,null,null,null,null,null,null,null,null,null,null,null,null,null,null,null,null,null,null,null,null,null,null,null,null,null,null,null,null,null,null,null,null,null,null,null,null,null,null,null,null,null,null,null,null,null,null,null,null,null,null,null,null,null,null,null,null,null,null,null,null,null,null,null,null,null,null,null,null,null,null,null,null,null,null,null,null,null,null,null,null,null,null,null,null,null,null,null,null,null,null,null,null,null,null,null,null,null,137,17.125,4.0515695000000003,1.0704278731836196,1.4469799999999997,null,null,136.54061117441398]
[null,null,null,null,null,null,null,null,null,null,null,null,null,null,null,null,null,null,null,null,null,null,null,null,null,null,null,null,null,null,null,null,null,null,null,null,null,null,null,null,null,null,null,null,null,null,null,null,null,null,null,null,null,null,null,null,null,null,null,null,null,null,null,null,null,null,null,null,null,null,null,null,null,null,null,null,null,null,null,null,null,null,null,null,null,null,null,null,null,null,null,null,null,null,null,null,null,null,null,null,null,null,null,null,null,null,null,null,null,null,null,null,null,null,null,null,null,null,null,null,null,null,null,null,null,138,17.25,4.081143,1.078241215323646,1.4571699999999999,null,null,137.60005730881036]
[null,null,null,null,null,null,null,null,null,null,null,null,null,null,null,null,null,null,null,null,null,null,null,null,null,null,null,null,null,null,null,null,null,null,null,null,null,null,null,null,null,null,null,null,null,null,null,null,null,null,null,null,null,null,null,null,null,null,null,null,null,null,null,null,null,null,null,null,null,null,null,null,null,null,null,null,null,null,null,null,null,null,null,null,null,null,null,null,null,null,null,null,null,null,null,null,null,null,null,null,null,null,null,null,null,null,null,null,null,null,null,null,null,null,null,null,null,null,null,null,null,null,null,null,null,139,17.375,4.1107164999999997,1.0860545574636722,1.4687999999999999,null,null,138.81156772454398]
[null,null,null,null,null,null,null,null,null,null,null,null,null,null,null,null,null,null,null,null,null,null,null,null,null,null,null,null,null,null,null,null,null,null,null,null,null,null,null,null,null,null,null,null,null,null,null,null,null,null,null,null,null,null,null,null,null,null,null,null,null,null,null,null,null,null,null,null,null,null,null,null,null,null,null,null,null,null,null,null,null,null,null,null,null,null,null,null,null,null,null,null,null,null,null,null,null,null,null,null,null,null,null,null,null,null,null,null,null,null,null,null,null,null,null,null,null,null,null,null,null,null,null,null,null,140,17.5,4.1402900000000002,1.0938678996036988,1.4789999999999999,null,null,139.87617419909998]
[null,null,null,null,null,null,null,null,null,null,null,null,null,null,null,null,null,null,null,null,null,null,null,null,null,null,null,null,null,null,null,null,null,null,null,null,null,null,null,null,null,null,null,null,null,null,null,null,null,null,null,null,null,null,null,null,null,null,null,null,null,null,null,null,null,null,null,null,null,null,null,null,null,null,null,null,null,null,null,null,null,null,null,null,null,null,null,null,null,null,null,null,null,null,null,null,null,null,null,null,null,null,null,null,null,null,null,null,null,null,null,null,null,null,null,null,null,null,null,null,null,null,null,null,null,141,17.625,4.1698634999999991,1.1016812417437249,1.4892000000000001,null,null,140.942706474864]
[null,null,null,null,null,null,null,null,null,null,null,null,null,null,null,null,null,null,null,null,null,null,null,null,null,null,null,null,null,null,null,null,null,null,null,null,null,null,null,null,null,null,null,null,null,null,null,null,null,null,null,null,null,null,null,null,null,null,null,null,null,null,null,null,null,null,null,null,null,null,null,null,null,null,null,null,null,null,null,null,null,null,null,null,null,null,null,null,null,null,null,null,null,null,null,null,null,null,null,null,null,null,null,null,null,null,null,null,null,null,null,null,null,null,null,null,null,null,null,null,null,null,null,null,null,142,17.75,4.1994369999999996,1.1094945838837516,1.4994000000000001,null,null,142.011164551836]
[null,null,null,null,null,null,null,null,null,null,null,null,null,null,null,null,null,null,null,null,null,null,null,null,null,null,null,null,null,null,null,null,null,null,null,null,null,null,null,null,null,null,null,null,null,null,null,null,null,null,null,null,null,null,null,null,null,null,null,null,null,null,null,null,null,null,null,null,null,null,null,null,null,null,null,null,null,null,null,null,null,null,null,null,null,null,null,null,null,null,null,null,null,null,null,null,null,null,null,null,null,null,null,null,null,null,null,null,null,null,null,null,null,null,null,null,null,null,null,null,null,null,null,null,null,143,17.875,4.2290105000000002,1.1173079260237782,1.5096000000000001,null,null,143.081548430016]
[null,null,null,null,null,null,null,null,null,null,null,null,null,null,null,null,null,null,null,null,null,null,null,null,null,null,null,null,null,null,null,null,null,null,null,null,null,null,null,null,null,null,null,null,null,null,null,null,null,null,null,null,null,null,null,null,null,null,null,null,null,null,null,null,null,null,null,null,null,null,null,null,null,null,null,null,null,null,null,null,null,null,null,null,null,null,null,null,null,null,null,null,null,null,null,null,null,null,null,null,null,null,null,null,null,null,null,null,null,null,null,null,null,null,null,null,null,null,null,null,null,null,null,null,null,144,18,4.2585839999999999,1.1251212681638045,1.5198,null,null,144.15385810940398]
[null,null,null,null,null,null,null,null,null,null,null,null,null,null,null,null,null,null,null,null,null,null,null,null,null,null,null,null,null,null,null,null,null,null,null,null,null,null,null,null,null,null,null,null,null,null,null,null,null,null,null,null,null,null,null,null,null,null,null,null,null,null,null,null,null,null,null,null,null,null,null,null,null,null,null,null,null,null,null,null,null,null,null,null,null,null,null,null,null,null,null,null,null,null,null,null,null,null,null,null,null,null,null,null,null,null,null,null,null,null,null,null,null,null,null,null,null,null,null,null,null,null,null,null,null,145,18.125,4.2881575000000005,1.1329346103038309,1.53,null,null,145.22809358999999]
[null,null,null,null,null,null,null,null,null,null,null,null,null,null,null,null,null,null,null,null,null,null,null,null,null,null,null,null,null,null,null,null,null,null,null,null,null,null,null,null,null,null,null,null,null,null,null,null,null,null,null,null,null,null,null,null,null,null,null,null,null,null,null,null,null,null,null,null,null,null,null,null,null,null,null,null,null,null,null,null,null,null,null,null,null,null,null,null,null,null,null,null,null,null,null,null,null,null,null,null,null,null,null,null,null,null,null,null,null,null,null,null,null,null,null,null,null,null,null,null,null,null,null,null,null,146,18.25,4.3177310000000002,1.1407479524438573,1.5402,null,null,146.30425487180398]
[null,null,null,null,null,null,null,null,null,null,null,null,null,null,null,null,null,null,null,null,null,null,null,null,null,null,null,null,null,null,null,null,null,null,null,null,null,null,null,null,null,null,null,null,null,null,null,null,null,null,null,null,null,null,null,null,null,null,null,null,null,null,null,null,null,null,null,null,null,null,null,null,null,null,null,null,null,null,null,null,null,null,null,null,null,null,null,null,null,null,null,null,null,null,null,null,null,null,null,null,null,null,null,null,null,null,null,null,null,null,null,null,null,null,null,null,null,null,null,null,null,null,null,null,null,147,18.375,4.3473044999999999,1.1485612945838837,1.5417099999999999,null,null,146.46373259351788]
[null,null,null,null,null,null,null,null,null,null,null,null,null,null,null,null,null,null,null,null,null,null,null,null,null,null,null,null,null,null,null,null,null,null,null,null,null,null,null,null,null,null,null,null,null,null,null,null,null,null,null,null,null,null,null,null,null,null,null,null,null,null,null,null,null,null,null,null,null,null,null,null,null,null,null,null,null,null,null,null,null,null,null,null,null,null,null,null,null,null,null,null,null,null,null,null,null,null,null,null,null,null,null,null,null,null,null,null,null,null,null,null,null,null,null,null,null,null,null,null,null,null,null,null,null,148,18.5,4.3768779999999996,1.1563746367239101,1.55192,null,null,147.54316294320063]
[null,null,null,null,null,null,null,null,null,null,null,null,null,null,null,null,null,null,null,null,null,null,null,null,null,null,null,null,null,null,null,null,null,null,null,null,{"$f":"0.3889/10.5846","v":3.674205921810933E-2},{"$f":"0.3928/10.5846","v":3.7110519055987001E-2},null,null,null,null,null,null,null,null,null,null,null,null,null,null,null,null,null,null,null,null,null,null,null,null,null,null,null,null,null,null,null,null,null,null,null,null,null,null,null,null,null,null,null,null,null,null,null,null,null,null,null,null,null,null,null,null,null,null,null,null,null,null,null,null,null,null,null,null,null,null,null,null,null,null,null,null,null,null,null,null,null,null,null,null,null,null,null,149,18.625,4.4064515000000002,1.1641879788639367,1.5621299999999998,null,null,148.62452287202316]
[null,null,null,null,null,null,null,null,null,null,null,null,null,null,null,null,null,null,null,null,null,null,null,null,null,null,null,null,null,null,null,null,null,null,null,null,null,null,null,null,null,null,null,null,null,null,null,null,null,null,null,null,null,null,null,null,null,null,null,null,null,null,null,null,null,null,null,null,null,null,null,null,null,null,null,null,null,null,null,null,null,null,null,null,null,null,null,null,null,null,null,null,null,null,null,null,null,null,null,null,null,null,null,null,null,null,null,null,null,null,null,null,null,null,null,null,null,null,null,null,null,null,null,null,null,150,18.75,4.4360249999999999,1.172001321003963,1.5723399999999998,null,null,149.70781237998554]
[null,null,null,null,null,null,null,null,null,null,null,null,null,null,null,null,null,null,null,null,null,null,null,null,null,null,null,null,null,null,null,null,null,null,null,null,null,null,null,null,null,null,null,null,null,null,null,null,null,null,null,null,null,null,null,null,null,null,null,null,null,null,null,null,null,null,null,null,null,null,null,null,null,null,null,null,null,null,null,null,null,null,null,null,null,null,null,null,null,null,null,null,null,null,null,null,null,null,null,null,null,null,null,null,null,null,null,null,null,null,null,null,null,null,null,null,null,null,null,null,null,null,null,null,null,151,18.875,4.4655985000000005,1.1798146631439894,1.5825499999999999,null,null,150.79303146708773]
[null,null,null,null,null,null,null,null,null,null,null,null,null,null,null,null,null,null,null,null,null,null,null,null,null,null,null,null,null,null,null,null,null,null,null,null,null,null,null,null,null,null,null,null,null,null,null,null,null,null,null,null,null,null,null,null,null,null,null,null,null,null,null,null,null,null,null,null,null,null,null,null,null,null,null,null,null,null,null,null,null,null,null,null,null,null,null,null,null,null,null,null,null,null,null,null,null,null,null,null,null,null,null,null,null,null,null,null,null,null,null,null,null,null,null,null,null,null,null,null,null,null,null,null,null,152,19,4.4951719999999993,1.1876280052840156,1.59276,null,null,151.88018013332973]
[null,null,null,null,null,null,null,null,null,null,null,null,null,null,null,null,null,null,null,null,null,null,null,null,null,null,null,null,null,null,null,null,null,null,null,null,null,null,null,null,null,null,null,null,null,null,null,null,null,null,null,null,null,null,null,null,null,null,null,null,null,null,null,null,null,null,null,null,null,null,null,null,null,null,null,null,null,null,null,null,null,null,null,null,null,null,null,null,null,null,null,null,null,null,null,null,null,null,null,null,null,null,null,null,null,null,null,null,null,null,null,null,null,null,null,null,null,null,null,null,null,null,null,null,null,153,19.125,4.5247454999999999,1.1954413474240422,1.60297,null,null,152.96925837871157]
[null,null,null,null,null,null,null,null,null,null,null,null,null,null,null,null,null,null,null,null,null,null,null,null,null,null,null,null,null,null,null,null,null,null,null,null,null,null,null,null,null,null,null,null,null,null,null,null,null,null,null,null,null,null,null,null,null,null,null,null,null,null,null,null,null,null,null,null,null,null,null,null,null,null,null,null,null,null,null,null,null,null,null,null,null,null,null,null,null,null,null,null,null,null,null,null,null,null,null,null,null,null,null,null,null,null,null,null,null,null,null,null,null,null,null,null,null,null,null,null,null,null,null,null,null,154,19.25,4.5543189999999996,1.2032546895640686,1.6131799999999998,null,null,154.0602662032332]
[null,null,null,null,null,null,null,null,null,null,null,null,null,null,null,null,null,null,null,null,null,null,null,null,null,null,null,null,null,null,null,null,null,null,null,null,null,null,null,null,null,null,null,null,null,null,null,null,null,null,null,null,null,null,null,null,null,null,null,null,null,null,null,null,null,null,null,null,null,null,null,null,null,null,null,null,null,null,null,null,null,null,null,null,null,null,null,null,null,null,null,null,null,null,null,null,null,null,null,null,null,null,null,null,null,null,null,null,null,null,null,null,null,null,null,null,null,null,null,null,null,null,null,null,null,155,19.375,4.5838925000000001,1.2110680317040952,1.6249800000000001,null,null,155.32358003970202]
[null,null,null,null,null,null,null,null,null,null,null,null,null,null,null,null,null,null,null,null,null,null,null,null,null,null,null,null,null,null,null,null,null,null,null,null,null,null,null,null,null,null,null,null,null,null,null,null,null,null,null,null,null,null,null,null,null,null,null,null,null,null,null,null,null,null,null,null,null,null,null,null,null,null,null,null,null,null,null,null,null,null,null,null,null,null,null,null,null,null,null,null,null,null,null,null,null,null,null,null,null,null,null,null,null,null,null,null,null,null,null,null,null,null,null,null,null,null,null,null,null,null,null,null,null,156,19.5,4.6134659999999998,1.2188813738441215,1.6249800000000001,null,null,155.32358003970202]
[null,null,null,null,null,null,null,null,null,null,null,null,null,null,null,null,null,null,null,null,null,null,null,null,null,null,null,null,null,null,null,null,null,null,null,null,null,null,null,null,null,null,null,null,null,null,null,null,null,null,null,null,null,null,null,null,null,null,null,null,null,null,null,null,null,null,null,null,null,null,null,null,null,null,null,null,null,null,null,null,null,null,null,null,null,null,null,null,null,null,null,null,null,null,null,null,null,null,null,null,null,null,null,null,null,null,null,null,null,null,null,null,null,null,null,null,null,null,null,null,null,null,null,null,null,157,19.625,4.6430394999999995,1.2266947159841477,1.6352000000000002,null,null,156.419821103104]
[null,null,null,null,null,null,null,null,null,null,null,null,null,null,null,null,null,null,null,null,null,null,null,null,null,null,null,null,null,null,null,null,null,null,null,null,null,null,null,null,null,null,null,null,null,null,null,null,null,null,null,null,null,null,null,null,null,null,null,null,null,null,null,null,null,null,null,null,null,null,null,null,null,null,null,null,null,null,null,null,null,null,null,null,null,null,null,null,null,null,null,null,null,null,null,null,null,null,null,null,null,null,null,null,null,null,null,null,null,null,null,null,null,null,null,null,null,null,null,null,null,null,null,null,null,158,19.75,4.6726130000000001,1.2345080581241743,1.6454200000000001,null,null,157.51799552727962]
[null,null,null,null,null,null,null,null,null,null,null,null,null,null,null,null,null,null,null,null,null,null,null,null,null,null,null,null,null,null,null,null,null,null,null,null,null,null,null,null,null,null,null,null,null,null,null,null,null,null,null,null,null,null,null,null,null,null,null,null,null,null,null,null,null,null,null,null,null,null,null,null,null,null,null,null,null,null,null,null,null,null,null,null,null,null,null,null,null,null,null,null,null,null,null,null,null,null,null,null,null,null,null,null,null,null,null,null,null,null,null,null,null,null,null,null,null,null,null,null,null,null,null,null,null,159,19.875,4.7021864999999998,1.2423214002642007,1.6556400000000002,null,null,{"$f":"9.2551*DZ160^2+77.091*DZ160+5.6136","v":158.61810331222898}]
[null,null,null,null,null,null,null,null,null,null,null,null,null,null,null,null,null,null,null,null,null,null,null,null,null,null,null,null,null,null,null,null,null,null,null,null,null,null,null,null,null,null,null,null,null,null,null,null,null,null,null,null,null,null,null,null,null,null,null,null,null,null,null,null,null,null,null,null,null,null,null,null,null,null,null,null,null,null,null,null,null,null,null,null,null,null,null,null,null,null,null,null,null,null,null,null,null,null,null,null,null,null,null,null,null,null,null,null,null,null,null,null,null,null,null,null,null,null,null,null,null,null,null,null,null,160,20,4.7317600000000004,1.2501347424042273,1.6658599999999999,null,null,159.72014445795193]
[null,null,null,null,null,null,null,null,null,null,null,null,null,null,null,null,null,null,null,null,null,null,null,null,null,null,null,null,null,null,null,null,null,null,null,null,null,null,null,null,null,null,null,null,null,null,null,null,null,null,null,null,null,null,null,null,null,null,null,null,null,null,null,null,null,null,null,null,null,null,null,null,null,null,null,null,null,null,null,null,null,null,null,null,null,null,null,null,null,null,null,null,null,null,null,null,null,null,null,null,null,null,null,null,null,null,null,null,null,null,null,null,null,null,null,null,null,null,null,null,null,null,null,null,null,161,20.125,4.7613335000000001,1.2579480845442537,1.67608,null,null,160.82411896444862]
[null,null,null,null,null,null,null,null,null,null,null,null,null,null,null,null,null,null,null,null,null,null,null,null,null,null,null,null,null,null,null,null,null,null,null,null,null,null,null,null,null,null,null,null,null,null,null,null,null,null,null,null,null,null,null,null,null,null,null,null,null,null,null,null,null,null,null,null,null,null,null,null,null,null,null,null,null,null,null,null,null,null,null,null,null,null,null,null,null,null,null,null,null,null,null,null,null,null,null,null,null,null,null,null,null,null,null,null,null,null,null,null,null,null,null,null,null,null,null,null,null,null,null,null,null,162,20.25,4.7909069999999998,1.26576142668428,1.6862999999999999,null,null,161.93002683171895]
[null,null,null,null,null,null,null,null,null,null,null,null,null,null,null,null,null,null,null,null,null,null,null,null,null,null,null,null,null,null,null,null,null,null,null,null,null,null,null,null,null,null,null,null,null,null,null,null,null,null,null,null,null,null,null,null,null,null,null,null,null,null,null,null,null,null,null,null,null,null,null,null,null,null,null,null,null,null,null,null,null,null,null,null,null,null,null,null,null,null,null,null,null,null,null,null,null,null,null,null,null,null,null,null,null,null,null,null,null,null,null,null,null,null,null,null,null,null,null,null,null,null,null,null,null,163,20.375,4.8204804999999995,1.2735747688243062,1.6981799999999998,null,null,163.21799347779321]
[null,null,null,null,null,null,null,null,null,null,null,null,null,null,null,null,null,null,null,null,null,null,null,null,null,null,null,null,null,null,null,null,null,null,null,null,null,null,null,null,null,null,null,null,null,null,null,null,null,null,null,null,null,null,null,null,null,null,null,null,null,null,null,null,null,null,null,null,null,null,null,null,null,null,null,null,null,null,null,null,null,null,null,null,null,null,null,null,null,null,null,null,null,null,null,null,null,null,null,null,null,null,null,null,null,null,null,null,null,null,null,null,null,null,null,null,null,null,null,null,null,null,null,null,null,164,20.5,4.8500540000000001,1.2813881109643328,1.7084099999999998,null,null,164.32916923503825]
[null,null,null,null,null,null,null,null,null,null,null,null,null,null,null,null,null,null,null,null,null,null,null,null,null,null,null,null,null,null,null,null,null,null,null,null,null,null,null,null,null,null,null,null,null,null,null,null,null,null,null,null,null,null,null,null,null,null,null,null,null,null,null,null,null,null,null,null,null,null,null,null,null,null,null,null,null,null,null,null,null,null,null,null,null,null,null,null,null,null,null,null,null,null,null,null,null,null,null,null,null,null,null,null,null,null,null,null,null,null,null,null,null,null,null,null,null,null,null,null,null,null,null,null,null,165,20.625,4.8796274999999998,1.2892014531043592,1.7084099999999998,null,null,164.32916923503825]
[null,null,null,null,null,null,null,null,null,null,null,null,null,null,null,null,null,null,null,null,null,null,null,null,null,null,null,null,null,null,null,null,null,null,null,null,null,null,null,null,null,null,null,null,null,null,null,null,null,null,null,null,null,null,null,null,null,null,null,null,null,null,null,null,null,null,null,null,null,null,null,null,null,null,null,null,null,null,null,null,null,null,null,null,null,null,null,null,null,null,null,null,null,null,null,null,null,null,null,null,null,null,null,null,null,null,null,null,null,null,null,null,null,null,null,null,null,null,null,null,null,null,null,null,null,166,20.75,4.9092010000000004,1.2970147952443858,1.7186399999999997,null,null,165.44228213839293]
[null,null,null,null,null,null,null,null,null,null,null,null,null,null,null,null,null,null,null,null,null,null,null,null,null,null,null,null,null,null,null,null,null,null,null,null,null,null,null,null,null,null,null,null,null,null,null,null,null,null,null,null,null,null,null,null,null,null,null,null,null,null,null,null,null,null,null,null,null,null,null,null,null,null,null,null,null,null,null,null,null,null,null,null,null,null,null,null,null,null,null,null,null,null,null,null,null,null,null,null,null,null,null,null,null,null,null,null,null,null,null,null,null,null,null,null,null,null,null,null,null,null,null,null,null,167,20.875,4.9387744999999992,1.3048281373844119,1.7288699999999997,null,null,166.55733218785713]
[null,null,null,null,null,null,null,null,null,null,null,null,null,null,null,null,null,null,null,null,null,null,null,null,null,null,null,null,null,null,null,null,null,null,null,null,null,null,null,null,null,null,null,null,null,null,null,null,null,null,null,null,null,null,null,null,null,null,null,null,null,null,null,null,null,null,null,null,null,null,null,null,null,null,null,null,null,null,null,null,null,null,null,null,null,null,null,null,null,null,null,null,null,null,null,null,null,null,null,null,null,null,null,null,null,null,null,null,null,null,null,null,null,null,null,null,null,null,null,null,null,null,null,null,null,168,21,4.9683479999999998,1.3126414795244385,1.7390999999999999,null,null,167.67431938343097]
[null,null,null,null,null,null,null,null,null,null,null,null,null,null,null,null,null,null,null,null,null,null,null,null,null,null,null,null,null,null,null,null,null,null,null,null,null,null,null,null,null,null,null,null,null,null,null,null,null,null,null,null,null,null,null,null,null,null,null,null,null,null,null,null,null,null,null,null,null,null,null,null,null,null,null,null,null,null,null,null,null,null,null,null,null,null,null,null,null,null,null,null,null,null,null,null,null,null,null,null,null,null,null,null,null,null,null,null,null,null,null,null,null,null,null,null,null,null,null,null,null,null,null,null,null,169,21.125,4.9979214999999995,1.3204548216644647,1.7493299999999998,null,null,168.79324372511437]
[null,null,null,null,null,null,null,null,null,null,null,null,null,null,null,null,null,null,null,null,null,null,null,null,null,null,null,null,null,null,null,null,null,null,null,null,null,null,null,null,null,null,null,null,null,null,null,null,null,null,null,null,null,null,null,null,null,null,null,null,null,null,null,null,null,null,null,null,null,null,null,null,null,null,null,null,null,null,null,null,null,null,null,null,null,null,null,null,null,null,null,null,null,null,null,null,null,null,null,null,null,null,null,null,null,null,null,null,null,null,null,null,null,null,null,null,null,null,null,null,null,null,null,null,null,170,21.25,5.027495,1.3282681638044913,1.7595599999999998,null,null,169.91410521290732]
[null,null,null,null,null,null,null,null,null,null,null,null,null,null,null,null,null,null,null,null,null,null,null,null,null,null,null,null,null,null,null,null,null,null,null,null,null,null,null,null,null,null,null,null,null,null,null,null,null,null,null,null,null,null,null,null,null,null,null,null,null,null,null,null,null,null,null,null,null,null,null,null,null,null,null,null,null,null,null,null,null,null,null,null,null,null,null,null,null,null,null,null,null,null,null,null,null,null,null,null,null,null,null,null,null,null,null,null,null,null,null,null,null,null,null,null,null,null,null,null,null,null,null,null,null,171,21.375,5.0570685000000006,1.3360815059445179,1.77152,null,null,171.22697233506301]
[null,null,null,null,null,null,null,null,null,null,null,null,null,null,null,null,null,null,null,null,null,null,null,null,null,null,null,null,null,null,null,null,null,null,null,null,null,null,null,null,null,null,null,null,null,null,null,null,null,null,null,null,null,null,null,null,null,null,null,null,null,null,null,null,null,null,null,null,null,null,null,null,null,null,null,null,null,null,null,null,null,null,null,null,null,null,null,null,null,null,null,null,null,null,null,null,null,null,null,null,null,null,null,null,null,null,null,null,null,null,null,null,null,null,null,null,null,null,null,null,null,null,null,null,null,172,21.5,5.0866419999999994,1.3438948480845441,1.78176,null,null,172.35313642315774]
[null,null,null,null,null,null,null,null,null,null,null,null,null,null,null,null,null,null,null,null,null,null,null,null,null,null,null,null,null,null,null,null,null,null,null,null,null,null,null,null,null,null,null,null,null,null,null,null,null,null,null,null,null,null,null,null,null,null,null,null,null,null,null,null,null,null,null,null,null,null,null,null,null,null,null,null,null,null,null,null,null,null,null,null,null,null,null,null,null,null,null,null,null,null,null,null,null,null,null,null,null,null,null,null,null,null,null,null,null,null,null,null,null,null,null,null,null,null,null,null,null,null,null,null,null,173,21.625,5.1162155,1.3517081902245707,1.78176,null,null,172.35313642315774]
[null,null,null,null,null,null,null,null,null,null,null,null,null,null,null,null,null,null,null,null,null,null,null,null,null,null,null,null,null,null,null,null,null,null,null,null,null,null,null,null,null,null,null,null,null,null,null,null,null,null,null,null,null,null,null,null,null,null,null,null,null,null,null,null,null,null,null,null,null,null,null,null,null,null,null,null,null,null,null,null,null,null,null,null,null,null,null,null,null,null,null,null,null,null,null,null,null,null,null,null,null,null,null,null,null,null,null,null,null,null,null,null,null,null,null,null,null,null,null,null,null,null,null,null,null,174,21.75,5.1457889999999997,1.3595215323645971,1.792,null,null,173.48124144639999]
[null,null,null,null,null,null,null,null,null,null,null,null,null,null,null,null,null,null,null,null,null,null,null,null,null,null,null,null,null,null,null,null,null,null,null,null,null,null,null,null,null,null,null,null,null,null,null,null,null,null,null,null,null,null,null,null,null,null,null,null,null,null,null,null,null,null,null,null,null,null,null,null,null,null,null,null,null,null,null,null,null,null,null,null,null,null,null,null,null,null,null,null,null,null,null,null,null,null,null,null,null,null,null,null,null,null,null,null,null,null,null,null,null,null,null,null,null,null,null,null,null,null,null,null,null,175,21.875,5.1753625000000003,1.3673348745046237,1.8022400000000001,null,null,174.61128740478975]
[null,null,null,null,null,null,null,null,null,null,null,null,null,null,null,null,null,null,null,null,null,null,null,null,null,null,null,null,null,null,null,null,null,null,null,null,null,null,null,null,null,null,null,null,null,null,null,null,null,null,null,null,null,null,null,null,null,null,null,null,null,null,null,null,null,null,null,null,null,null,null,null,null,null,null,null,null,null,null,null,null,null,null,null,null,null,null,null,null,null,null,null,null,null,null,null,null,null,null,null,null,null,null,null,null,null,null,null,null,null,null,null,null,null,null,null,null,null,null,null,null,null,null,null,null,176,22,5.204936,1.3751482166446498,1.8124800000000001,null,null,175.74327429832704]
[null,null,null,null,null,null,null,null,null,null,null,null,null,null,null,null,null,null,null,null,null,null,null,null,null,null,null,null,null,null,null,null,null,null,null,null,null,null,null,null,null,null,null,null,null,null,null,null,null,null,null,null,null,null,null,null,null,null,null,null,null,null,null,null,null,null,null,null,null,null,null,null,null,null,null,null,null,null,null,null,null,null,null,null,null,null,null,null,null,null,null,null,null,null,null,null,null,null,null,null,null,null,null,null,null,null,null,null,null,null,null,null,null,null,null,null,null,null,null,null,null,null,null,null,null,177,22.125,5.2345094999999997,1.3829615587846762,1.8227200000000001,null,null,176.87720212701183]
[null,null,null,null,null,null,null,null,null,null,null,null,null,null,null,null,null,null,null,null,null,null,null,null,null,null,null,null,null,null,null,null,null,null,null,null,null,null,null,null,null,null,null,null,null,null,null,null,null,null,null,null,null,null,null,null,null,null,null,null,null,null,null,null,null,null,null,null,null,null,null,null,null,null,null,null,null,null,null,null,null,null,null,null,null,null,null,null,null,null,null,null,null,null,null,null,null,null,null,null,null,null,null,null,null,null,null,null,null,null,null,null,null,null,null,null,null,null,null,null,null,null,null,null,null,178,22.25,5.2640829999999994,1.3907749009247026,1.8329600000000001,null,null,178.01307089084415]
[null,null,null,null,null,null,null,null,null,null,null,null,null,null,null,null,null,null,null,null,null,null,null,null,null,null,null,null,null,null,null,null,null,null,null,null,null,null,null,null,null,null,null,null,null,null,null,null,null,null,null,null,null,null,null,null,null,null,null,null,null,null,null,null,null,null,null,null,null,null,null,null,null,null,null,null,null,null,null,null,null,null,null,null,null,null,null,null,null,null,null,null,null,null,null,null,null,null,null,null,null,null,null,null,null,null,null,null,null,null,null,null,null,null,null,null,null,null,null,null,null,null,null,null,null,179,22.375,5.2936565,1.3985882430647292,1.845,null,null,179.35108677749997]
[null,null,null,null,null,null,null,null,null,null,null,null,null,null,null,null,null,null,null,null,null,null,null,null,null,null,null,null,null,null,null,null,null,null,null,null,null,null,null,null,null,null,null,null,null,null,null,null,null,null,null,null,null,null,null,null,null,null,null,null,null,null,null,null,null,null,null,null,null,null,null,null,null,null,null,null,null,null,null,null,null,null,null,null,null,null,null,null,null,null,null,null,null,null,null,null,null,null,null,null,null,null,null,null,null,null,null,null,null,null,null,null,null,null,null,null,null,null,null,null,null,null,null,null,null,180,22.5,5.3232299999999997,1.4064015852047556,1.845,null,null,179.35108677749997]
[null,null,null,null,null,null,null,null,null,null,null,null,null,null,null,null,null,null,null,null,null,null,null,null,null,null,null,null,null,null,null,null,null,null,null,null,null,null,null,null,null,null,null,null,null,null,null,null,null,null,null,null,null,null,null,null,null,null,null,null,null,null,null,null,null,null,null,null,null,null,null,null,null,null,null,null,null,null,null,null,null,null,null,null,null,null,null,null,null,null,null,null,null,null,null,null,null,null,null,null,null,null,null,null,null,null,null,null,null,null,null,null,null,null,null,null,null,null,null,null,null,null,null,null,null,181,22.625,5.3528035000000003,1.4142149273447822,1.8552499999999998,null,null,180.49229291119372]
[null,null,null,null,null,null,null,null,null,null,null,null,null,null,null,null,null,null,null,null,null,null,null,null,null,null,null,null,null,null,null,null,null,null,null,null,null,null,null,null,null,null,null,null,null,null,null,null,null,null,null,null,null,null,null,null,null,null,null,null,null,null,null,null,null,null,null,null,null,null,null,null,null,null,null,null,null,null,null,null,null,null,null,null,null,null,null,null,null,null,null,null,null,null,null,null,null,null,null,null,null,null,null,null,null,null,null,null,null,null,null,null,null,null,null,null,null,null,null,null,null,null,null,null,null,182,22.75,5.3823769999999991,1.4220282694848081,1.8654999999999999,null,null,181.63544377277498]
[null,null,null,null,null,null,null,null,null,null,null,null,null,null,null,null,null,null,null,null,null,null,null,null,null,null,null,null,null,null,null,null,null,null,null,null,null,null,null,null,null,null,null,null,null,null,null,null,null,null,null,null,null,null,null,null,null,null,null,null,null,null,null,null,null,null,null,null,null,null,null,null,null,null,null,null,null,null,null,null,null,null,null,null,null,null,null,null,null,null,null,null,null,null,null,null,null,null,null,null,null,null,null,null,null,null,null,null,null,null,null,null,null,null,null,null,null,null,null,null,null,null,null,null,null,183,22.875,5.4119504999999997,1.4298416116248347,1.8757499999999998,null,null,182.7805393622437]
[null,null,null,null,null,null,null,null,null,null,null,null,null,null,null,null,null,null,null,null,null,null,null,null,null,null,null,null,null,null,null,null,null,null,null,null,null,null,null,null,null,null,null,null,null,null,null,null,null,null,null,null,null,null,null,null,null,null,null,null,null,null,null,null,null,null,null,null,null,null,null,null,null,null,null,null,null,null,null,null,null,null,null,null,null,null,null,null,null,null,null,null,null,null,null,null,null,null,null,null,null,null,null,null,null,null,null,null,null,null,null,null,null,null,null,null,null,null,null,null,null,null,null,null,null,184,23,5.4415239999999994,1.4376549537648611,1.8859999999999999,null,null,183.92757967959997]
[null,null,null,null,null,null,null,null,null,null,null,null,null,null,null,null,null,null,null,null,null,null,null,null,null,null,null,null,null,null,null,null,null,null,null,null,null,null,null,null,null,null,null,null,null,null,null,null,null,null,null,null,null,null,null,null,null,null,null,null,null,null,null,null,null,null,null,null,null,null,null,null,null,null,null,null,null,null,null,null,null,null,null,null,null,null,null,null,null,null,null,null,null,null,null,null,null,null,null,null,null,null,null,null,null,null,null,null,null,null,null,null,null,null,null,null,null,null,null,null,null,null,null,null,null,185,23.125,5.4710974999999999,1.4454682959048877,1.89625,null,null,185.07656472484373]
[null,null,null,null,null,null,null,null,null,null,null,null,null,null,null,null,null,null,null,null,null,null,null,null,null,null,null,null,null,null,null,null,null,null,null,null,null,null,null,null,null,null,null,null,null,null,null,null,null,null,null,null,null,null,null,null,null,null,null,null,null,null,null,null,null,null,null,null,null,null,null,null,null,null,null,null,null,null,null,null,null,null,null,null,null,null,null,null,null,null,null,null,null,null,null,null,null,null,null,null,null,null,null,null,null,null,null,null,null,null,null,null,null,null,null,null,null,null,null,null,null,null,null,null,null,186,23.25,5.5006710000000005,1.4532816380449143,1.9064999999999999,null,null,186.22749449797496]
[null,null,null,null,null,null,null,null,null,null,null,null,null,null,null,null,null,null,null,null,null,null,null,null,null,null,null,null,null,null,null,null,null,null,null,null,null,null,null,null,null,null,null,null,null,null,null,null,null,null,null,null,null,null,null,null,null,null,null,null,null,null,null,null,null,null,null,null,null,null,null,null,null,null,null,null,null,null,null,null,null,null,null,null,null,null,null,null,null,null,null,null,null,null,null,null,null,null,null,null,null,null,null,null,null,null,null,null,null,null,null,null,null,null,null,null,null,null,null,null,null,null,null,null,null,187,23.375,5.5302445000000002,1.4610949801849407,1.91675,null,null,187.38036899899373]
[null,null,null,null,null,null,null,null,null,null,null,null,null,null,null,null,null,null,null,null,null,null,null,null,null,null,null,null,null,null,null,null,null,null,null,null,null,null,null,null,null,null,null,null,null,null,null,null,null,null,null,null,null,null,null,null,null,null,null,null,null,null,null,null,null,null,null,null,null,null,null,null,null,null,null,null,null,null,null,null,null,null,null,null,null,null,null,null,null,null,null,null,null,null,null,null,null,null,null,null,null,null,null,null,null,null,null,null,null,null,null,null,null,null,null,null,null,null,null,null,null,null,null,null,null,188,23.5,5.5598179999999999,1.4689083223249668,1.9186200000000002,null,null,187.59090805949245]
[null,null,null,null,null,null,null,null,null,null,null,null,null,null,null,null,null,null,null,null,null,null,null,null,null,null,null,null,null,null,null,null,null,null,null,null,null,null,null,null,null,null,null,null,null,null,null,null,null,null,null,null,null,null,null,null,null,null,null,null,null,null,null,null,null,null,null,null,null,null,null,null,null,null,null,null,null,null,null,null,null,null,null,null,null,null,null,null,null,null,null,null,null,null,null,null,null,null,null,null,null,null,null,null,null,null,null,null,null,null,null,null,null,null,null,null,null,null,null,null,null,null,null,null,null,189,23.625,5.5893914999999996,1.4767216644649932,1.9288799999999999,null,null,188.7472100312774]
[null,null,null,null,null,null,null,null,null,null,null,null,null,null,null,null,null,null,null,null,null,null,null,null,null,null,null,null,null,null,null,null,null,null,null,null,null,null,null,null,null,null,null,null,null,null,null,null,null,null,null,null,null,null,null,null,null,null,null,null,null,null,null,null,null,null,null,null,null,null,null,null,null,null,null,null,null,null,null,null,null,null,null,null,null,null,null,null,null,null,null,null,null,null,null,null,null,null,null,null,null,null,null,null,null,null,null,null,null,null,null,null,null,null,null,null,null,null,null,null,null,null,null,null,null,190,23.75,5.6189650000000002,1.4845350066050198,1.9391399999999999,null,null,189.90546052739194]
[null,null,null,null,null,null,null,null,null,null,null,null,null,null,null,null,null,null,null,null,null,null,null,null,null,null,null,null,null,null,null,null,null,null,null,null,null,null,null,null,null,null,null,null,null,null,null,null,null,null,null,null,null,null,null,null,null,null,null,null,null,null,null,null,null,null,null,null,null,null,null,null,null,null,null,null,null,null,null,null,null,null,null,null,null,null,null,null,null,null,null,null,null,null,null,null,null,null,null,null,null,null,null,null,null,null,null,null,null,null,null,null,null,null,null,null,null,null,null,null,null,null,null,null,null,191,23.875,5.6485384999999999,1.4923483487450462,1.9494,null,null,191.06565954783599]
[null,null,null,null,null,null,null,null,null,null,null,null,null,null,null,null,null,null,null,null,null,null,null,null,null,null,null,null,null,null,null,null,null,null,null,null,null,null,null,null,null,null,null,null,null,null,null,null,null,null,null,null,null,null,null,null,null,null,null,null,null,null,null,null,null,null,null,null,null,null,null,null,null,null,null,null,null,null,null,null,null,null,null,null,null,null,null,null,null,null,null,null,null,null,null,null,null,null,null,null,null,null,null,null,null,null,null,null,null,null,null,null,null,null,null,null,null,null,null,null,null,null,null,null,null,192,24,5.6781120000000005,1.5001616908850728,1.95966,null,null,192.22780709260954]
[null,null,null,null,null,null,null,null,null,null,null,null,null,null,null,null,null,null,null,null,null,null,null,null,null,null,null,null,null,null,null,null,null,null,null,null,null,null,null,null,null,null,null,null,null,null,null,null,null,null,null,null,null,null,null,null,null,null,null,null,null,null,null,null,null,null,null,null,null,null,null,null,null,null,null,null,null,null,null,null,null,null,null,null,null,null,null,null,null,null,null,null,null,null,null,null,null,null,null,null,null,null,null,null,null,null,null,null,null,null,null,null,null,null,null,null,null,null,null,null,null,null,null,null,null,193,24.125,5.7076854999999993,1.5079750330250989,1.9699199999999999,null,null,193.39190316171261]
[null,null,null,null,null,null,null,null,null,null,null,null,null,null,null,null,null,null,null,null,null,null,null,null,null,null,null,null,null,null,null,null,null,null,null,null,null,null,null,null,null,null,null,null,null,null,null,null,null,null,null,null,null,null,null,null,null,null,null,null,null,null,null,null,null,null,null,null,null,null,null,null,null,null,null,null,null,null,null,null,null,null,null,null,null,null,null,null,null,null,null,null,null,null,null,null,null,null,null,null,null,null,null,null,null,null,null,null,null,null,null,null,null,null,null,null,null,null,null,null,null,null,null,null,null,194,24.25,5.7372589999999999,1.5157883751651253,1.9699199999999999,null,null,193.39190316171261]
[null,null,null,null,null,null,null,null,null,null,null,null,null,null,null,null,null,null,null,null,null,null,null,null,null,null,null,null,null,null,null,null,null,null,null,null,null,null,null,null,null,null,null,null,null,null,null,null,null,null,null,null,null,null,null,null,null,null,null,null,null,null,null,null,null,null,null,null,null,null,null,null,null,null,null,null,null,null,null,null,null,null,null,null,null,null,null,null,null,null,null,null,null,null,null,null,null,null,null,null,null,null,null,null,null,null,null,null,null,null,null,null,null,null,null,null,null,null,null,null,null,null,null,null,null,195,24.375,5.7668324999999996,1.5236017173051517,1.9801800000000001,null,null,194.55794775514522]
[null,null,null,null,null,null,null,null,null,null,null,null,null,null,null,null,null,null,null,null,null,null,null,null,null,null,null,null,null,null,null,null,null,null,null,null,null,null,null,null,null,null,null,null,null,null,null,null,null,null,null,null,null,null,null,null,null,null,null,null,null,null,null,null,null,null,null,null,null,null,null,null,null,null,null,null,null,null,null,null,null,null,null,null,null,null,null,null,null,null,null,null,null,null,null,null,null,null,null,null,null,null,null,null,null,null,null,null,null,null,null,null,null,null,null,null,null,null,null,null,null,null,null,null,null,196,24.5,5.7964060000000002,1.5314150594451783,1.9923799999999998,null,null,195.94700852382837]
[null,null,null,null,null,null,null,null,null,null,null,null,null,null,null,null,null,null,null,null,null,null,null,null,null,null,null,null,null,null,null,null,null,null,null,null,null,null,null,null,null,null,null,null,null,null,null,null,null,null,null,null,null,null,null,null,null,null,null,null,null,null,null,null,null,null,null,null,null,null,null,null,null,null,null,null,null,null,null,null,null,null,null,null,null,null,null,null,null,null,null,null,null,null,null,null,null,null,null,null,null,null,null,null,null,null,null,null,null,null,null,null,null,null,null,null,null,null,null,null,null,null,null,null,null,197,{"$f":"DV198/8","v":24.625},{"$f":"DV198*29.5735/1000","v":5.8259794999999999},{"$f":"DX198/3.785","v":1.5392284015852047},2.0026499999999996,null,null,197.11846020393969]
[null,null,null,null,null,null,null,null,null,null,null,null,null,null,null,null,null,null,null,null,null,null,null,null,null,null,null,null,null,null,null,null,null,null,null,null,null,null,null,null,null,null,null,null,null,null,null,null,null,null,null,null,null,null,null,null,null,null,null,null,null,null,null,null,null,null,null,null,null,null,null,null,null,null,null,null,null,null,null,null,null,null,null,null,null,null,null,null,null,null,null,null,null,null,null,null,null,null,null,null,null,null,null,null,null,null,null,null,null,null,null,null,null,null,null,null,null,null,null,null,null,null,null,null,null,198,24.75,5.8555529999999996,1.5470417437252311,2.0129199999999998,null,null,198.2918642085246]
[null,null,null,null,null,null,null,null,null,null,null,null,null,null,null,null,null,null,null,null,null,null,null,null,null,null,null,null,null,null,null,null,null,null,null,null,null,null,null,null,null,null,null,null,null,null,null,null,null,null,null,null,null,null,null,null,null,null,null,null,null,null,null,null,null,null,null,null,null,null,null,null,null,null,null,null,null,null,null,null,null,null,null,null,null,null,null,null,null,null,null,null,null,null,null,null,null,null,null,null,null,null,null,null,null,null,null,null,null,null,null,null,null,null,null,null,null,null,null,null,null,null,null,null,null,199,24.875,5.8851264999999993,1.5548550858652574,2.0231899999999996,null,null,199.46722053758302]
[null,null,null,null,null,null,null,null,null,null,null,null,null,null,null,null,null,null,null,null,null,null,null,null,null,null,null,null,null,null,null,null,null,null,null,null,null,null,null,null,null,null,null,null,null,null,null,null,null,null,null,null,null,null,null,null,null,null,null,null,null,null,null,null,null,null,null,null,null,null,null,null,null,null,null,null,null,null,null,null,null,null,null,null,null,null,null,null,null,null,null,null,null,null,null,null,null,null,null,null,null,null,null,null,null,null,null,null,null,null,null,null,null,null,null,null,null,null,null,null,null,null,null,null,null,200,25,5.9146999999999998,1.5626684280052838,2.0231899999999996,null,null,199.46722053758302]
[null,null,null,null,null,null,null,null,null,null,null,null,null,null,null,null,null,null,null,null,null,null,null,null,null,null,null,null,null,null,null,null,null,null,null,null,null,null,null,null,null,null,null,null,null,null,null,null,null,null,null,null,null,null,null,null,null,null,null,null,null,null,null,null,null,null,null,null,null,null,null,null,null,null,null,null,null,null,null,null,null,null,null,null,null,null,null,null,null,null,null,null,null,null,null,null,null,null,null,null,null,null,null,null,null,null,null,null,null,null,null,null,null,null,null,null,null,null,null,null,null,null,null,null,null,201,25.125,5.9442735000000004,1.5704817701453104,2.0334599999999998,null,null,200.64452919111511]
[null,null,null,null,null,null,null,null,null,null,null,null,null,null,null,null,null,null,null,null,null,null,null,null,null,null,null,null,null,null,null,null,null,null,null,null,null,null,null,null,null,null,null,null,null,null,null,null,null,null,null,null,null,null,null,null,null,null,null,null,null,null,null,null,null,null,null,null,null,null,null,null,null,null,null,null,null,null,null,null,null,null,null,null,null,null,null,null,null,null,null,null,null,null,null,null,null,null,null,null,null,null,null,null,null,null,null,null,null,null,null,null,null,null,null,null,null,null,null,null,null,null,null,null,null,202,25.25,5.9738470000000001,1.5782951122853368,2.0437299999999996,null,null,201.82379016912071]
[null,null,null,null,null,null,null,null,null,null,null,null,null,null,null,null,null,null,null,null,null,null,null,null,null,null,null,null,null,null,null,null,null,null,null,null,null,null,null,null,null,null,null,null,null,null,null,null,null,null,null,null,null,null,null,null,null,null,null,null,null,null,null,null,null,null,null,null,null,null,null,null,null,null,null,null,null,null,null,null,null,null,null,null,null,null,null,null,null,null,null,null,null,null,null,null,null,null,null,null,null,null,null,null,null,null,null,null,null,null,null,null,null,null,null,null,null,null,null,null,null,null,null,null,null,203,25.375,6.0034204999999998,1.5861084544253632,2.0539999999999998,null,null,203.00500347159996]
[null,null,null,null,null,null,null,null,null,null,null,null,null,null,null,null,null,null,null,null,null,null,null,null,null,null,null,null,null,null,null,null,null,null,null,null,null,null,null,null,null,null,null,null,null,null,null,null,null,null,null,null,null,null,null,null,null,null,null,null,null,null,null,null,null,null,null,null,null,null,null,null,null,null,null,null,null,null,null,null,null,null,null,null,null,null,null,null,null,null,null,null,null,null,null,null,null,null,null,null,null,null,null,null,null,null,null,null,null,null,null,null,null,null,null,null,null,null,null,null,null,null,null,null,null,204,25.5,6.0329939999999995,1.5939217965653896,2.0642699999999996,null,null,204.18816909855272]
[null,null,null,null,null,null,null,null,null,null,null,null,null,null,null,null,null,null,null,null,null,null,null,null,null,null,null,null,null,null,null,null,null,null,null,null,null,null,null,null,null,null,null,null,null,null,null,null,null,null,null,null,null,null,null,null,null,null,null,null,null,null,null,null,null,null,null,null,null,null,null,null,null,null,null,null,null,null,null,null,null,null,null,null,null,null,null,null,null,null,null,null,null,null,null,null,null,null,null,null,null,null,null,null,null,null,null,null,null,null,null,null,null,null,null,null,null,null,null,null,null,null,null,null,null,205,25.625,6.0625675000000001,1.6017351387054162,2.0662799999999999,null,null,204.4199616016958]
[null,null,null,null,null,null,null,null,null,null,null,null,null,null,null,null,null,null,null,null,null,null,null,null,null,null,null,null,null,null,null,null,null,null,null,null,null,null,null,null,null,null,null,null,null,null,null,null,null,null,null,null,null,null,null,null,null,null,null,null,null,null,null,null,null,null,null,null,null,null,null,null,null,null,null,null,null,null,null,null,null,null,null,null,null,null,null,null,null,null,null,null,null,null,null,null,null,null,null,null,null,null,null,null,null,null,null,null,null,null,null,null,null,null,null,null,null,null,null,null,null,null,null,null,null,206,25.75,6.0921409999999998,1.6095484808454423,2.0765600000000002,null,null,205.60661693811136]
[null,null,null,null,null,null,null,null,null,null,null,null,null,null,null,null,null,null,null,null,null,null,null,null,null,null,null,null,null,null,null,null,null,null,null,null,null,null,null,null,null,null,null,null,null,null,null,null,null,null,null,null,null,null,null,null,null,null,null,null,null,null,null,null,null,null,null,null,null,null,null,null,null,null,null,null,null,null,null,null,null,null,null,null,null,null,null,null,null,null,null,null,null,null,null,null,null,null,null,null,null,null,null,null,null,null,null,null,null,null,null,null,null,null,null,null,null,null,null,null,null,null,null,null,null,207,25.875,6.1217145000000004,1.6173618229854689,2.08684,null,null,206.79522840284656]
[null,null,null,null,null,null,null,null,null,null,null,null,null,null,null,null,null,null,null,null,null,null,null,null,null,null,null,null,null,null,null,null,null,null,null,null,null,null,null,null,null,null,null,null,null,null,null,null,null,null,null,null,null,null,null,null,null,null,null,null,null,null,null,null,null,null,null,null,null,null,null,null,null,null,null,null,null,null,null,null,null,null,null,null,null,null,null,null,null,null,null,null,null,null,null,null,null,null,null,null,null,null,null,null,null,null,null,null,null,null,null,null,null,null,null,null,null,null,null,null,null,null,null,null,null,208,26,6.1512879999999992,1.6251751651254951,2.0971199999999999,null,null,207.98579599590141]
[null,null,null,null,null,null,null,null,null,null,null,null,null,null,null,null,null,null,null,null,null,null,null,null,null,null,null,null,null,null,null,null,null,null,null,null,null,null,null,null,null,null,null,null,null,null,null,null,null,null,null,null,null,null,null,null,null,null,null,null,null,null,null,null,null,null,null,null,null,null,null,null,null,null,null,null,null,null,null,null,null,null,null,null,null,null,null,null,null,null,null,null,null,null,null,null,null,null,null,null,null,null,null,null,null,null,null,null,null,null,null,null,null,null,null,null,null,null,null,null,null,null,null,null,null,209,26.125,6.1808614999999998,1.6329885072655217,2.1073999999999997,null,null,209.17831971727594]
[null,null,null,null,null,null,null,null,null,null,null,null,null,null,null,null,null,null,null,null,null,null,null,null,null,null,null,null,null,null,null,null,null,null,null,null,null,null,null,null,null,null,null,null,null,null,null,null,null,null,null,null,null,null,null,null,null,null,null,null,null,null,null,null,null,null,null,null,null,null,null,null,null,null,null,null,null,null,null,null,null,null,null,null,null,null,null,null,null,null,null,null,null,null,null,null,null,null,null,null,null,null,null,null,null,null,null,null,null,null,null,null,null,null,null,null,null,null,null,null,null,null,null,null,null,210,26.25,6.2104349999999995,1.6408018494055481,2.11768,null,null,210.3727995669702]
[null,null,null,null,null,null,null,null,null,null,null,null,null,null,null,null,null,null,null,null,null,null,null,null,null,null,null,null,null,null,null,null,null,null,null,null,null,null,null,null,null,null,null,null,null,null,null,null,null,null,null,null,null,null,null,null,null,null,null,null,null,null,null,null,null,null,null,null,null,null,null,null,null,null,null,null,null,null,null,null,null,null,null,null,null,null,null,null,null,null,null,null,null,null,null,null,null,null,null,null,null,null,null,null,null,null,null,null,null,null,null,null,null,null,null,null,null,null,null,null,null,null,null,null,null,211,26.375,6.2400085000000001,1.6486151915455747,2.11768,null,null,210.3727995669702]
[null,null,null,null,null,null,null,null,null,null,null,null,null,null,null,null,null,null,null,null,null,null,null,null,null,null,null,null,null,null,null,null,null,null,null,null,null,null,null,null,null,null,null,null,null,null,null,null,null,null,null,null,null,null,null,null,null,null,null,null,null,null,null,null,null,null,null,null,null,null,null,null,null,null,null,null,null,null,null,null,null,null,null,null,null,null,null,null,null,null,null,null,null,null,null,null,null,null,null,null,null,null,null,null,null,null,null,null,null,null,null,null,null,null,null,null,null,null,null,null,null,null,null,null,null,212,26.5,6.2695819999999998,1.6564285336856008,2.1279599999999999,null,null,211.56923554498411]
[null,null,null,null,null,null,null,null,null,null,null,null,null,null,null,null,null,null,null,null,null,null,null,null,null,null,null,null,null,null,null,null,null,null,null,null,null,null,null,null,null,null,null,null,null,null,null,null,null,null,null,null,null,null,null,null,null,null,null,null,null,null,null,null,null,null,null,null,null,null,null,null,null,null,null,null,null,null,null,null,null,null,null,null,null,null,null,null,null,null,null,null,null,null,null,null,null,null,null,null,null,null,null,null,null,null,null,null,null,null,null,null,null,null,null,null,null,null,null,null,null,null,null,null,null,213,26.625,6.2991554999999995,1.6642418758256272,2.14032,null,null,213.01034181268224]
[null,null,null,null,null,null,null,null,null,null,null,null,null,null,null,null,null,null,null,null,null,null,null,null,null,null,null,null,null,null,null,null,null,null,null,null,null,null,null,null,null,null,null,null,null,null,null,null,null,null,null,null,null,null,null,null,null,null,null,null,null,null,null,null,null,null,null,null,null,null,null,null,null,null,null,null,null,null,null,null,null,null,null,null,null,null,null,null,null,null,null,null,null,null,null,null,null,null,null,null,null,null,null,null,null,null,null,null,null,null,null,null,null,null,null,null,null,null,null,null,null,null,null,null,null,214,26.75,6.328729,1.6720552179656538,2.1506099999999995,null,null,214.21225483112264]
[null,null,null,null,null,null,null,null,null,null,null,null,null,null,null,null,null,null,null,null,null,null,null,null,null,null,null,null,null,null,null,null,null,null,null,null,null,null,null,null,null,null,null,null,null,null,null,null,null,null,null,null,null,null,null,null,null,null,null,null,null,null,null,null,null,null,null,null,null,null,null,null,null,null,null,null,null,null,null,null,null,null,null,null,null,null,null,null,null,null,null,null,null,null,null,null,null,null,null,null,null,null,null,null,null,null,null,null,null,null,null,null,null,null,null,null,null,null,null,null,null,null,null,null,null,215,26.875,6.3583024999999997,1.6798685601056802,2.1608999999999998,null,null,215.41612778543094]
[null,null,null,null,null,null,null,null,null,null,null,null,null,null,null,null,null,null,null,null,null,null,null,null,null,null,null,null,null,null,null,null,null,null,null,null,null,null,null,null,null,null,null,null,null,null,null,null,null,null,null,null,null,null,null,null,null,null,null,null,null,null,null,null,null,null,null,null,null,null,null,null,null,null,null,null,null,null,null,null,null,null,null,null,null,null,null,null,null,null,null,null,null,null,null,null,null,null,null,null,null,null,null,null,null,null,null,null,null,null,null,null,null,null,null,null,null,null,null,null,null,null,null,null,null,216,27,6.3878760000000003,1.6876819022457068,2.1608999999999998,null,null,215.41612778543094]
[null,null,null,null,null,null,null,null,null,null,null,null,null,null,null,null,null,null,null,null,null,null,null,null,null,null,null,null,null,null,null,null,null,null,null,null,null,null,null,null,null,null,null,null,null,null,null,null,null,null,null,null,null,null,null,null,null,null,null,null,null,null,null,null,null,null,null,null,null,null,null,null,null,null,null,null,null,null,null,null,null,null,null,null,null,null,null,null,null,null,null,null,null,null,null,null,null,null,null,null,null,null,null,null,null,null,null,null,null,null,null,null,null,null,null,null,null,null,null,null,null,null,null,null,null,217,27.125,6.4174495,1.6954952443857332,2.1711899999999997,null,null,216.62196067560708]
[null,null,null,null,null,null,null,null,null,null,null,null,null,null,null,null,null,null,null,null,null,null,null,null,null,null,null,null,null,null,null,null,null,null,null,null,null,null,null,null,null,null,null,null,null,null,null,null,null,null,null,null,null,null,null,null,null,null,null,null,null,null,null,null,null,null,null,null,null,null,null,null,null,null,null,null,null,null,null,null,null,null,null,null,null,null,null,null,null,null,null,null,null,null,null,null,null,null,null,null,null,null,null,null,null,null,null,null,null,null,null,null,null,null,null,null,null,null,null,null,null,null,null,null,null,218,27.25,6.4470229999999997,1.7033085865257593,2.1814800000000001,null,null,217.82975350165103]
[null,null,null,null,null,null,null,null,null,null,null,null,null,null,null,null,null,null,null,null,null,null,null,null,null,null,null,null,null,null,null,null,null,null,null,null,null,null,null,null,null,null,null,null,null,null,null,null,null,null,null,null,null,null,null,null,null,null,null,null,null,null,null,null,null,null,null,null,null,null,null,null,null,null,null,null,null,null,null,null,null,null,null,null,null,null,null,null,null,null,null,null,null,null,null,null,null,null,null,null,null,null,null,null,null,null,null,null,null,null,null,null,null,null,null,null,null,null,null,null,null,null,null,null,null,219,27.375,6.4765964999999994,1.7111219286657857,2.1917699999999996,null,null,219.03950626356271]
[null,null,null,null,null,null,null,null,null,null,null,null,null,null,null,null,null,null,null,null,null,null,null,null,null,null,null,null,null,null,null,null,null,null,null,null,null,null,null,null,null,null,null,null,null,null,null,null,null,null,null,null,null,null,null,null,null,null,null,null,null,null,null,null,null,null,null,null,null,null,null,null,null,null,null,null,null,null,null,null,null,null,null,null,null,null,null,null,null,null,null,null,null,null,null,null,null,null,null,null,null,null,null,null,null,null,null,null,null,null,null,null,null,null,null,null,null,null,null,null,null,null,null,null,null,220,27.5,6.50617,1.7189352708058123,2.2020599999999999,null,null,220.25121896134235]
[null,null,null,null,null,null,null,null,null,null,null,null,null,null,null,null,null,null,null,null,null,null,null,null,null,null,null,null,null,null,null,null,null,null,null,null,null,null,null,null,null,null,null,null,null,null,null,null,null,null,null,null,null,null,null,null,null,null,null,null,null,null,null,null,null,null,null,null,null,null,null,null,null,null,null,null,null,null,null,null,null,null,null,null,null,null,null,null,null,null,null,null,null,null,null,null,null,null,null,null,null,null,null,null,null,null,null,null,null,null,null,null,null,null,null,null,null,null,null,null,null,null,null,null,null,221,27.625,6.5357434999999997,1.7267486129458387,2.2123499999999998,null,null,221.46489159498972]
[null,null,null,null,null,null,null,null,null,null,null,null,null,null,null,null,null,null,null,null,null,null,null,null,null,null,null,null,null,null,null,null,null,null,null,null,null,null,null,null,null,null,null,null,null,null,null,null,null,null,null,null,null,null,null,null,null,null,null,null,null,null,null,null,null,null,null,null,null,null,null,null,null,null,null,null,null,null,null,null,null,null,null,null,null,null,null,null,null,null,null,null,null,null,null,null,null,null,null,null,null,null,null,null,null,null,null,null,null,null,null,null,null,null,null,null,null,null,null,null,null,null,null,null,null,222,27.75,6.5653170000000003,1.7345619550858653,2.2145000000000001,null,null,221.718724764775]
[null,null,null,null,null,null,null,null,null,null,null,null,null,null,null,null,null,null,null,null,null,null,null,null,null,null,null,null,null,null,null,null,null,null,null,null,null,null,null,null,null,null,null,null,null,null,null,null,null,null,null,null,null,null,null,null,null,null,null,null,null,null,null,null,null,null,null,null,null,null,null,null,null,null,null,null,null,null,null,null,null,null,null,null,null,null,null,null,null,null,null,null,null,null,null,null,null,null,null,null,null,null,null,null,null,null,null,null,null,null,null,null,null,null,null,null,null,null,null,null,null,null,null,null,null,223,27.875,6.5948904999999991,1.7423752972258915,2.2248000000000001,null,null,{"$f":"9.2551*DZ224^2+77.091*DZ224+5.6136","v":222.93594956870399}]
[null,null,null,null,null,null,null,null,null,null,null,null,null,null,null,null,null,null,null,null,null,null,null,null,null,null,null,null,null,null,null,null,null,null,null,null,null,null,null,null,null,null,null,null,null,null,null,null,null,null,null,null,null,null,null,null,null,null,null,null,null,null,null,null,null,null,null,null,null,null,null,null,null,null,null,null,null,null,null,null,null,null,null,null,null,null,null,null,null,null,null,null,null,null,null,null,null,null,null,null,null,null,null,null,null,null,null,null,null,null,null,null,null,null,null,null,null,null,null,null,null,null,null,null,null,224,28,6.6244639999999997,1.7501886393659178,2.2351000000000001,null,null,224.155138119751]
[null,null,null,null,null,null,null,null,null,null,null,null,null,null,null,null,null,null,null,null,null,null,null,null,null,null,null,null,null,null,null,null,null,null,null,null,null,null,null,null,null,null,null,null,null,null,null,null,null,null,null,null,null,null,null,null,null,null,null,null,null,null,null,null,null,null,null,null,null,null,null,null,null,null,null,null,null,null,null,null,null,null,null,null,null,null,null,null,null,null,null,null,null,null,null,null,null,null,null,null,null,null,null,null,null,null,null,null,null,null,null,null,null,null,null,null,null,null,null,null,null,null,null,null,null,225,28.125,6.6540374999999994,1.7580019815059442,2.2454000000000001,null,null,225.37629041791598]
[null,null,null,null,null,null,null,null,null,null,null,null,null,null,null,null,null,null,null,null,null,null,null,null,null,null,null,null,null,null,null,null,null,null,null,null,null,null,null,null,null,null,null,null,null,null,null,null,null,null,null,null,null,null,null,null,null,null,null,null,null,null,null,null,null,null,null,null,null,null,null,null,null,null,null,null,null,null,null,null,null,null,null,null,null,null,null,null,null,null,null,null,null,null,null,null,null,null,null,null,null,null,null,null,null,null,null,null,null,null,null,null,null,null,null,null,null,null,null,null,null,null,null,null,null,226,28.25,6.683611,1.7658153236459708,2.2557,null,null,226.59940646319899]
[null,null,null,null,null,null,null,null,null,null,null,null,null,null,null,null,null,null,null,null,null,null,null,null,null,null,null,null,null,null,null,null,null,null,null,null,null,null,null,null,null,null,null,null,null,null,null,null,null,null,null,null,null,null,null,null,null,null,null,null,null,null,null,null,null,null,null,null,null,null,null,null,null,null,null,null,null,null,null,null,null,null,null,null,null,null,null,null,null,null,null,null,null,null,null,null,null,null,null,null,null,null,null,null,null,null,null,null,null,null,null,null,null,null,null,null,null,null,null,null,null,null,null,null,null,227,28.375,6.7131844999999997,1.7736286657859972,2.2557,null,null,226.59940646319899]
[null,null,null,null,null,null,null,null,null,null,null,null,null,null,null,null,null,null,null,null,null,null,null,null,null,null,null,null,null,null,null,null,null,null,null,null,null,null,null,null,null,null,null,null,null,null,null,null,null,null,null,null,null,null,null,null,null,null,null,null,null,null,null,null,null,null,null,null,null,null,null,null,null,null,null,null,null,null,null,null,null,null,null,null,null,null,null,null,null,null,null,null,null,null,null,null,null,null,null,null,null,null,null,null,null,null,null,null,null,null,null,null,null,null,null,null,null,null,null,null,null,null,null,null,null,228,28.5,6.7427580000000003,1.7814420079260238,2.2660000000000005,null,null,227.82448625560002]
[null,null,null,null,null,null,null,null,null,null,null,null,null,null,null,null,null,null,null,null,null,null,null,null,null,null,null,null,null,null,null,null,null,null,null,null,null,null,null,null,null,null,null,null,null,null,null,null,null,null,null,null,null,null,null,null,null,null,null,null,null,null,null,null,null,null,null,null,null,null,null,null,null,null,null,null,null,null,null,null,null,null,null,null,null,null,null,null,null,null,null,null,null,null,null,null,null,null,null,null,null,null,null,null,null,null,null,null,null,null,null,null,null,null,null,null,null,null,null,null,null,null,null,null,null,229,28.625,6.7723314999999999,1.7892553500660502,2.2763,null,null,229.05152979511897]
[null,null,null,null,null,null,null,null,null,null,null,null,null,null,null,null,null,null,null,null,null,null,null,null,null,null,null,null,null,null,null,null,null,null,null,null,null,null,null,null,null,null,null,null,null,null,null,null,null,null,null,null,null,null,null,null,null,null,null,null,null,null,null,null,null,null,null,null,null,null,null,null,null,null,null,null,null,null,null,null,null,null,null,null,null,null,null,null,null,null,null,null,null,null,null,null,null,null,null,null,null,null,null,null,null,null,null,null,null,null,null,null,null,null,null,null,null,null,null,null,null,null,null,null,null,230,28.75,6.8019049999999996,1.7970686922060766,2.2866000000000004,null,null,230.28053708175602]
[null,null,null,null,null,null,null,null,null,null,null,null,null,null,null,null,null,null,null,null,null,null,null,null,null,null,null,null,null,null,null,null,null,null,null,null,null,null,null,null,null,null,null,null,null,null,null,null,null,null,null,null,null,null,null,null,null,null,null,null,null,null,null,null,null,null,null,null,null,null,null,null,null,null,null,null,null,null,null,null,null,null,null,null,null,null,null,null,null,null,null,null,null,null,null,null,null,null,null,null,null,null,null,null,null,null,null,null,null,null,null,null,null,null,null,null,null,null,null,null,null,null,null,null,null,231,28.875,6.8314785000000002,1.8048820343461029,2.2888199999999999,null,null,230.54568715436119]
[null,null,null,null,null,null,null,null,null,null,null,null,null,null,null,null,null,null,null,null,null,null,null,null,null,null,null,null,null,null,null,null,null,null,null,null,null,null,null,null,null,null,null,null,null,null,null,null,null,null,null,null,null,null,null,null,null,null,null,null,null,null,null,null,null,null,null,null,null,null,null,null,null,null,null,null,null,null,null,null,null,null,null,null,null,null,null,null,null,null,null,null,null,null,null,null,null,null,null,null,null,null,null,null,null,null,null,null,null,null,null,null,null,null,null,null,null,null,null,null,null,null,null,null,null,232,29,6.8610519999999999,1.8126953764861293,2.2991299999999999,null,null,231.77827792498516]
[null,null,null,null,null,null,null,null,null,null,null,null,null,null,null,null,null,null,null,null,null,null,null,null,null,null,null,null,null,null,null,null,null,null,null,null,null,null,null,null,null,null,null,null,null,null,null,null,null,null,null,null,null,null,null,null,null,null,null,null,null,null,null,null,null,null,null,null,null,null,null,null,null,null,null,null,null,null,null,null,null,null,null,null,null,null,null,null,null,null,null,null,null,null,null,null,null,null,null,null,null,null,null,null,null,null,null,null,null,null,null,null,null,null,null,null,null,null,null,null,null,null,null,null,null,233,29.125,6.8906255000000005,1.8205087186261559,2.3094399999999999,null,null,233.01283625767931]
[null,null,null,null,null,null,null,null,null,null,null,null,null,null,null,null,null,null,null,null,null,null,null,null,null,null,null,null,null,null,null,null,null,null,null,null,null,null,null,null,null,null,null,null,null,null,null,null,null,null,null,null,null,null,null,null,null,null,null,null,null,null,null,null,null,null,null,null,null,null,null,null,null,null,null,null,null,null,null,null,null,null,null,null,null,null,null,null,null,null,null,null,null,null,null,null,null,null,null,null,null,null,null,null,null,null,null,null,null,null,null,null,null,null,null,null,null,null,null,null,null,null,null,null,null,234,29.25,6.9201989999999993,1.8283220607661821,2.31975,null,null,234.24936215244372]
[null,null,null,null,null,null,null,null,null,null,null,null,null,null,null,null,null,null,null,null,null,null,null,null,null,null,null,null,null,null,null,null,null,null,null,null,null,null,null,null,null,null,null,null,null,null,null,null,null,null,null,null,null,null,null,null,null,null,null,null,null,null,null,null,null,null,null,null,null,null,null,null,null,null,null,null,null,null,null,null,null,null,null,null,null,null,null,null,null,null,null,null,null,null,null,null,null,null,null,null,null,null,null,null,null,null,null,null,null,null,null,null,null,null,null,null,null,null,null,null,null,null,null,null,null,235,29.375,6.9497724999999999,1.8361354029062087,2.3300599999999996,null,null,235.48785560927828]
[null,null,null,null,null,null,null,null,null,null,null,null,null,null,null,null,null,null,null,null,null,null,null,null,null,null,null,null,null,null,null,null,null,null,null,null,null,null,null,null,null,null,null,null,null,null,null,null,null,null,null,null,null,null,null,null,null,null,null,null,null,null,null,null,null,null,null,null,null,null,null,null,null,null,null,null,null,null,null,null,null,null,null,null,null,null,null,null,null,null,null,null,null,null,null,null,null,null,null,null,null,null,null,null,null,null,null,null,null,null,null,null,null,null,null,null,null,null,null,null,null,null,null,null,null,236,29.5,6.9793459999999996,1.8439487450462351,2.3300599999999996,null,null,235.48785560927828]
[null,null,null,null,null,null,null,null,null,null,null,null,null,null,null,null,null,null,null,null,null,null,null,null,null,null,null,null,null,null,null,null,null,null,null,null,null,null,null,null,null,null,null,null,null,null,null,null,null,null,null,null,null,null,null,null,null,null,null,null,null,null,null,null,null,null,null,null,null,null,null,null,null,null,null,null,null,null,null,null,null,null,null,null,null,null,null,null,null,null,null,null,null,null,null,null,null,null,null,null,null,null,null,null,null,null,null,null,null,null,null,null,null,null,null,null,null,null,null,null,null,null,null,null,null,237,29.625,7.0089195000000002,1.8517620871862615,2.3403699999999996,null,null,236.72831662818314]
[null,null,null,null,null,null,null,null,null,null,null,null,null,null,null,null,null,null,null,null,null,null,null,null,null,null,null,null,null,null,null,null,null,null,null,null,null,null,null,null,null,null,null,null,null,null,null,null,null,null,null,null,null,null,null,null,null,null,null,null,null,null,null,null,null,null,null,null,null,null,null,null,null,null,null,null,null,null,null,null,null,null,null,null,null,null,null,null,null,null,null,null,null,null,null,null,null,null,null,null,null,null,null,null,null,null,null,null,null,null,null,null,null,null,null,null,null,null,null,null,null,null,null,null,null,238,29.75,7.0384929999999999,1.8595754293262878,2.3506799999999997,null,null,237.9707452091582]
[null,null,null,null,null,null,null,null,null,null,null,null,null,null,null,null,null,null,null,null,null,null,null,null,null,null,null,null,null,null,null,null,null,null,null,null,null,null,null,null,null,null,null,null,null,null,null,null,null,null,null,null,null,null,null,null,null,null,null,null,null,null,null,null,null,null,null,null,null,null,null,null,null,null,null,null,null,null,null,null,null,null,null,null,null,null,null,null,null,null,null,null,null,null,null,null,null,null,null,null,null,null,null,null,null,null,null,null,null,null,null,null,null,null,null,null,null,null,null,null,null,null,null,null,null,239,29.875,7.0680664999999996,1.8673887714663142,2.3609899999999997,null,null,239.21514135220343]
[null,null,null,null,null,null,null,null,null,null,null,null,null,null,null,null,null,null,null,null,null,null,null,null,null,null,null,null,null,null,null,null,null,null,null,null,null,null,null,null,null,null,null,null,null,null,null,null,null,null,null,null,null,null,null,null,null,null,null,null,null,null,null,null,null,null,null,null,null,null,null,null,null,null,null,null,null,null,null,null,null,null,null,null,null,null,null,null,null,null,null,null,null,null,null,null,null,null,null,null,null,null,null,null,null,null,null,null,null,null,null,null,null,null,null,null,null,null,null,null,null,null,null,null,null,240,30,7.0976399999999993,1.8752021136063406,2.36328,null,null,239.49180676622782]
[null,null,null,null,null,null,null,null,null,null,null,null,null,null,null,null,null,null,null,null,null,null,null,null,null,null,null,null,null,null,null,null,null,null,null,null,null,null,null,null,null,null,null,null,null,null,null,null,null,null,null,null,null,null,null,null,null,null,null,null,null,null,null,null,null,null,null,null,null,null,null,null,null,null,null,null,null,null,null,null,null,null,null,null,null,null,null,null,null,null,null,null,null,null,null,null,null,null,null,null,null,null,null,null,null,null,null,null,null,null,null,null,null,null,null,null,null,null,null,null,null,null,null,null,null,241,30.125,7.1272134999999999,1.8830154557463672,2.3735999999999997,null,null,240.73981776249593]
[null,null,null,null,null,null,null,null,null,null,null,null,null,null,null,null,null,null,null,null,null,null,null,null,null,null,null,null,null,null,null,null,null,null,null,null,null,null,null,null,null,null,null,null,null,null,null,null,null,null,null,null,null,null,null,null,null,null,null,null,null,null,null,null,null,null,null,null,null,null,null,null,null,null,null,null,null,null,null,null,null,null,null,null,null,null,null,null,null,null,null,null,null,null,null,null,null,null,null,null,null,null,null,null,null,null,null,null,null,null,null,null,null,null,null,null,null,null,null,null,null,null,null,null,null,242,30.25,7.1567870000000005,1.8908287978863938,2.3839200000000003,null,null,241.98980013948864]
[null,null,null,null,null,null,null,null,null,null,null,null,null,null,null,null,null,null,null,null,null,null,null,null,null,null,null,null,null,null,null,null,null,null,null,null,null,null,null,null,null,null,null,null,null,null,null,null,null,null,null,null,null,null,null,null,null,null,null,null,null,null,null,null,null,null,null,null,null,null,null,null,null,null,null,null,null,null,null,null,null,null,null,null,null,null,null,null,null,null,null,null,null,null,null,null,null,null,null,null,null,null,null,null,null,null,null,null,null,null,null,null,null,null,null,null,null,null,null,null,null,null,null,null,null,243,30.375,7.1863605000000002,1.89864214002642,2.3942399999999999,null,null,243.24175389720574]
[null,null,null,null,null,null,null,null,null,null,null,null,null,null,null,null,null,null,null,null,null,null,null,null,null,null,null,null,null,null,null,null,null,null,null,null,null,null,null,null,null,null,null,null,null,null,null,null,null,null,null,null,null,null,null,null,null,null,null,null,null,null,null,null,null,null,null,null,null,null,null,null,null,null,null,null,null,null,null,null,null,null,null,null,null,null,null,null,null,null,null,null,null,null,null,null,null,null,null,null,null,null,null,null,null,null,null,null,null,null,null,null,null,null,null,null,null,null,null,null,null,null,null,null,null,244,30.5,7.2159339999999998,1.9064554821664463,2.40456,null,null,244.49567903564736]
[null,null,null,null,null,null,null,null,null,null,null,null,null,null,null,null,null,null,null,null,null,null,null,null,null,null,null,null,null,null,null,null,null,null,null,null,null,null,null,null,null,null,null,null,null,null,null,null,null,null,null,null,null,null,null,null,null,null,null,null,null,null,null,null,null,null,null,null,null,null,null,null,null,null,null,null,null,null,null,null,null,null,null,null,null,null,null,null,null,null,null,null,null,null,null,null,null,null,null,null,null,null,null,null,null,null,null,null,null,null,null,null,null,null,null,null,null,null,null,null,null,null,null,null,null,245,30.625,7.2455074999999995,1.9142688243064727,2.4148800000000001,null,null,245.75157555481346]
[null,null,null,null,null,null,null,null,null,null,null,null,null,null,null,null,null,null,null,null,null,null,null,null,null,null,null,null,null,null,null,null,null,null,null,null,null,null,null,null,null,null,null,null,null,null,null,null,null,null,null,null,null,null,null,null,null,null,null,null,null,null,null,null,null,null,null,null,null,null,null,null,null,null,null,null,null,null,null,null,null,null,null,null,null,null,null,null,null,null,null,null,null,null,null,null,null,null,null,null,null,null,null,null,null,null,null,null,null,null,null,null,null,null,null,null,null,null,null,null,null,null,null,null,null,246,30.75,7.2750810000000001,1.9220821664464993,2.4148800000000001,null,null,245.75157555481346]
[null,null,null,null,null,null,null,null,null,null,null,null,null,null,null,null,null,null,null,null,null,null,null,null,null,null,null,null,null,null,null,null,null,null,null,null,null,null,null,null,null,null,null,null,null,null,null,null,null,null,null,null,null,null,null,null,null,null,null,null,null,null,null,null,null,null,null,null,null,null,null,null,null,null,null,null,null,null,null,null,null,null,null,null,null,null,null,null,null,null,null,null,null,null,null,null,null,null,null,null,null,null,null,null,null,null,null,null,null,null,null,null,null,null,null,null,null,null,null,null,null,null,null,null,null,247,30.875,7.3046544999999998,1.9298955085865257,2.4252000000000002,null,null,247.00944345470398]
[null,null,null,null,null,null,null,null,null,null,null,null,null,null,null,null,null,null,null,null,null,null,null,null,null,null,null,null,null,null,null,null,null,null,null,null,null,null,null,null,null,null,null,null,null,null,null,null,null,null,null,null,null,null,null,null,null,null,null,null,null,null,null,null,null,null,null,null,null,null,null,null,null,null,null,null,null,null,null,null,null,null,null,null,null,null,null,null,null,null,null,null,null,null,null,null,null,null,null,null,null,null,null,null,null,null,null,null,null,null,null,null,null,null,null,null,null,null,null,null,null,null,null,null,null,248,31,7.3342280000000004,1.9377088507265523,2.4355199999999999,null,null,248.26928273531902]
[null,null,null,null,null,null,null,null,null,null,null,null,null,null,null,null,null,null,null,null,null,null,null,null,null,null,null,null,null,null,null,null,null,null,null,null,null,null,null,null,null,null,null,null,null,null,null,null,null,null,null,null,null,null,null,null,null,null,null,null,null,null,null,null,null,null,null,null,null,null,null,null,null,null,null,null,null,null,null,null,null,null,null,null,null,null,null,null,null,null,null,null,null,null,null,null,null,null,null,null,null,null,null,null,null,null,null,null,null,null,null,null,null,null,null,null,null,null,null,null,null,null,null,null,null,249,31.125,7.3638014999999992,1.9455221928665782,2.4378799999999998,null,null,248.55766247356141]
[null,null,null,null,null,null,null,null,null,null,null,null,null,null,null,null,null,null,null,null,null,null,null,null,null,null,null,null,null,null,null,null,null,null,null,null,null,null,null,null,null,null,null,null,null,null,null,null,null,null,null,null,null,null,null,null,null,null,null,null,null,null,null,null,null,null,null,null,null,null,null,null,null,null,null,null,null,null,null,null,null,null,null,null,null,null,null,null,null,null,null,null,null,null,null,null,null,null,null,null,null,null,null,null,null,null,null,null,null,null,null,null,null,null,null,null,null,null,null,null,null,null,null,null,null,250,31.25,7.3933749999999998,1.9533355350066048,2.44821,null,null,249.82114803216589]
[null,null,null,null,null,null,null,null,null,null,null,null,null,null,null,null,null,null,null,null,null,null,null,null,null,null,null,null,null,null,null,null,null,null,null,null,null,null,null,null,null,null,null,null,null,null,null,null,null,null,null,null,null,null,null,null,null,null,null,null,null,null,null,null,null,null,null,null,null,null,null,null,null,null,null,null,null,null,null,null,null,null,null,null,null,null,null,null,null,null,null,null,null,null,null,null,null,null,null,null,null,null,null,null,null,null,null,null,null,null,null,null,null,null,null,null,null,null,null,null,null,null,null,null,null,251,31.375,7.4229484999999995,1.9611488771466312,2.4585399999999997,null,null,251.0866087938511]
[null,null,null,null,null,null,null,null,null,null,null,null,null,null,null,null,null,null,null,null,null,null,null,null,null,null,null,null,null,null,null,null,null,null,null,null,null,null,null,null,null,null,null,null,null,null,null,null,null,null,null,null,null,null,null,null,null,null,null,null,null,null,null,null,null,null,null,null,null,null,null,null,null,null,null,null,null,null,null,null,null,null,null,null,null,null,null,null,null,null,null,null,null,null,null,null,null,null,null,null,null,null,null,null,null,null,null,null,null,null,null,null,null,null,null,null,null,null,null,null,null,null,null,null,null,252,31.5,7.4525220000000001,1.9689622192866578,2.4688699999999999,null,null,252.35404475861716]
[null,null,null,null,null,null,null,null,null,null,null,null,null,null,null,null,null,null,null,null,null,null,null,null,null,null,null,null,null,null,null,null,null,null,null,null,null,null,null,null,null,null,null,null,null,null,null,null,null,null,null,null,null,null,null,null,null,null,null,null,null,null,null,null,null,null,null,null,null,null,null,null,null,null,null,null,null,null,null,null,null,null,null,null,null,null,null,null,null,null,null,null,null,null,null,null,null,null,null,null,null,null,null,null,null,null,null,null,null,null,null,null,null,null,null,null,null,null,null,null,null,null,null,null,null,253,31.625,7.4820954999999998,1.9767755614266842,2.4791999999999996,null,null,253.62345592646395]
[null,null,null,null,null,null,null,null,null,null,null,null,null,null,null,null,null,null,null,null,null,null,null,null,null,null,null,null,null,null,null,null,null,null,null,null,null,null,null,null,null,null,null,null,null,null,null,null,null,null,null,null,null,null,null,null,null,null,null,null,null,null,null,null,null,null,null,null,null,null,null,null,null,null,null,null,null,null,null,null,null,null,null,null,null,null,null,null,null,null,null,null,null,null,null,null,null,null,null,null,null,null,null,null,null,null,null,null,null,null,null,null,null,null,null,null,null,null,null,null,null,null,null,null,null,254,31.75,7.5116689999999995,1.9845889035667106,2.4791999999999996,null,null,253.62345592646395]
[null,null,null,null,null,null,null,null,null,null,null,null,null,null,null,null,null,null,null,null,null,null,null,null,null,null,null,null,null,null,null,null,null,null,null,null,null,null,null,null,null,null,null,null,null,null,null,null,null,null,null,null,null,null,null,null,null,null,null,null,null,null,null,null,null,null,null,null,null,null,null,null,null,null,null,null,null,null,null,null,null,null,null,null,null,null,null,null,null,null,null,null,null,null,null,null,null,null,null,null,null,null,null,null,null,null,null,null,null,null,null,null,null,null,null,null,null,null,null,null,null,null,null,null,null,255,31.875,7.5412424999999992,1.9924022457067367,2.4895299999999998,null,null,254.89484229739156]
[null,null,null,null,null,null,null,null,null,null,null,null,null,null,null,null,null,null,null,null,null,null,null,null,null,null,null,null,null,null,null,null,null,null,null,null,null,null,null,null,null,null,null,null,null,null,null,null,null,null,null,null,null,null,null,null,null,null,null,null,null,null,null,null,null,null,null,null,null,null,null,null,null,null,null,null,null,null,null,null,null,null,null,null,null,null,null,null,null,null,null,null,null,null,null,null,null,null,null,null,null,null,null,null,null,null,null,null,null,null,null,null,null,null,null,null,null,null,null,null,null,null,null,null,null,256,32,7.5708159999999998,2.0002155878467636,2.4998599999999995,null,null,256.1682038713999]
[null,null,null,null,null,null,null,null,null,null,null,null,null,null,null,null,null,null,null,null,null,null,null,null,null,null,null,null,null,null,null,null,null,null,null,null,null,null,null,null,null,null,null,null,null,null,null,null,null,null,null,null,null,null,null,null,null,null,null,null,null,null,null,null,null,null,null,null,null,null,null,null,null,null,null,null,null,null,null,null,null,null,null,null,null,null,null,null,null,null,null,null,null,null,null,null,null,null,null,null,null,null,null,null,null,null,null,null,null,null,null,null,null,null,null,null,null,null,null,null,null,null,null,null,null,257,32.125,7.6003895000000004,2.0080289299867902,2.5101900000000001,null,null,257.44354064848915]
[null,null,null,null,null,null,null,null,null,null,null,null,null,null,null,null,null,null,null,null,null,null,null,null,null,null,null,null,null,null,null,null,null,null,null,null,null,null,null,null,null,null,null,null,null,null,null,null,null,null,null,null,null,null,null,null,null,null,null,null,null,null,null,null,null,null,null,null,null,null,null,null,null,null,null,null,null,null,null,null,null,null,null,null,null,null,null,null,null,null,null,null,null,null,null,null,null,null,null,null,null,null,null,null,null,null,null,null,null,null,null,null,null,null,null,null,null,null,null,null,null,null,null,null,null,258,32.25,7.6299630000000001,2.0158422721268163,2.5126200000000001,null,null,257.74383423794848]
[null,null,null,null,null,null,null,null,null,null,null,null,null,null,null,null,null,null,null,null,null,null,null,null,null,null,null,null,null,null,null,null,null,null,null,null,null,null,null,null,null,null,null,null,null,null,null,null,null,null,null,null,null,null,null,null,null,null,null,null,null,null,null,null,null,null,null,null,null,null,null,null,null,null,null,null,null,null,null,null,null,null,null,null,null,null,null,null,null,null,null,null,null,null,null,null,null,null,null,null,null,null,null,null,null,null,null,null,null,null,null,null,null,null,null,null,null,null,null,null,null,null,null,null,null,259,32.375,7.6595364999999997,2.0236556142668425,2.5229599999999999,null,null,259.02284877332414]
[null,null,null,null,null,null,null,null,null,null,null,null,null,null,null,null,null,null,null,null,null,null,null,null,null,null,null,null,null,null,null,null,null,null,null,null,null,null,null,null,null,null,null,null,null,null,null,null,null,null,null,null,null,null,null,null,null,null,null,null,null,null,null,null,null,null,null,null,null,null,null,null,null,null,null,null,null,null,null,null,null,null,null,null,null,null,null,null,null,null,null,null,null,null,null,null,null,null,null,null,null,null,null,null,null,null,null,null,null,null,null,null,null,null,null,null,null,null,null,null,null,null,null,null,null,260,32.5,7.6891099999999994,2.0314689564068691,2.5333000000000001,null,null,260.303842337839]
[null,null,null,null,null,null,null,null,null,null,null,null,null,null,null,null,null,null,null,null,null,null,null,null,null,null,null,null,null,null,null,null,null,null,null,null,null,null,null,null,null,null,null,null,null,null,null,null,null,null,null,null,null,null,null,null,null,null,null,null,null,null,null,null,null,null,null,null,null,null,null,null,null,null,null,null,null,null,null,null,null,null,null,null,null,null,null,null,null,null,null,null,null,null,null,null,null,null,null,null,null,null,null,null,null,null,null,null,null,null,null,null,null,null,null,null,null,null,null,null,null,null,null,null,null,261,{"$f":"DV262/8","v":32.625},{"$f":"DV262*29.5735/1000","v":7.7186835},{"$f":"DX262/3.785","v":2.0392822985468957},2.5436399999999999,null,null,261.58681493149294]
[null,null,null,null,null,null,null,null,null,null,null,null,null,null,null,null,null,null,null,null,null,null,null,null,null,null,null,null,null,null,null,null,null,null,null,null,null,null,null,null,null,null,null,null,null,null,null,null,null,null,null,null,null,null,null,null,null,null,null,null,null,null,null,null,null,null,null,null,null,null,null,null,null,null,null,null,null,null,null,null,null,null,null,null,null,null,null,null,null,null,null,null,null,null,null,null,null,null,null,null,null,null,null,null,null,null,null,null,null,null,null,null,null,null,null,null,null,null,null,null,null,null,null,null,null,262,32.75,7.7482569999999997,2.0470956406869218,2.5436399999999999,null,null,261.58681493149294]
[null,null,null,null,null,null,null,null,null,null,null,null,null,null,null,null,null,null,null,null,null,null,null,null,null,null,null,null,null,null,null,null,null,null,null,null,null,null,null,null,null,null,null,null,null,null,null,null,null,null,null,null,null,null,null,null,null,null,null,null,null,null,null,null,null,null,null,null,null,null,null,null,null,null,null,null,null,null,null,null,null,null,null,null,null,null,null,null,null,null,null,null,null,null,null,null,null,null,null,null,null,null,null,null,null,null,null,null,null,null,null,null,null,null,null,null,null,null,null,null,null,null,null,null,null,263,32.875,7.7778305000000003,2.0549089828269484,2.5539800000000001,null,null,262.87176655428607]
[null,null,null,null,null,null,null,null,null,null,null,null,null,null,null,null,null,null,null,null,null,null,null,null,null,null,null,null,null,null,null,null,null,null,null,null,null,null,null,null,null,null,null,null,null,null,null,null,null,null,null,null,null,null,null,null,null,null,null,null,null,null,null,null,null,null,null,null,null,null,null,null,null,null,null,null,null,null,null,null,null,null,null,null,null,null,null,null,null,null,null,null,null,null,null,null,null,null,null,null,null,null,null,null,null,null,null,null,null,null,null,null,null,null,null,null,null,null,null,null,null,null,null,null,null,264,33,7.8074039999999991,2.0627223249669746,2.5643199999999999,null,null,264.15869720621822]
[null,null,null,null,null,null,null,null,null,null,null,null,null,null,null,null,null,null,null,null,null,null,null,null,null,null,null,null,null,null,null,null,null,null,null,null,null,null,null,null,null,null,null,null,null,null,null,null,null,null,null,null,null,null,null,null,null,null,null,null,null,null,null,null,null,null,null,null,null,null,null,null,null,null,null,null,null,null,null,null,null,null,null,null,null,null,null,null,null,null,null,null,null,null,null,null,null,null,null,null,null,null,null,null,null,null,null,null,null,null,null,null,null,null,null,null,null,null,null,null,null,null,null,null,null,265,33.125,7.8369774999999997,2.0705356671070012,2.5746600000000002,null,null,265.44760688728957]
[null,null,null,null,null,null,null,null,null,null,null,null,null,null,null,null,null,null,null,null,null,null,null,null,null,null,null,null,null,null,null,null,null,null,null,null,null,null,null,null,null,null,null,null,null,null,null,null,null,null,null,null,null,null,null,null,null,null,null,null,null,null,null,null,null,null,null,null,null,null,null,null,null,null,null,null,null,null,null,null,null,null,null,null,null,null,null,null,null,null,null,null,null,null,null,null,null,null,null,null,null,null,null,null,null,null,null,null,null,null,null,null,null,null,null,null,null,null,null,null,null,null,null,null,null,266,33.25,7.8665509999999994,2.0783490092470274,2.585,null,null,266.73849559749999]
[null,null,null,null,null,null,null,null,null,null,null,null,null,null,null,null,null,null,null,null,null,null,null,null,null,null,null,null,null,null,null,null,null,null,null,null,null,null,null,null,null,null,null,null,null,null,null,null,null,null,null,null,null,null,null,null,null,null,null,null,null,null,null,null,null,null,null,null,null,null,null,null,null,null,null,null,null,null,null,null,null,null,null,null,null,null,null,null,null,null,null,null,null,null,null,null,null,null,null,null,null,null,null,null,null,null,null,null,null,null,null,null,null,null,null,null,null,null,null,null,null,null,null,null,null,267,33.375,7.8961245,2.086162351387054,2.5874999999999999,null,null,267.05090310937499]
[null,null,null,null,null,null,null,null,null,null,null,null,null,null,null,null,null,null,null,null,null,null,null,null,null,null,null,null,null,null,null,null,null,null,null,null,null,null,null,null,null,null,null,null,null,null,null,null,null,null,null,null,null,null,null,null,null,null,null,null,null,null,null,null,null,null,null,null,null,null,null,null,null,null,null,null,null,null,null,null,null,null,null,null,null,null,null,null,null,null,null,null,null,null,null,null,null,null,null,null,null,null,null,null,null,null,null,null,null,null,null,null,null,null,null,null,null,null,null,null,null,null,null,null,null,268,33.5,7.9256979999999997,2.0939756935270806,2.5978499999999998,null,null,268.34550111369975]
[null,null,null,null,null,null,null,null,null,null,null,null,null,null,null,null,null,null,null,null,null,null,null,null,null,null,null,null,null,null,null,null,null,null,null,null,null,null,null,null,null,null,null,null,null,null,null,null,null,null,null,null,null,null,null,null,null,null,null,null,null,null,null,null,null,null,null,null,null,null,null,null,null,null,null,null,null,null,null,null,null,null,null,null,null,null,null,null,null,null,null,null,null,null,null,null,null,null,null,null,null,null,null,null,null,null,null,null,null,null,null,null,null,null,null,null,null,null,null,null,null,null,null,null,null,269,33.625,7.9552715000000003,2.1017890356671072,2.6081999999999996,null,null,269.64208197692398]
[null,null,null,null,null,null,null,null,null,null,null,null,null,null,null,null,null,null,null,null,null,null,null,null,null,null,null,null,null,null,null,null,null,null,null,null,null,null,null,null,null,null,null,null,null,null,null,null,null,null,null,null,null,null,null,null,null,null,null,null,null,null,null,null,null,null,null,null,null,null,null,null,null,null,null,null,null,null,null,null,null,null,null,null,null,null,null,null,null,null,null,null,null,null,null,null,null,null,null,null,null,null,null,null,null,null,null,null,null,null,null,null,null,null,null,null,null,null,null,null,null,null,null,null,null,270,33.75,7.9848449999999991,2.1096023778071329,2.6081999999999996,null,null,269.64208197692398]
[null,null,null,null,null,null,null,null,null,null,null,null,null,null,null,null,null,null,null,null,null,null,null,null,null,null,null,null,null,null,null,null,null,null,null,null,null,null,null,null,null,null,null,null,null,null,null,null,null,null,null,null,null,null,null,null,null,null,null,null,null,null,null,null,null,null,null,null,null,null,null,null,null,null,null,null,null,null,null,null,null,null,null,null,null,null,null,null,null,null,null,null,null,null,null,null,null,null,null,null,null,null,null,null,null,null,null,null,null,null,null,null,null,null,null,null,null,null,null,null,null,null,null,null,null,271,33.875,8.0144184999999997,2.1174157199471595,2.6185499999999995,null,null,270.94064569904771]
[null,null,null,null,null,null,null,null,null,null,null,null,null,null,null,null,null,null,null,null,null,null,null,null,null,null,null,null,null,null,null,null,null,null,null,null,null,null,null,null,null,null,null,null,null,null,null,null,null,null,null,null,null,null,null,null,null,null,null,null,null,null,null,null,null,null,null,null,null,null,null,null,null,null,null,null,null,null,null,null,null,null,null,null,null,null,null,null,null,null,null,null,null,null,null,null,null,null,null,null,null,null,null,null,null,null,null,null,null,null,null,null,null,null,null,null,null,null,null,null,null,null,null,null,null,272,34,8.0439919999999994,2.1252290620871861,2.6288999999999998,null,null,272.241192280071]
[null,null,null,null,null,null,null,null,null,null,null,null,null,null,null,null,null,null,null,null,null,null,null,null,null,null,null,null,null,null,null,null,null,null,null,null,null,null,null,null,null,null,null,null,null,null,null,null,null,null,null,null,null,null,null,null,null,null,null,null,null,null,null,null,null,null,null,null,null,null,null,null,null,null,null,null,null,null,null,null,null,null,null,null,null,null,null,null,null,null,null,null,null,null,null,null,null,null,null,null,null,null,null,null,null,null,null,null,null,null,null,null,null,null,null,null,null,null,null,null,null,null,null,null,null,273,34.125,8.0735654999999991,2.1330424042272123,2.6392499999999997,null,null,273.5437217199937]
[null,null,null,null,null,null,null,null,null,null,null,null,null,null,null,null,null,null,null,null,null,null,null,null,null,null,null,null,null,null,null,null,null,null,null,null,null,null,null,null,null,null,null,null,null,null,null,null,null,null,null,null,null,null,null,null,null,null,null,null,null,null,null,null,null,null,null,null,null,null,null,null,null,null,null,null,null,null,null,null,null,null,null,null,null,null,null,null,null,null,null,null,null,null,null,null,null,null,null,null,null,null,null,null,null,null,null,null,null,null,null,null,null,null,null,null,null,null,null,null,null,null,null,null,null,274,34.25,8.1031390000000005,2.1408557463672393,2.6496,null,null,274.84823401881602]
[null,null,null,null,null,null,null,null,null,null,null,null,null,null,null,null,null,null,null,null,null,null,null,null,null,null,null,null,null,null,null,null,null,null,null,null,null,null,null,null,null,null,null,null,null,null,null,null,null,null,null,null,null,null,null,null,null,null,null,null,null,null,null,null,null,null,null,null,null,null,null,null,null,null,null,null,null,null,null,null,null,null,null,null,null,null,null,null,null,null,null,null,null,null,null,null,null,null,null,null,null,null,null,null,null,null,null,null,null,null,null,null,null,null,null,null,null,null,null,null,null,null,null,null,null,275,34.375,8.1327125000000002,2.1486690885072655,2.6496,null,null,274.84823401881602]
[null,null,null,null,null,null,null,null,null,null,null,null,null,null,null,null,null,null,null,null,null,null,null,null,null,null,null,null,null,null,null,null,null,null,null,null,null,null,null,null,null,null,null,null,null,null,null,null,null,null,null,null,null,null,null,null,null,null,null,null,null,null,null,null,null,null,null,null,null,null,null,null,null,null,null,null,null,null,null,null,null,null,null,null,null,null,null,null,null,null,null,null,null,null,null,null,null,null,null,null,null,null,null,null,null,null,null,null,null,null,null,null,null,null,null,null,null,null,null,null,null,null,null,null,null,276,34.5,8.1622859999999999,2.1564824306472921,2.6599499999999998,null,null,276.15472917653773]
[null,null,null,null,null,null,null,null,null,null,null,null,null,null,null,null,null,null,null,null,null,null,null,null,null,null,null,null,null,null,null,null,null,null,null,null,null,null,null,null,null,null,null,null,null,null,null,null,null,null,null,null,null,null,null,null,null,null,null,null,null,null,null,null,null,null,null,null,null,null,null,null,null,null,null,null,null,null,null,null,null,null,null,null,null,null,null,null,null,null,null,null,null,null,null,null,null,null,null,null,null,null,null,null,null,null,null,null,null,null,null,null,null,null,null,null,null,null,null,null,null,null,null,null,null,277,34.625,8.1918594999999996,2.1642957727873182,2.6728800000000001,null,null,277.78968726942151]
[null,null,null,null,null,null,null,null,null,null,null,null,null,null,null,null,null,null,null,null,null,null,null,null,null,null,null,null,null,null,null,null,null,null,null,null,null,null,null,null,null,null,null,null,null,null,null,null,null,null,null,null,null,null,null,null,null,null,null,null,null,null,null,null,null,null,null,null,null,null,null,null,null,null,null,null,null,null,null,null,null,null,null,null,null,null,null,null,null,null,null,null,null,null,null,null,null,null,null,null,null,null,null,null,null,null,null,null,null,null,null,null,null,null,null,null,null,null,null,null,null,null,null,null,null,278,34.75,8.2214329999999993,2.1721091149273444,2.6728800000000001,null,null,277.78968726942151]
[null,null,null,null,null,null,null,null,null,null,null,null,null,null,null,null,null,null,null,null,null,null,null,null,null,null,null,null,null,null,null,null,null,null,null,null,null,null,null,null,null,null,null,null,null,null,null,null,null,null,null,null,null,null,null,null,null,null,null,null,null,null,null,null,null,null,null,null,null,null,null,null,null,null,null,null,null,null,null,null,null,null,null,null,null,null,null,null,null,null,null,null,null,null,null,null,null,null,null,null,null,null,null,null,null,null,null,null,null,null,null,null,null,null,null,null,null,null,null,null,null,null,null,null,null,279,34.875,8.251006499999999,2.179922457067371,2.6832400000000001,null,null,279.10191000497775]
[null,null,null,null,null,null,null,null,null,null,null,null,null,null,null,null,null,null,null,null,null,null,null,null,null,null,null,null,null,null,null,null,null,null,null,null,null,null,null,null,null,null,null,null,null,null,null,null,null,null,null,null,null,null,null,null,null,null,null,null,null,null,null,null,null,null,null,null,null,null,null,null,null,null,null,null,null,null,null,null,null,null,null,null,null,null,null,null,null,null,null,null,null,null,null,null,null,null,null,null,null,null,null,null,null,null,null,null,null,null,null,null,null,null,null,null,null,null,null,null,null,null,null,null,null,280,35,8.2805800000000005,2.1877357992073976,2.6936,null,null,280.41611943289598]
[null,null,null,null,null,null,null,null,null,null,null,null,null,null,null,null,null,null,null,null,null,null,null,null,null,null,null,null,null,null,null,null,null,null,null,null,null,null,null,null,null,null,null,null,null,null,null,null,null,null,null,null,null,null,null,null,null,null,null,null,null,null,null,null,null,null,null,null,null,null,null,null,null,null,null,null,null,null,null,null,null,null,null,null,null,null,null,null,null,null,null,null,null,null,null,null,null,null,null,null,null,null,null,null,null,null,null,null,null,null,null,null,null,null,null,null,null,null,null,null,null,null,null,null,null,281,35.125,8.3101535000000002,2.1955491413474242,2.7039599999999999,null,null,281.73231555317614]
[null,null,null,null,null,null,null,null,null,null,null,null,null,null,null,null,null,null,null,null,null,null,null,null,null,null,null,null,null,null,null,null,null,null,null,null,null,null,null,null,null,null,null,null,null,null,null,null,null,null,null,null,null,null,null,null,null,null,null,null,null,null,null,null,null,null,null,null,null,null,null,null,null,null,null,null,null,null,null,null,null,null,null,null,null,null,null,null,null,null,null,null,null,null,null,null,null,null,null,null,null,null,null,null,null,null,null,null,null,null,null,null,null,null,null,null,null,null,null,null,null,null,null,null,null,282,35.25,8.3397269999999981,2.2033624834874499,2.7039599999999999,null,null,281.73231555317614]
[null,null,null,null,null,null,null,null,null,null,null,null,null,null,null,null,null,null,null,null,null,null,null,null,null,null,null,null,null,null,null,null,null,null,null,null,null,null,null,null,null,null,null,null,null,null,null,null,null,null,null,null,null,null,null,null,null,null,null,null,null,null,null,null,null,null,null,null,null,null,null,null,null,null,null,null,null,null,null,null,null,null,null,null,null,null,null,null,null,null,null,null,null,null,null,null,null,null,null,null,null,null,null,null,null,null,null,null,null,null,null,null,null,null,null,null,null,null,null,null,null,null,null,null,null,283,35.375,8.3693004999999996,2.2111758256274765,2.7143200000000003,null,null,283.05049836581827]
[null,null,null,null,null,null,null,null,null,null,null,null,null,null,null,null,null,null,null,null,null,null,null,null,null,null,null,null,null,null,null,null,null,null,null,null,null,null,null,null,null,null,null,null,null,null,null,null,null,null,null,null,null,null,null,null,null,null,null,null,null,null,null,null,null,null,null,null,null,null,null,null,null,null,null,null,null,null,null,null,null,null,null,null,null,null,null,null,null,null,null,null,null,null,null,null,null,null,null,null,null,null,null,null,null,null,null,null,null,null,null,null,null,null,null,null,null,null,null,null,null,null,null,null,null,284,35.5,8.3988739999999993,2.2189891677675031,2.7246799999999998,null,null,284.37066787082222]
[null,null,null,null,null,null,null,null,null,null,null,null,null,null,null,null,null,null,null,null,null,null,null,null,null,null,null,null,null,null,null,null,null,null,null,null,null,null,null,null,null,null,null,null,null,null,null,null,null,null,null,null,null,null,null,null,null,null,null,null,null,null,null,null,null,null,null,null,null,null,null,null,null,null,null,null,null,null,null,null,null,null,null,null,null,null,null,null,null,null,null,null,null,null,null,null,null,null,null,null,null,null,null,null,null,null,null,null,null,null,null,null,null,null,null,null,null,null,null,null,null,null,null,null,null,285,35.625,8.4284475000000008,2.2268025099075297,2.7350400000000001,null,null,285.6928240681882]
[null,null,null,null,null,null,null,null,null,null,null,null,null,null,null,null,null,null,null,null,null,null,null,null,null,null,null,null,null,null,null,null,null,null,null,null,null,null,null,null,null,null,null,null,null,null,null,null,null,null,null,null,null,null,null,null,null,null,null,null,null,null,null,null,null,null,null,null,null,null,null,null,null,null,null,null,null,null,null,null,null,null,null,null,null,null,null,null,null,null,null,null,null,null,null,null,null,null,null,null,null,null,null,null,null,null,null,null,null,null,null,null,null,null,null,null,null,null,null,null,null,null,null,null,null,286,35.75,8.4580210000000005,2.2346158520475563,2.7376800000000001,null,null,286.03006181529025]
[null,null,null,null,null,null,null,null,null,null,null,null,null,null,null,null,null,null,null,null,null,null,null,null,null,null,null,null,null,null,null,null,null,null,null,null,null,null,null,null,null,null,null,null,null,null,null,null,null,null,null,null,null,null,null,null,null,null,null,null,null,null,null,null,null,null,null,null,null,null,null,null,null,null,null,null,null,null,null,null,null,null,null,null,null,null,null,null,null,null,null,null,null,null,null,null,null,null,null,null,null,null,null,null,null,null,null,null,null,null,null,null,null,null,null,null,null,null,null,null,null,null,null,null,null,287,35.875,8.4875944999999984,2.242429194187582,2.7480499999999997,null,null,{"$f":"9.2551*DZ288^2+77.091*DZ288+5.6136","v":287.35599054501768}]
[null,null,null,null,null,null,null,null,null,null,null,null,null,null,null,null,null,null,null,null,null,null,null,null,null,null,null,null,null,null,null,null,null,null,null,null,null,null,null,null,null,null,null,null,null,null,null,null,null,null,null,null,null,null,null,null,null,null,null,null,null,null,null,null,null,null,null,null,null,null,null,null,null,null,null,null,null,null,null,null,null,null,null,null,null,null,null,null,null,null,null,null,null,null,null,null,null,null,null,null,null,null,null,null,null,null,null,null,null,null,null,null,null,null,null,null,null,null,null,null,null,null,null,null,null,288,36,8.5171679999999999,2.2502425363276091,2.7584200000000001,null,null,288.68390980427165]
[null,null,null,null,null,null,null,null,null,null,null,null,null,null,null,null,null,null,null,null,null,null,null,null,null,null,null,null,null,null,null,null,null,null,null,null,null,null,null,null,null,null,null,null,null,null,null,null,null,null,null,null,null,null,null,null,null,null,null,null,null,null,null,null,null,null,null,null,null,null,null,null,null,null,null,null,null,null,null,null,null,null,null,null,null,null,null,null,null,null,null,null,null,null,null,null,null,null,null,null,null,null,null,null,null,null,null,null,null,null,null,null,null,null,null,null,null,null,null,null,null,null,null,null,null,289,36.125,8.5467414999999995,2.2580558784676352,2.7584200000000001,null,null,288.68390980427165]
[null,null,null,null,null,null,null,null,null,null,null,null,null,null,null,null,null,null,null,null,null,null,null,null,null,null,null,null,null,null,null,null,null,null,null,null,null,null,null,null,null,null,null,null,null,null,null,null,null,null,null,null,null,null,null,null,null,null,null,null,null,null,null,null,null,null,null,null,null,null,null,null,null,null,null,null,null,null,null,null,null,null,null,null,null,null,null,null,null,null,null,null,null,null,null,null,null,null,null,null,null,null,null,null,null,null,null,null,null,null,null,null,null,null,null,null,null,null,null,null,null,null,null,null,null,290,36.25,8.576315000000001,2.2658692206076618,2.7687899999999996,null,null,290.01381959305183]
[null,null,null,null,null,null,null,null,null,null,null,null,null,null,null,null,null,null,null,null,null,null,null,null,null,null,null,null,null,null,null,null,null,null,null,null,null,null,null,null,null,null,null,null,null,null,null,null,null,null,null,null,null,null,null,null,null,null,null,null,null,null,null,null,null,null,null,null,null,null,null,null,null,null,null,null,null,null,null,null,null,null,null,null,null,null,null,null,null,null,null,null,null,null,null,null,null,null,null,null,null,null,null,null,null,null,null,null,null,null,null,null,null,null,null,null,null,null,null,null,null,null,null,null,null,291,36.375,8.6058884999999989,2.273682562747688,2.7791600000000001,null,null,291.34571991135857]
[null,null,null,null,null,null,null,null,null,null,null,null,null,null,null,null,null,null,null,null,null,null,null,null,null,null,null,null,null,null,null,null,null,null,null,null,null,null,null,null,null,null,null,null,null,null,null,null,null,null,null,null,null,null,null,null,null,null,null,null,null,null,null,null,null,null,null,null,null,null,null,null,null,null,null,null,null,null,null,null,null,null,null,null,null,null,null,null,null,null,null,null,null,null,null,null,null,null,null,null,null,null,null,null,null,null,null,null,null,null,null,null,null,null,null,null,null,null,null,null,null,null,null,null,null,292,36.5,8.6354620000000004,2.2814959048877146,2.7895299999999996,null,null,292.67961075919152]
[null,null,null,null,null,null,null,null,null,null,null,null,null,null,null,null,null,null,null,null,null,null,null,null,null,null,null,null,null,null,null,null,null,null,null,null,null,null,null,null,null,null,null,null,null,null,null,null,null,null,null,null,null,null,null,null,null,null,null,null,null,null,null,null,null,null,null,null,null,null,null,null,null,null,null,null,null,null,null,null,null,null,null,null,null,null,null,null,null,null,null,null,null,null,null,null,null,null,null,null,null,null,null,null,null,null,null,null,null,null,null,null,null,null,null,null,null,null,null,null,null,null,null,null,null,293,36.625,8.6650355000000001,2.2893092470277412,2.7895299999999996,null,null,292.67961075919152]
[null,null,null,null,null,null,null,null,null,null,null,null,null,null,null,null,null,null,null,null,null,null,null,null,null,null,null,null,null,null,null,null,null,null,null,null,null,null,null,null,null,null,null,null,null,null,null,null,null,null,null,null,null,null,null,null,null,null,null,null,null,null,null,null,null,null,null,null,null,null,null,null,null,null,null,null,null,null,null,null,null,null,null,null,null,null,null,null,null,null,null,null,null,null,null,null,null,null,null,null,null,null,null,null,null,null,null,null,null,null,null,null,null,null,null,null,null,null,null,null,null,null,null,null,null,294,36.75,8.6946089999999998,2.2971225891677673,2.7999000000000001,null,null,294.01549213655102]
[null,null,null,null,null,null,null,null,null,null,null,null,null,null,null,null,null,null,null,null,null,null,null,null,null,null,null,null,null,null,null,null,null,null,null,null,null,null,null,null,null,null,null,null,null,null,null,null,null,null,null,null,null,null,null,null,null,null,null,null,null,null,null,null,null,null,null,null,null,null,null,null,null,null,null,null,null,null,null,null,null,null,null,null,null,null,null,null,null,null,null,null,null,null,null,null,null,null,null,null,null,null,null,null,null,null,null,null,null,null,null,null,null,null,null,null,null,null,null,null,null,null,null,null,null,295,36.875,8.7241824999999995,2.3049359313077935,2.8102699999999996,null,null,295.35336404343673]
[null,null,null,null,null,null,null,null,null,null,null,null,null,null,null,null,null,null,null,null,null,null,null,null,null,null,null,null,null,null,null,null,null,null,null,null,null,null,null,null,null,null,null,null,null,null,null,null,null,null,null,null,null,null,null,null,null,null,null,null,null,null,null,null,null,null,null,null,null,null,null,null,null,null,null,null,null,null,null,null,null,null,null,null,null,null,null,null,null,null,null,null,null,null,null,null,null,null,null,null,null,null,null,null,null,null,null,null,null,null,null,null,null,null,null,null,null,null,null,null,null,null,null,null,null,296,37,8.7537559999999992,2.3127492734478201,2.81298,null,null,295.70331919175004]
[null,null,null,null,null,null,null,null,null,null,null,null,null,null,null,null,null,null,null,null,null,null,null,null,null,null,null,null,null,null,null,null,null,null,null,null,null,null,null,null,null,null,null,null,null,null,null,null,null,null,null,null,null,null,null,null,null,null,null,null,null,null,null,null,null,null,null,null,null,null,null,null,null,null,null,null,null,null,null,null,null,null,null,null,null,null,null,null,null,null,null,null,null,null,null,null,null,null,null,null,null,null,null,null,null,null,null,null,null,null,null,null,null,null,null,null,null,null,null,null,null,null,null,null,null,297,37.125,8.7833295000000007,2.3205626155878467,2.8233600000000001,null,null,297.04499533341698]
[null,null,null,null,null,null,null,null,null,null,null,null,null,null,null,null,null,null,null,null,null,null,null,null,null,null,null,null,null,null,null,null,null,null,null,null,null,null,null,null,null,null,null,null,null,null,null,null,null,null,null,null,null,null,null,null,null,null,null,null,null,null,null,null,null,null,null,null,null,null,null,null,null,null,null,null,null,null,null,null,null,null,null,null,null,null,null,null,null,null,null,null,null,null,null,null,null,null,null,null,null,null,null,null,null,null,null,null,null,null,null,null,null,null,null,null,null,null,null,null,null,null,null,null,null,298,37.25,8.8129030000000004,2.3283759577278733,2.8337400000000001,null,null,298.38866584547679]
[null,null,null,null,null,null,null,null,null,null,null,null,null,null,null,null,null,null,null,null,null,null,null,null,null,null,null,null,null,null,null,null,null,null,null,null,null,null,null,null,null,null,null,null,null,null,null,null,null,null,null,null,null,null,null,null,null,null,null,null,null,null,null,null,null,null,null,null,null,null,null,null,null,null,null,null,null,null,null,null,null,null,null,null,null,null,null,null,null,null,null,null,null,null,null,null,null,null,null,null,null,null,null,null,null,null,null,null,null,null,null,null,null,null,null,null,null,null,null,null,null,null,null,null,null,299,37.375,8.8424765000000001,2.3361892998678995,2.8441200000000002,null,null,299.73433072792943]
[null,null,null,null,null,null,null,null,null,null,null,null,null,null,null,null,null,null,null,null,null,null,null,null,null,null,null,null,null,null,null,null,null,null,null,null,null,null,null,null,null,null,null,null,null,null,null,null,null,null,null,null,null,null,null,null,null,null,null,null,null,null,null,null,null,null,null,null,null,null,null,null,null,null,null,null,null,null,null,null,null,null,null,null,null,null,null,null,null,null,null,null,null,null,null,null,null,null,null,null,null,null,null,null,null,null,null,null,null,null,null,null,null,null,null,null,null,null,null,null,null,null,null,null,null,300,37.5,8.8720499999999998,2.3440026420079261,2.8441200000000002,null,null,299.73433072792943]
[null,null,null,null,null,null,null,null,null,null,null,null,null,null,null,null,null,null,null,null,null,null,null,null,null,null,null,null,null,null,null,null,null,null,null,null,null,null,null,null,null,null,null,null,null,null,null,null,null,null,null,null,null,null,null,null,null,null,null,null,null,null,null,null,null,null,null,null,null,null,null,null,null,null,null,null,null,null,null,null,null,null,null,null,null,null,null,null,null,null,null,null,null,null,null,null,null,null,null,null,null,null,null,null,null,null,null,null,null,null,null,null,null,null,null,null,null,null,null,null,null,null,null,null,null,302,{"$f":"DV302/8","v":37.75},{"$f":"DV302*29.5735/1000","v":8.9311970000000009},2.3596293262879788,2.8648799999999999,null,null,302.4316436040134]
[null,null,null,null,null,null,null,null,null,null,null,null,null,null,null,null,null,null,null,null,null,null,null,null,null,null,null,null,null,null,null,null,null,null,null,null,null,null,null,null,null,null,null,null,null,null,null,null,null,null,null,null,null,null,null,null,null,null,null,null,null,null,null,null,null,null,null,null,null,null,null,null,null,null,null,null,null,null,null,null,null,null,null,null,null,null,null,null,null,null,null,null,null,null,null,null,null,null,null,null,null,null,null,null,null,null,null,null,null,null,null,null,null,null,null,null,null,null,null,null,null,null,null,null,null,304,38,8.9903439999999986,2.3752560105680312,2.8752599999999999,null,null,303.78329159764473]
[null,null,null,null,null,null,null,null,null,null,null,null,null,null,null,null,null,null,null,null,null,null,null,null,null,null,null,null,null,null,null,null,null,null,null,null,null,null,null,null,null,null,null,null,null,null,null,null,null,null,null,null,null,null,null,null,null,null,null,null,null,null,null,null,null,null,null,null,null,null,null,null,null,null,null,null,null,null,null,null,null,null,null,null,null,null,null,null,null,null,null,null,null,null,null,null,null,null,null,null,null,null,null,null,null,null,null,null,null,null,null,null,null,null,null,null,null,null,null,null,null,null,null,null,null,306,38.25,9.0494909999999997,2.3908826948480844,2.8988099999999997,null,null,306.85728711594709]
[null,null,null,null,null,null,null,null,null,null,null,null,null,null,null,null,null,null,null,null,null,null,null,null,null,null,null,null,null,null,null,null,null,null,null,null,null,null,null,null,null,null,null,null,null,null,null,null,null,null,null,null,null,null,null,null,null,null,null,null,null,null,null,null,null,null,null,null,null,null,null,null,null,null,null,null,null,null,null,null,null,null,null,null,null,null,null,null,null,null,null,null,null,null,null,null,null,null,null,null,null,null,null,null,null,null,null,null,null,null,null,null,null,null,null,null,null,null,null,null,null,null,null,null,null,308,38.5,9.1086379999999991,2.4065093791281371,2.9091999999999998,null,null,308.21676368766401]
[null,null,null,null,null,null,null,null,null,null,null,null,null,null,null,null,null,null,null,null,null,null,null,null,null,null,null,null,null,null,null,null,null,null,null,null,null,null,null,null,null,null,null,null,null,null,null,null,null,null,null,null,null,null,null,null,null,null,null,null,null,null,null,null,null,null,null,null,null,null,null,null,null,null,null,null,null,null,null,null,null,null,null,null,null,null,null,null,null,null,null,null,null,null,null,null,null,null,null,null,null,null,null,null,null,null,null,null,null,null,null,null,null,null,null,null,null,null,null,null,null,null,null,null,null,310,38.75,9.1677850000000003,2.4221360634081903,2.9195899999999999,null,null,309.5782384743423]
[null,null,null,null,null,null,null,null,null,null,null,null,null,null,null,null,null,null,null,null,null,null,null,null,null,null,null,null,null,null,null,null,null,null,null,null,null,null,null,null,null,null,null,null,null,null,null,null,null,null,null,null,null,null,null,null,null,null,null,null,null,null,null,null,null,null,null,null,null,null,null,null,null,null,null,null,null,null,null,null,null,null,null,null,null,null,null,null,null,null,null,null,null,null,null,null,null,null,null,null,null,null,null,null,null,null,null,null,null,null,null,null,null,null,null,null,null,null,null,null,null,null,null,null,null,312,39,9.2269319999999997,2.4377627476882431,2.9403699999999997,null,null,312.30718269258318]
[null,null,null,null,null,null,null,null,null,null,null,null,null,null,null,null,null,null,null,null,null,null,null,null,null,null,null,null,null,null,null,null,null,null,null,null,null,null,null,null,null,null,null,null,null,null,null,null,null,null,null,null,null,null,null,null,null,null,null,null,null,null,null,null,null,null,null,null,null,null,null,null,null,null,null,null,null,null,null,null,null,null,null,null,null,null,null,null,null,null,null,null,null,null,null,null,null,null,null,null,null,null,null,null,null,null,null,null,null,null,null,null,null,null,null,null,null,null,null,null,null,null,null,null,null,314,39.25,9.2860789999999991,2.4533894319682954,2.9507599999999998,null,null,313.67465212414572]
[null,null,null,null,null,null,null,null,null,null,null,null,null,null,null,null,null,null,null,null,null,null,null,null,null,null,null,null,null,null,null,null,null,null,null,null,null,null,null,null,null,null,null,null,null,null,null,null,null,null,null,null,null,null,null,null,null,null,null,null,null,null,null,null,null,null,null,null,null,null,null,null,null,null,null,null,null,null,null,null,null,null,null,null,null,null,null,null,null,null,null,null,null,null,null,null,null,null,null,null,null,null,null,null,null,null,null,null,null,null,null,null,null,null,null,null,null,null,null,null,null,null,null,null,null,316,39.5,9.3452260000000003,2.4690161162483486,2.9744000000000002,null,null,316.79345246233601]
[null,null,null,null,null,null,null,null,null,null,null,null,null,null,null,null,null,null,null,null,null,null,null,null,null,null,null,null,null,null,null,null,null,null,null,null,null,null,null,null,null,null,null,null,null,null,null,null,null,null,null,null,null,null,null,null,null,null,null,null,null,null,null,null,null,null,null,null,null,null,null,null,null,null,null,null,null,null,null,null,null,null,null,null,null,null,null,null,null,null,null,null,null,null,null,null,null,null,null,null,null,null,null,null,null,null,null,null,null,null,null,null,null,null,null,null,null,null,null,null,null,null,null,null,null,318,39.75,9.4043729999999996,2.4846428005284014,2.9848000000000003,null,null,318.16878997830406]
[null,null,null,null,null,null,null,null,null,null,null,null,null,null,null,null,null,null,null,null,null,null,null,null,null,null,null,null,null,null,null,null,null,null,null,null,null,null,null,null,null,null,null,null,null,null,null,null,null,null,null,null,null,null,null,null,null,null,null,null,null,null,null,null,null,null,null,null,null,null,null,null,null,null,null,null,null,null,null,null,null,null,null,null,null,null,null,null,null,null,null,null,null,null,null,null,null,null,null,null,null,null,null,null,null,null,null,null,null,null,null,null,null,null,null,null,null,null,null,null,null,null,null,null,null,320,40,9.4635200000000008,2.5002694848084546,2.9952000000000001,null,null,319.546129557504]
[null,null,null,null,null,null,null,null,null,null,null,null,null,null,null,null,null,null,null,null,null,null,null,null,null,null,null,null,null,null,null,null,null,null,null,null,null,null,null,null,null,null,null,null,null,null,null,null,null,null,null,null,null,null,null,null,null,null,null,null,null,null,null,null,null,null,null,null,null,null,null,null,null,null,null,null,null,null,null,null,null,null,null,null,null,null,null,null,null,null,null,null,null,null,null,null,null,null,null,null,null,null,null,null,null,null,null,null,null,null,null,null,null,null,null,null,null,null,null,null,null,null,null,null,null,322,40.25,9.5226670000000002,2.5158961690885073,3.016,null,null,322.30681490559999]
[null,null,null,null,null,null,null,null,null,null,null,null,null,null,null,null,null,null,null,null,null,null,null,null,null,null,null,null,null,null,null,null,null,null,null,null,null,null,null,null,null,null,null,null,null,null,null,null,null,null,null,null,null,null,null,null,null,null,null,null,null,null,null,null,null,null,null,null,null,null,null,null,null,null,null,null,null,null,null,null,null,null,null,null,null,null,null,null,null,null,null,null,null,null,null,null,null,null,null,null,null,null,null,null,null,null,null,null,null,null,null,null,null,null,null,null,null,null,null,null,null,null,null,null,null,324,40.5,9.5818139999999996,2.5315228533685601,3.0264000000000002,null,null,323.69016067449604]
[null,null,null,null,null,null,null,null,null,null,null,null,null,null,null,null,null,null,null,null,null,null,null,null,null,null,null,null,null,null,null,null,null,null,null,null,null,null,null,null,null,null,null,null,null,null,null,null,null,null,null,null,null,null,null,null,null,null,null,null,null,null,null,null,null,null,null,null,null,null,null,null,null,null,null,null,null,null,null,null,null,null,null,null,null,null,null,null,null,null,null,null,null,null,null,null,null,null,null,null,null,null,null,null,null,null,null,null,null,null,null,null,null,null,null,null,null,null,null,null,null,null,null,null,null,326,40.75,9.640960999999999,2.5471495376486124,3.0397199999999995,null,null,325.46483152335975]
[null,null,null,null,null,null,null,null,null,null,null,null,null,null,null,null,null,null,null,null,null,null,null,null,null,null,null,null,null,null,null,null,null,null,null,null,null,null,null,null,null,null,null,null,null,null,null,null,null,null,null,null,null,null,null,null,null,null,null,null,null,null,null,null,null,null,null,null,null,null,null,null,null,null,null,null,null,null,null,null,null,null,null,null,null,null,null,null,null,null,null,null,null,null,null,null,null,null,null,null,null,null,null,null,null,null,null,null,null,null,null,null,null,null,null,null,null,null,null,null,null,null,null,null,null,328,41,9.7001080000000002,2.5627762219286656,3.0605399999999996,null,null,328.24533245326711]
[null,null,null,null,null,null,null,null,null,null,null,null,null,null,null,null,null,null,null,null,null,null,null,null,null,null,null,null,null,null,null,null,null,null,null,null,null,null,null,null,null,null,null,null,null,null,null,null,null,null,null,null,null,null,null,null,null,null,null,null,null,null,null,null,null,null,null,null,null,null,null,null,null,null,null,null,null,null,null,null,null,null,null,null,null,null,null,null,null,null,null,null,null,null,null,null,null,null,null,null,null,null,null,null,null,null,null,null,null,null,null,null,null,null,null,null,null,null,null,null,null,null,null,null,null,330,41.25,9.7592549999999996,2.5784029062087184,3.0709499999999998,null,null,329.63859179102775]
[null,null,null,null,null,null,null,null,null,null,null,null,null,null,null,null,null,null,null,null,null,null,null,null,null,null,null,null,null,null,null,null,null,null,null,null,null,null,null,null,null,null,null,null,null,null,null,null,null,null,null,null,null,null,null,null,null,null,null,null,null,null,null,null,null,null,null,null,null,null,null,null,null,null,null,null,null,null,null,null,null,null,null,null,null,null,null,null,null,null,null,null,null,null,null,null,null,null,null,null,null,null,null,null,null,null,null,null,null,null,null,null,null,null,null,null,null,null,null,null,null,null,null,null,null,332,41.5,9.8184020000000007,2.5940295904887716,3.0917699999999999,null,null,332.43112821216278]
[null,null,null,null,null,null,null,null,null,null,null,null,null,null,null,null,null,null,null,null,null,null,null,null,null,null,null,null,null,null,null,null,null,null,null,null,null,null,null,null,null,null,null,null,null,null,null,null,null,null,null,null,null,null,null,null,null,null,null,null,null,null,null,null,null,null,null,null,null,null,null,null,null,null,null,null,null,null,null,null,null,null,null,null,null,null,null,null,null,null,null,null,null,null,null,null,null,null,null,null,null,null,null,null,null,null,null,null,null,null,null,null,null,null,null,null,null,null,null,null,null,null,null,null,null,334,41.75,9.8775489999999984,2.6096562747688239,3.1021799999999997,null,null,333.83040529553722]
[null,null,null,null,null,null,null,null,null,null,null,null,null,null,null,null,null,null,null,null,null,null,null,null,null,null,null,null,null,null,null,null,null,null,null,null,null,null,null,null,null,null,null,null,null,null,null,null,null,null,null,null,null,null,null,null,null,null,null,null,null,null,null,null,null,null,null,null,null,null,null,null,null,null,null,null,null,null,null,null,null,null,null,null,null,null,null,null,null,null,null,null,null,null,null,null,null,null,null,null,null,null,null,null,null,null,null,null,null,null,null,null,null,null,null,null,null,null,null,null,null,null,null,null,null,336,42,9.9366959999999995,2.6252829590488771,3.1155800000000005,null,null,335.63454096925574]
[null,null,null,null,null,null,null,null,null,null,null,null,null,null,null,null,null,null,null,null,null,null,null,null,null,null,null,null,null,null,null,null,null,null,null,null,null,null,null,null,null,null,null,null,null,null,null,null,null,null,null,null,null,null,null,null,null,null,null,null,null,null,null,null,null,null,null,null,null,null,null,null,null,null,null,null,null,null,null,null,null,null,null,null,null,null,null,null,null,null,null,null,null,null,null,null,null,null,null,null,null,null,null,null,null,null,null,null,null,null,null,null,null,null,null,null,null,null,null,null,null,null,null,null,null,338,42.25,9.9958429999999989,2.6409096433289294,3.1364199999999998,null,null,338.4469799368236]
[null,null,null,null,null,null,null,null,null,null,null,null,null,null,null,null,null,null,null,null,null,null,null,null,null,null,null,null,null,null,null,null,null,null,null,null,null,null,null,null,null,null,null,null,null,null,null,null,null,null,null,null,null,null,null,null,null,null,null,null,null,null,null,null,null,null,null,null,null,null,null,null,null,null,null,null,null,null,null,null,null,null,null,null,null,null,null,null,null,null,null,null,null,null,null,null,null,null,null,null,null,null,null,null,null,null,null,null,null,null,null,null,null,null,null,null,null,null,null,null,null,null,null,null,null,340,42.5,10.05499,2.6565363276089826,3.1468400000000001,null,null,339.85621407692656]
[null,null,null,null,null,null,null,null,null,null,null,null,null,null,null,null,null,null,null,null,null,null,null,null,null,null,null,null,null,null,null,null,null,null,null,null,null,null,null,null,null,null,null,null,null,null,null,null,null,null,null,null,null,null,null,null,null,null,null,null,null,null,null,null,null,null,null,null,null,null,null,null,null,null,null,null,null,null,null,null,null,null,null,null,null,null,null,null,null,null,null,null,null,null,null,null,null,null,null,null,null,null,null,null,null,null,null,null,null,null,null,null,null,null,null,null,null,null,null,null,null,null,null,null,null,342,42.75,10.114137000000001,2.6721630118890358,3.1676800000000003,null,null,342.68071166977029]
[null,null,null,null,null,null,null,null,null,null,null,null,null,null,null,null,null,null,null,null,null,null,null,null,null,null,null,null,null,null,null,null,null,null,null,null,null,null,null,null,null,null,null,null,null,null,null,null,null,null,null,null,null,null,null,null,null,null,null,null,null,null,null,null,null,null,null,null,null,null,null,null,null,null,null,null,null,null,null,null,null,null,null,null,null,null,null,null,null,null,null,null,null,null,null,null,null,null,null,null,null,null,null,null,null,null,null,null,null,null,null,null,null,null,null,null,null,null,null,null,null,null,null,null,null,344,43,10.173283999999999,2.6877896961690881,3.1781000000000001,null,null,344.09597512251105]
[null,null,null,null,null,null,null,null,null,null,null,null,null,null,null,null,null,null,null,null,null,null,null,null,null,null,null,null,null,null,null,null,null,null,null,null,null,null,null,null,null,null,null,null,null,null,null,null,null,null,null,null,null,null,null,null,null,null,null,null,null,null,null,null,null,null,null,null,null,null,null,null,null,null,null,null,null,null,null,null,null,null,null,null,null,null,null,null,null,null,null,null,null,null,null,null,null,null,null,null,null,null,null,null,null,null,null,null,null,null,null,null,null,null,null,null,null,null,null,null,null,null,null,null,null,346,43.25,10.232431,2.7034163804491413,3.1915799999999996,null,null,345.92983510447164]
[null,null,null,null,null,null,null,null,null,null,null,null,null,null,null,null,null,null,null,null,null,null,null,null,null,null,null,null,null,null,null,null,null,null,null,null,null,null,null,null,null,null,null,null,null,null,null,null,null,null,null,null,null,null,null,null,null,null,null,null,null,null,null,null,null,null,null,null,null,null,null,null,null,null,null,null,null,null,null,null,null,null,null,null,null,null,null,null,null,null,null,null,null,null,null,null,null,null,null,null,null,null,null,null,null,null,null,null,null,null,null,null,null,null,null,null,null,null,null,null,null,null,null,null,null,348,43.5,10.291577999999999,2.7190430647291941,3.2020099999999996,null,null,347.35107190792945]
[null,null,null,null,null,null,null,null,null,null,null,null,null,null,null,null,null,null,null,null,null,null,null,null,null,null,null,null,null,null,null,null,null,null,null,null,null,null,null,null,null,null,null,null,null,null,null,null,null,null,null,null,null,null,null,null,null,null,null,null,null,null,null,null,null,null,null,null,null,null,null,null,null,null,null,null,null,null,null,null,null,null,null,null,null,null,null,null,null,null,null,null,null,null,null,null,null,null,null,null,null,null,null,null,null,null,null,null,null,null,null,null,null,null,null,null,null,null,null,null,null,null,null,null,null,350,43.75,10.350725000000001,{"$f":"DX326/3.785","v":2.7346697490092473},3.2228699999999995,null,null,350.1995864056131]
[null,null,null,null,null,null,null,null,null,null,null,null,null,null,null,null,null,null,null,null,null,null,null,null,null,null,null,null,null,null,null,null,null,null,null,null,null,null,null,null,null,null,null,null,null,null,null,null,null,null,null,null,null,null,null,null,null,null,null,null,null,null,null,null,null,null,null,null,null,null,null,null,null,null,null,null,null,null,null,null,null,null,null,null,null,null,null,null,null,null,null,null,null,null,null,null,null,null,null,null,null,null,null,null,null,null,null,null,null,null,null,null,null,null,null,null,null,null,null,null,null,null,null,null,null,352,44,10.409872,2.7502964332892996,3.2332999999999998,null,null,351.626864099839]
[null,null,null,null,null,null,null,null,null,null,null,null,null,null,null,null,null,null,null,null,null,null,null,null,null,null,null,null,null,null,null,null,null,null,null,null,null,null,null,null,null,null,null,null,null,null,null,null,null,null,null,null,null,null,null,null,null,null,null,null,null,null,null,null,null,null,null,null,null,null,null,null,null,null,null,null,null,null,null,null,null,null,null,null,null,null,null,null,null,null,null,null,null,null,null,null,null,null,null,null,null,null,null,null,null,null,null,null,null,null,null,null,null,null,null,null,null,null,null,null,null,null,null,null,null,354,44.25,10.469018999999999,2.7659231175693524,3.2541599999999997,null,null,354.48746037905852]
[null,null,null,null,null,null,null,null,null,null,null,null,null,null,null,null,null,null,null,null,null,null,null,null,null,null,null,null,null,null,null,null,null,null,null,null,null,null,null,null,null,null,null,null,null,null,null,null,null,null,null,null,null,null,null,null,null,null,null,null,null,null,null,null,null,null,null,null,null,null,null,null,null,null,null,null,null,null,null,null,null,null,null,null,null,null,null,null,null,null,null,null,null,null,null,null,null,null,null,null,null,null,null,null,null,null,null,null,null,null,null,null,null,null,null,null,null,null,null,null,null,null,null,null,null,356,44.5,10.528165999999999,2.7815498018494051,3.2677200000000002,null,null,356.35130477459188]
[null,null,null,null,null,null,null,null,null,null,null,null,null,null,null,null,null,null,null,null,null,null,null,null,null,null,null,null,null,null,null,null,null,null,null,null,null,null,null,null,null,null,null,null,null,null,null,null,null,null,null,null,null,null,null,null,null,null,null,null,null,null,null,null,null,null,null,null,null,null,null,null,null,null,null,null,null,null,null,null,null,null,null,null,null,null,null,null,null,null,null,null,null,null,null,null,null,null,null,null,null,null,null,null,null,null,null,null,null,null,null,null,null,null,null,null,null,null,null,null,null,null,null,null,null,358,44.75,10.587313,2.7971764861294584,3.2781600000000002,null,null,357.78861897502657]
[null,null,null,null,null,null,null,null,null,null,null,null,null,null,null,null,null,null,null,null,null,null,null,null,null,null,null,null,null,null,null,null,null,null,null,null,null,null,null,null,null,null,null,null,null,null,null,null,null,null,null,null,null,null,null,null,null,null,null,null,null,null,null,null,null,null,null,null,null,null,null,null,null,null,null,null,null,null,null,null,null,null,null,null,null,null,null,null,null,null,null,null,null,null,null,null,null,null,null,null,null,null,null,null,null,null,null,null,null,null,null,null,null,null,null,null,null,null,null,null,null,null,null,null,null,360,45,10.646459999999999,2.8128031704095111,3.2886000000000002,null,null,359.22795066879604]
[null,null,null,null,null,null,null,null,null,null,null,null,null,null,null,null,null,null,null,null,null,null,null,null,null,null,null,null,null,null,null,null,null,null,null,null,null,null,null,null,null,null,null,null,null,null,null,null,null,null,null,null,null,null,null,null,null,null,null,null,null,null,null,null,null,null,null,null,null,null,null,null,null,null,null,null,null,null,null,null,null,null,null,null,null,null,null,null,null,null,null,null,null,null,null,null,null,null,null,null,null,null,null,null,null,null,null,null,null,null,null,null,null,null,null,null,null,null,null,null,null,null,null,null,null,362,45.25,10.705607000000001,2.8284298546895643,3.3094800000000002,null,null,362.11266653633908]
[null,null,null,null,null,null,null,null,null,null,null,null,null,null,null,null,null,null,null,null,null,null,null,null,null,null,null,null,null,null,null,null,null,null,null,null,null,null,null,null,null,null,null,null,null,null,null,null,null,null,null,null,null,null,null,null,null,null,null,null,null,null,null,null,null,null,null,null,null,null,null,null,null,null,null,null,null,null,null,null,null,null,null,null,null,null,null,null,null,null,null,null,null,null,null,null,null,null,null,null,null,null,null,null,null,null,null,null,null,null,null,null,null,null,null,null,null,null,null,null,null,null,null,null,null,364,45.5,10.764753999999998,2.8440565389696162,3.3199200000000002,null,null,363.55805071011264]
[null,null,null,null,null,null,null,null,null,null,null,null,null,null,null,null,null,null,null,null,null,null,null,null,null,null,null,null,null,null,null,null,null,null,null,null,null,null,null,null,null,null,null,null,null,null,null,null,null,null,null,null,null,null,null,null,null,null,null,null,null,null,null,null,null,null,null,null,null,null,null,null,null,null,null,null,null,null,null,null,null,null,null,null,null,null,null,null,null,null,null,null,null,null,null,null,null,null,null,null,null,null,null,null,null,null,null,null,null,null,null,null,null,null,null,null,null,null,null,null,null,null,null,null,null,366,45.75,10.823900999999999,2.8596832232496694,3.3303600000000002,null,null,365.00545237722099]
[null,null,null,null,null,null,null,null,null,null,null,null,null,null,null,null,null,null,null,null,null,null,null,null,null,null,null,null,null,null,null,null,null,null,null,null,null,null,null,null,null,null,null,null,null,null,null,null,null,null,null,null,null,null,null,null,null,null,null,null,null,null,null,null,null,null,null,null,null,null,null,null,null,null,null,null,null,null,null,null,null,null,null,null,null,null,null,null,null,null,null,null,null,null,null,null,null,null,null,null,null,null,null,null,null,null,null,null,null,null,null,null,null,null,null,null,null,null,null,null,null,null,null,null,null,368,46,10.883047999999999,2.8753099075297222,3.3544499999999999,null,null,368.35298878061775]
[null,null,null,null,null,null,null,null,null,null,null,null,null,null,null,null,null,null,null,null,null,null,null,null,null,null,null,null,null,null,null,null,null,null,null,null,null,null,null,null,null,null,null,null,null,null,null,null,null,null,null,null,null,null,null,null,null,null,null,null,null,null,null,null,null,null,null,null,null,null,null,null,null,null,null,null,null,null,null,null,null,null,null,null,null,null,null,null,null,null,null,null,null,null,null,null,null,null,null,null,null,null,null,null,null,null,null,null,null,null,null,null,null,null,null,null,null,null,null,null,null,null,null,null,null,370,46.25,10.942195,2.8909365918097754,3.3649,null,null,369.80845700775103]
[null,null,null,null,null,null,null,null,null,null,null,null,null,null,null,null,null,null,null,null,null,null,null,null,null,null,null,null,null,null,null,null,null,null,null,null,null,null,null,null,null,null,null,null,null,null,null,null,null,null,null,null,null,null,null,null,null,null,null,null,null,null,null,null,null,null,null,null,null,null,null,null,null,null,null,null,null,null,null,null,null,null,null,null,null,null,null,null,null,null,null,null,null,null,null,null,null,null,null,null,null,null,null,null,null,null,null,null,null,null,null,null,null,null,null,null,null,null,null,null,null,null,null,null,null,372,46.5,11.001342000000001,2.9065632760898286,3.3753499999999996,null,null,371.26594659499972]
[null,null,null,null,null,null,null,null,null,null,null,null,null,null,null,null,null,null,null,null,null,null,null,null,null,null,null,null,null,null,null,null,null,null,null,null,null,null,null,null,null,null,null,null,null,null,null,null,null,null,null,null,null,null,null,null,null,null,null,null,null,null,null,null,null,null,null,null,null,null,null,null,null,null,null,null,null,null,null,null,null,null,null,null,null,null,null,null,null,null,null,null,null,null,null,null,null,null,null,null,null,null,null,null,null,null,null,null,null,null,null,null,null,null,null,null,null,null,null,null,null,null,null,null,null,374,46.75,11.060489,2.9221899603698813,3.3962499999999998,null,null,374.18698984984371]
[null,null,null,null,null,null,null,null,null,null,null,null,null,null,null,null,null,null,null,null,null,null,null,null,null,null,null,null,null,null,null,null,null,null,null,null,null,null,null,null,null,null,null,null,null,null,null,null,null,null,null,null,null,null,null,null,null,null,null,null,null,null,null,null,null,null,null,null,null,null,null,null,null,null,null,null,null,null,null,null,null,null,null,null,null,null,null,null,null,null,null,null,null,null,null,null,null,null,null,null,null,null,null,null,null,null,null,null,null,null,null,null,null,null,null,null,null,null,null,null,null,null,null,null,null,376,47,11.119636,2.9378166446499336,3.4066999999999994,null,null,375.6505435174389]
[null,null,null,null,null,null,null,null,null,null,null,null,null,null,null,null,null,null,null,null,null,null,null,null,null,null,null,null,null,null,null,null,null,null,null,null,null,null,null,null,null,null,null,null,null,null,null,null,null,null,null,null,null,null,null,null,null,null,null,null,null,null,null,null,null,null,null,null,null,null,null,null,null,null,null,null,null,null,null,null,null,null,null,null,null,null,null,null,null,null,null,null,null,null,null,null,null,null,null,null,null,null,null,null,null,null,null,null,null,null,null,null,null,null,null,null,null,null,null,null,null,null,null,null,null,378,47.25,11.178782999999999,2.9534433289299864,3.42042,null,null,377.57513954387963]
[null,null,null,null,null,null,null,null,null,null,null,null,null,null,null,null,null,null,null,null,null,null,null,null,null,null,null,null,null,null,null,null,null,null,null,null,null,null,null,null,null,null,null,null,null,null,null,null,null,null,null,null,null,null,null,null,null,null,null,null,null,null,null,null,null,null,null,null,null,null,null,null,null,null,null,null,null,null,null,null,null,null,null,null,null,null,null,null,null,null,null,null,null,null,null,null,null,null,null,null,null,null,null,null,null,null,null,null,null,null,null,null,null,null,null,null,null,null,null,null,null,null,null,null,null,380,47.5,11.23793,2.9690700132100396,3.4308800000000002,null,null,379.04477442482948]
[null,null,null,null,null,null,null,null,null,null,null,null,null,null,null,null,null,null,null,null,null,null,null,null,null,null,null,null,null,null,null,null,null,null,null,null,null,null,null,null,null,null,null,null,null,null,null,null,null,null,null,null,null,null,null,null,null,null,null,null,null,null,null,null,null,null,null,null,null,null,null,null,null,null,null,null,null,null,null,null,null,null,null,null,null,null,null,null,null,null,null,null,null,null,null,null,null,null,null,null,null,null,null,null,null,null,null,null,null,null,null,null,null,null,null,null,null,null,null,null,null,null,null,null,null,382,47.75,11.297077,2.9846966974900924,3.4518,null,null,381.99011987852401]
[null,null,null,null,null,null,null,null,null,null,null,null,null,null,null,null,null,null,null,null,null,null,null,null,null,null,null,null,null,null,null,null,null,null,null,null,null,null,null,null,null,null,null,null,null,null,null,null,null,null,null,null,null,null,null,null,null,null,null,null,null,null,null,null,null,null,null,null,null,null,null,null,null,null,null,null,null,null,null,null,null,null,null,null,null,null,null,null,null,null,null,null,null,null,null,null,null,null,null,null,null,null,null,null,null,null,null,null,null,null,null,null,null,null,null,null,null,null,null,null,null,null,null,null,null,384,48,11.356224000000001,3.0003233817701456,3.4622600000000001,null,null,383.46583045126874]

{"sheet":"Stock_Solution","index":4,"n_rows":70,"n_cols":25,"rows_kept":70,"cut":false,"hidden":false,"merged":[]}
[null,{"$f":"'Main Menu'!B1","v":" Copyright © 1999-2023, Schott, all rights reserved.  (707/576-2732)"}]
[null,"Stock Solution Preparation for Jar Testing"]
[]
[null,null,"1 Liter Jar Testing",null,null,null,null,null,null,null,"1.5 Liter Jar Testing",null,null,null,null,null,null,null,"2 Liter Jar Testing"]
[]
[null,null,"1 mL = 1 mg/L dose",null,null,null,"1 mL = 10 mg/L dose",null,null,null,"1 mL = 1 mg/L dose",null,null,null,"1 mL = 10 mg/L dose",null,null,null,"1 mL = 1 mg/L dose",null,null,null,"1 mL = 10 mg/L dose"]
[null,null,"as product (100%)",null,null,null,"as product (100%)",null,null,null,"as product (100%)",null,null,null,"as product (100%)",null,null,null,"as product (100%)",null,null,null,"as product (100%)"]
[null,null,"0.1% Stock Solution",null,null,null,"1% Stock Solution",null,null,null,"0.15% Stock Solution",null,null,null,"1.5% Stock Solution",null,null,null,"0.2% Stock Solution",null,null,null,"2% Stock Solution"]
[null,null,"200 mL","250 mL","500 mL",null,"200 mL","250 mL","500 mL",null,"200 mL","250 mL","500 mL",null,"200 mL","250 mL","500 mL",null,"200 mL","250 mL","500 mL",null,"200 mL","250 mL","500 mL"]
[null,"SG","mL","mL","mL","SG","mL","mL","mL","SG","mL","mL","mL","SG","mL","mL","mL","SG","mL","mL","mL","SG","mL","mL","mL"]
[null,1.1000000000000001,0.182,{"$f":"H11/10","v":0.22749999999999998},0.45499999999999996,1.1000000000000001,1.82,{"$f":"I11/2","v":2.2749999999999999},4.55,1.1000000000000001,0.27299999999999996,{"$f":"D11*1.5","v":0.34124999999999994},0.68249999999999988,1.1000000000000001,2.7299999999999995,{"$f":"H11*1.5","v":3.4124999999999996},6.8249999999999993,1.1000000000000001,0.36399999999999999,{"$f":"H11*2/10","v":0.45499999999999996},0.90999999999999992,1.1000000000000001,3.64,{"$f":"T11*10","v":4.55},9.1]
[null,1.1100000000000001,0.18,{"$f":"H12/10","v":0.22500000000000001},0.45,1.1100000000000001,1.8,{"$f":"I12/2","v":2.25},4.5,1.1100000000000001,0.27,{"$f":"D12*1.5","v":0.33750000000000002},0.67500000000000004,1.1100000000000001,2.7,{"$f":"H12*1.5","v":3.375},6.75,1.1100000000000001,0.36,{"$f":"H12*2/10","v":0.45},0.9,1.1100000000000001,3.6,{"$f":"T12*10","v":4.5},9]
[null,1.1200000000000001,0.17899999999999999,{"$f":"H13/10","v":0.22374999999999998},0.44749999999999995,1.1200000000000001,1.79,{"$f":"I13/2","v":2.2374999999999998},4.4749999999999996,1.1200000000000001,0.26849999999999996,{"$f":"D13*1.5","v":0.33562499999999995},0.6712499999999999,1.1200000000000001,2.6849999999999996,{"$f":"H13*1.5","v":3.3562499999999997},6.7124999999999995,1.1200000000000001,0.35799999999999998,{"$f":"H13*2/10","v":0.44749999999999995},0.89499999999999991,1.1200000000000001,3.58,{"$f":"T13*10","v":4.4749999999999996},8.9499999999999993]
[null,1.1299999999999999,0.17699999999999999,0.22125,0.4425,1.1299999999999999,1.77,2.2124999999999999,4.4249999999999998,1.1299999999999999,0.26549999999999996,0.33187500000000003,0.66374999999999995,1.1299999999999999,2.6549999999999998,3.3187499999999996,6.6374999999999993,1.1299999999999999,0.35399999999999998,0.4425,0.88500000000000001,1.1299999999999999,3.54,4.4249999999999998,8.85]
[null,1.1399999999999999,0.17599999999999999,0.22000000000000003,0.44000000000000006,1.1399999999999999,1.76,2.2000000000000002,4.4000000000000004,1.1399999999999999,0.26400000000000001,0.33000000000000007,0.66,1.1399999999999999,2.64,3.3000000000000003,6.6000000000000005,1.1399999999999999,0.35199999999999998,0.44000000000000006,0.88000000000000012,1.1399999999999999,3.52,4.4000000000000004,8.8000000000000007]
[null,1.1499999999999999,0.17399999999999999,0.21749999999999997,0.43499999999999994,1.1499999999999999,1.74,2.1749999999999998,4.3499999999999996,1.1499999999999999,0.26100000000000001,0.32624999999999993,0.65249999999999997,1.1499999999999999,2.61,3.2624999999999997,6.5249999999999995,1.1499999999999999,0.34799999999999998,0.43499999999999994,0.86999999999999988,1.1499999999999999,3.48,4.3499999999999996,8.6999999999999993]
[null,1.1599999999999999,0.17299999999999999,0.21625,0.4325,1.1599999999999999,1.73,2.1625000000000001,4.3250000000000002,1.1599999999999999,0.25950000000000001,0.32437499999999997,0.64875000000000005,1.1599999999999999,2.5950000000000002,3.2437500000000004,6.4875000000000007,1.1599999999999999,0.34599999999999997,0.4325,0.86499999999999999,1.1599999999999999,3.46,4.3250000000000002,8.65]
[null,1.17,0.17099999999999999,0.21375000000000002,0.42750000000000005,1.17,1.71,2.1375000000000002,4.2750000000000004,1.17,0.25650000000000006,0.32062500000000005,0.6412500000000001,1.17,2.5650000000000004,3.2062500000000003,6.4125000000000005,1.17,0.34199999999999997,0.42750000000000005,0.85500000000000009,1.17,3.42,4.2750000000000004,8.5500000000000007]
[null,1.18,0.16999999999999998,0.21249999999999999,0.42499999999999999,1.18,1.7,2.125,4.25,1.18,0.255,0.31874999999999998,0.63749999999999996,1.18,2.5499999999999998,3.1875,6.375,1.18,0.33999999999999997,0.42499999999999999,0.85,1.18,3.4,4.25,8.5]
[null,1.19,0.16799999999999998,0.21000000000000002,0.42000000000000004,1.19,1.68,2.1,4.2,1.19,0.25200000000000006,0.31500000000000006,0.63000000000000012,1.19,2.5200000000000005,3.1500000000000004,6.3000000000000007,1.19,0.33599999999999997,0.42000000000000004,0.84000000000000008,1.19,3.36,4.2,8.4]
[null,1.2,0.16699999999999998,0.20874999999999999,0.41749999999999998,1.2,1.67,2.0874999999999999,4.1749999999999998,1.2,0.2505,0.31312499999999999,0.62624999999999997,1.2,2.5049999999999999,3.1312499999999996,6.2624999999999993,1.2,0.33399999999999996,0.41749999999999998,0.83499999999999996,1.2,3.34,4.1749999999999998,8.35]
[null,1.21,0.16599999999999998,{"$f":"H22/10","v":0.20749999999999996},0.41499999999999992,1.21,1.66,{"$f":"I22/2","v":2.0749999999999997},4.1499999999999995,1.21,0.24899999999999997,{"$f":"D22*1.5","v":0.31124999999999992},0.62249999999999994,1.21,2.4899999999999998,{"$f":"H22*1.5","v":3.1124999999999998},6.2249999999999996,1.21,0.33199999999999996,{"$f":"H22*2/10","v":0.41499999999999992},0.82999999999999985,1.21,3.32,{"$f":"T22*10","v":4.1499999999999995},8.2999999999999989]
[null,1.22,0.16399999999999998,0.20499999999999999,0.41,1.22,1.64,2.0499999999999998,4.0999999999999996,1.22,0.246,0.3075,0.61499999999999999,1.22,2.46,3.0749999999999997,6.1499999999999995,1.22,0.32799999999999996,0.41,0.82,1.22,3.28,4.0999999999999996,8.1999999999999993]
[null,1.23,0.16299999999999998,0.20374999999999996,0.40749999999999992,1.23,1.63,2.0374999999999996,4.0749999999999993,1.23,0.24449999999999994,0.30562499999999992,0.61124999999999985,1.23,2.4449999999999994,3.0562499999999995,6.1124999999999989,1.23,0.32599999999999996,0.40749999999999992,0.81499999999999984,1.23,3.26,4.0749999999999993,8.1499999999999986]
[null,1.24,0.16200000000000001,0.20250000000000004,0.40500000000000008,1.24,1.62,2.0250000000000004,4.0500000000000007,1.24,0.24300000000000005,0.30375000000000008,0.60750000000000015,1.24,2.4300000000000006,3.0375000000000005,6.0750000000000011,1.24,0.32400000000000001,0.40500000000000008,0.81000000000000016,1.24,3.24,4.0500000000000007,8.1000000000000014]
[null,1.25,0.16,0.2,0.4,1.25,1.6,2,4,1.25,0.24,0.30000000000000004,0.6,1.25,2.4,3,6,1.25,0.32,0.4,0.8,1.25,3.2,4,8]
[null,1.26,0.159,0.19875000000000001,0.39750000000000002,1.26,1.59,1.9875,3.9750000000000001,1.26,0.23850000000000002,0.29812500000000003,0.59625000000000006,1.26,2.3850000000000002,2.9812500000000002,5.9625000000000004,1.26,0.318,0.39750000000000002,0.79500000000000004,1.26,3.18,3.9750000000000001,7.95]
[null,1.27,0.158,0.19750000000000001,0.39500000000000002,1.27,1.58,1.9750000000000001,3.95,1.27,0.23700000000000002,0.29625000000000001,0.59250000000000003,1.27,2.37,2.9625000000000004,5.9250000000000007,1.27,0.316,0.39500000000000002,0.79,1.27,3.16,3.95,7.9]
[null,1.28,0.157,0.19625000000000001,0.39250000000000002,1.28,1.57,1.9625000000000001,3.9250000000000003,1.28,0.23549999999999999,0.294375,0.58875,1.28,2.355,2.9437500000000001,5.8875000000000002,1.28,0.314,0.39250000000000002,0.78500000000000003,1.28,3.14,3.9250000000000003,7.8500000000000005]
[null,1.29,0.155,0.19375000000000001,0.38750000000000001,1.29,1.55,1.9375,3.875,1.29,0.23250000000000001,0.29062500000000002,0.58125000000000004,1.29,2.3250000000000002,2.90625,5.8125,1.29,0.31,0.38750000000000001,0.77500000000000002,1.29,3.1,3.875,7.75]
[null,1.3,0.154,0.1925,0.38500000000000001,1.3,1.54,1.925,3.85,1.3,0.23100000000000001,0.28875000000000001,0.57750000000000001,1.3,2.31,2.8875000000000002,5.7750000000000004,1.3,0.308,0.38500000000000001,0.77,1.3,3.08,3.85,7.7]
[null,1.31,0.153,{"$f":"H32/10","v":0.19125},0.38250000000000001,1.31,1.53,{"$f":"I32/2","v":1.9125000000000001},3.8250000000000002,1.31,0.22950000000000004,{"$f":"D32*1.5","v":0.28687499999999999},0.57375000000000009,1.31,2.2950000000000004,{"$f":"H32*1.5","v":2.8687500000000004},5.7375000000000007,1.31,0.30599999999999999,{"$f":"H32*2/10","v":0.38250000000000001},0.76500000000000001,1.31,3.06,{"$f":"T32*10","v":3.8250000000000002},7.65]
[null,1.32,0.152,0.19,0.38,1.32,1.52,1.9,3.8,1.32,0.22799999999999998,0.28500000000000003,0.56999999999999995,1.32,2.2799999999999998,2.8499999999999996,5.6999999999999993,1.32,0.30399999999999999,0.38,0.76,1.32,3.04,3.8,7.6]
[null,1.33,0.151,0.18875,0.3775,1.33,1.51,1.8875,3.7749999999999999,1.33,0.22649999999999998,0.28312500000000002,0.56624999999999992,1.33,2.2649999999999997,2.8312499999999998,5.6624999999999996,1.33,0.30199999999999999,0.3775,0.755,1.33,3.02,3.7749999999999999,7.55]
[null,1.34,0.15,0.1875,0.375,1.34,1.5,1.875,3.75,1.34,0.22500000000000001,0.28125,0.5625,1.34,2.25,2.8125,5.625,1.34,0.3,0.375,0.75,1.34,3,3.75,7.5]
[null,1.35,0.14899999999999999,0.18625,0.3725,1.35,1.49,1.8625,3.7250000000000001,1.35,0.22350000000000003,0.27937499999999998,0.55875000000000008,1.35,2.2350000000000003,2.7937500000000002,5.5875000000000004,1.35,0.29799999999999999,0.3725,0.745,1.35,2.98,3.7250000000000001,7.45]
[null,1.36,0.14699999999999999,0.18375,0.36749999999999999,1.36,1.47,1.8374999999999999,3.6749999999999998,1.36,0.22049999999999997,0.27562500000000001,0.55124999999999991,1.36,2.2049999999999996,2.7562499999999996,5.5124999999999993,1.36,0.29399999999999998,0.36749999999999999,0.73499999999999999,1.36,2.94,3.6749999999999998,7.35]
[null,1.37,0.14599999999999999,0.1825,0.36499999999999999,1.37,1.46,1.825,3.65,1.37,0.219,0.27374999999999999,0.54749999999999999,1.37,2.19,2.7374999999999998,5.4749999999999996,1.37,0.29199999999999998,0.36499999999999999,0.73,1.37,2.92,3.65,7.3]
[null,1.38,0.14499999999999999,0.18124999999999999,0.36249999999999999,1.38,1.45,1.8125,3.625,1.38,0.21749999999999997,0.27187499999999998,0.54374999999999996,1.38,2.1749999999999998,2.71875,5.4375,1.38,0.28999999999999998,0.36249999999999999,0.72499999999999998,1.38,2.9,3.625,7.25]
[null,1.39,0.14399999999999999,0.18,0.36,1.39,1.44,1.7999999999999998,3.5999999999999996,1.39,0.21599999999999997,0.27,0.53999999999999992,1.39,2.1599999999999997,2.6999999999999997,5.3999999999999995,1.39,0.28799999999999998,0.36,0.72,1.39,2.88,3.5999999999999996,7.1999999999999993]
[null,1.4,0.14299999999999999,0.17874999999999999,0.35749999999999998,1.4,1.43,1.7874999999999999,3.5749999999999997,1.4,0.2145,0.268125,0.53625,1.4,2.145,2.6812499999999999,5.3624999999999998,1.4,0.28599999999999998,0.35749999999999998,0.71499999999999997,1.4,2.86,3.5749999999999997,7.1499999999999995]
[null,1.41,0.14199999999999999,{"$f":"H42/10","v":0.17749999999999999},0.35499999999999998,1.41,1.42,{"$f":"I42/2","v":1.7749999999999999},3.55,1.41,0.21299999999999999,{"$f":"D42*1.5","v":0.26624999999999999},0.53249999999999997,1.41,2.13,{"$f":"H42*1.5","v":2.6624999999999996},5.3249999999999993,1.41,0.28399999999999997,{"$f":"H42*2/10","v":0.35499999999999998},0.71,1.41,2.84,{"$f":"T42*10","v":3.55},7.1]
[null,1.42,0.14099999999999999,0.17624999999999999,0.35249999999999998,1.42,1.41,1.7625,3.5249999999999999,1.42,0.21149999999999997,0.26437499999999997,0.52874999999999994,1.42,2.1149999999999998,2.6437499999999998,5.2874999999999996,1.42,0.28199999999999997,0.35249999999999998,0.70499999999999996,1.42,2.82,3.5249999999999999,7.05]
[null,1.43,0.13999999999999999,0.17499999999999999,0.35,1.43,1.4,1.75,3.5,1.43,0.21000000000000002,0.26249999999999996,0.52500000000000002,1.43,2.1,2.625,5.25,1.43,0.27999999999999997,0.35,0.7,1.43,2.8,3.5,7]
[null,1.44,0.13899999999999998,0.17374999999999999,0.34749999999999998,1.44,1.39,1.7374999999999998,3.4749999999999996,1.44,0.20849999999999999,0.260625,0.52124999999999999,1.44,2.085,2.6062499999999997,5.2124999999999995,1.44,0.27799999999999997,0.34749999999999998,0.69499999999999995,1.44,2.78,3.4749999999999996,6.9499999999999993]
[null,1.45,0.13799999999999998,0.17249999999999999,0.34499999999999997,1.45,1.38,1.7249999999999999,3.4499999999999997,1.45,0.20699999999999999,0.25874999999999998,0.51749999999999996,1.45,2.0699999999999998,2.5874999999999999,5.1749999999999998,1.45,0.27599999999999997,0.34499999999999997,0.69,1.45,2.76,3.4499999999999997,6.8999999999999995]
[null,1.46,0.13700000000000001,0.17125000000000001,0.34250000000000003,1.46,1.37,1.7125000000000001,3.4250000000000003,1.46,0.20550000000000002,0.25687500000000002,0.51375000000000004,1.46,2.0550000000000002,2.5687500000000001,5.1375000000000002,1.46,0.27400000000000002,0.34250000000000003,0.68500000000000005,1.46,2.74,3.4250000000000003,6.8500000000000005]
[null,1.47,0.13700000000000001,0.17125000000000001,0.34250000000000003,1.47,1.37,1.7125000000000001,3.4250000000000003,1.47,0.20550000000000002,0.25687500000000002,0.51375000000000004,1.47,2.0550000000000002,2.5687500000000001,5.1375000000000002,1.47,0.27400000000000002,0.34250000000000003,0.68500000000000005,1.47,2.74,3.4250000000000003,6.8500000000000005]
[null,1.48,0.13600000000000001,0.17,0.34,1.48,1.36,1.7000000000000002,3.4000000000000004,1.48,0.20400000000000001,0.255,0.51,1.48,2.04,2.5500000000000003,5.1000000000000005,1.48,0.27200000000000002,0.34,0.68,1.48,2.72,3.4000000000000004,6.8000000000000007]
[null,1.49,0.13500000000000001,0.16875000000000001,0.33750000000000002,1.49,1.35,1.6875,3.375,1.49,0.20249999999999999,0.25312500000000004,0.50624999999999998,1.49,2.0249999999999999,2.53125,5.0625,1.49,0.27,0.33750000000000002,0.67500000000000004,1.49,2.7,3.375,6.75]
[null,1.5,0.13400000000000001,0.16750000000000001,0.33500000000000002,1.5,1.34,1.675,3.35,1.5,0.20100000000000001,0.25125000000000003,0.50250000000000006,1.5,2.0100000000000002,2.5125000000000002,5.0250000000000004,1.5,0.26800000000000002,0.33500000000000002,0.67,1.5,2.68,3.35,6.7]
[]
[null,null,"1 Liter Jar Testing",null,null,null,null,null,null,null,"1.5 Liter Jar Testing",null,null,null,null,null,null,null,"2 Liter Jar Testing"]
[null,null,"48.24% Aluminum Sulfate",null,null,null,null,null,null,null,"48.24% Aluminum Sulfate",null,null,null,null,null,null,null,"48.24% Aluminum Sulfate"]
[null,null,"1 mL = 1 mg/L dose",null,null,null,"1 mL = 10 mg/L dose",null,null,null,"1 mL = 1 mg/L dose",null,null,null,"1 mL = 10 mg/L dose",null,null,null,"1 mL = 1 mg/L dose",null,null,null,"1 mL = 10 mg/L dose"]
[null,null,"as Aluminum Sulfate",null,null,null,"as Aluminum Sulfate",null,null,null,"as Aluminum Sulfate",null,null,null,"as Aluminum Sulfate",null,null,null,"as Aluminum Sulfate",null,null,null,"as Aluminum Sulfate"]
[null,null,"0.1% Stock Solution",null,null,null,"1% Stock Solution",null,null,null,"0.15% Stock Solution",null,null,null,"1.5% Stock Solution",null,null,null,"0.2% Stock Solution",null,null,null,"2% Stock Solution"]
[null,null,"200 mL","250 mL","500 mL",null,"200 mL","250 mL","500 mL",null,"200 mL","250 mL","500 mL",null,"200 mL","250 mL","500 mL",null,"200 mL","250 mL","500 mL",null,"200 mL","250 mL","500 mL"]
[null,"SG","mL","mL","mL","SG","mL","mL","mL","SG","mL","mL","mL","SG","mL","mL","mL","SG","mL","mL","mL","SG","mL","mL","mL"]
[null,1.335,0.31,{"$f":"E60/2","v":0.39},0.78,1.335,3.12,{"$f":"I60/2","v":3.9},7.8,1.335,0.47,{"$f":"M60/2","v":0.58499999999999996},1.17,1.335,4.6900000000000004,{"$f":"Q60/2","v":5.87},11.74,1.335,0.62,{"$f":"U60/2","v":0.77500000000000002},1.55,1.335,6.28,{"$f":"Y60/2","v":7.8449999999999998},15.69]
[]
[]
[null,null,"1 Liter Jar Testing",null,null,null,null,null,null,null,"1.5 Liter Jar Testing",null,null,null,null,null,null,null,"2 Liter Jar Testing"]
[null,null,"12.5% Sodium Hypochloride",null,null,null,null,null,null,null,"12.5% Sodium Hypochloride",null,null,null,null,null,null,null,"12.5% Sodium Hypochloride"]
[null,null,"1 mL = 1 mg/L dose",null,null,null,"1 mL = 10 mg/L dose",null,null,null,"1 mL = 1 mg/L dose",null,null,null,"1 mL = 10 mg/L dose",null,null,null,"1 mL = 1 mg/L dose",null,null,null,"1 mL = 10 mg/L dose"]
[null,null,"as Cl2",null,null,null,"as Cl2",null,null,null,"as Cl2",null,null,null,"as Cl2",null,null,null,"as Cl2",null,null,null,"as Cl2"]
[null,null,"0.1% Stock Solution",null,null,null,"1% Stock Solution",null,null,null,"0.15% Stock Solution",null,null,null,"1.5% Stock Solution",null,null,null,"0.2% Stock Solution",null,null,null,"2% Stock Solution"]
[null,null,"200 mL","250 mL","500 mL",null,"200 mL","250 mL","500 mL",null,"200 mL","250 mL","500 mL",null,"200 mL","250 mL","500 mL",null,"200 mL","250 mL","500 mL",null,"200 mL","250 mL","500 mL"]
[null,"SG","mL","mL","mL","SG","mL","mL","mL","SG","mL","mL","mL","SG","mL","mL","mL","SG","mL","mL","mL","SG","mL","mL","mL"]
[null,1.2,{"$f":"1.34*1/0.952498","v":1.4068271009492934},{"$f":"1.67*1/0.952498","v":1.7532845213323283},{"$f":"3.34*1/0.952498","v":3.5065690426646565},1.2,{"$f":"13.52*1/0.952498","v":14.194255525995855},{"$f":"16.9*1/0.952498","v":17.742819407494817},{"$f":"33.79*1/0.952498","v":35.475140105281064},1.2,{"$f":"2*1/0.952498","v":2.0997419417153633},{"$f":"2.51*1/0.952498","v":2.6351761368527806},{"$f":"5.01*1/0.952498","v":5.2598535639969848},1.2,21.45,26.81,{"$f":"51.02*1/0.952498","v":53.564416933158924},1.2,{"$f":"2.67*1/0.952498","v":2.8031554921900099},{"$f":"3.34*1/0.952498","v":3.5065690426646565},{"$f":"6.68*1/0.952498","v":7.013138085329313},1.2,{"$f":"27.4*1/0.952498","v":28.766464601500477},{"$f":"34.25*1/0.952498","v":35.958080751875599},72]

{"sheet":"Jar_Testing","index":5,"n_rows":26,"n_cols":28,"rows_kept":26,"cut":false,"hidden":false,"merged":[]}
[null,{"$f":"'ChemDose(FR)'!B1","v":" Copyright © 1999-2023, Schott, all rights reserved.  (707/576-2732)"}]
[]
[null,"Jar Testing Stock Solution Preparation Program"]
[]
[null,"Jar Test Stock Solution Preparation (1)",null,null,null,"Jar Test Dose Results (1)"]
[null,"1. Enter Product Characteristics",null,null,null,"1. Stock Solution Characteristics"]
[null,"Name of Liquid Chemical:","AdvFloc",null,null,"Specific Gravity of Stock Solution:",null,null,{"$f":"((TVol1*_SG1)+1*(1000*_StockSol_L1-TVol1))/(_StockSol_L1*1000)","v":1.0067116},{"$f":"\"1 mL = \"&ROUND(JarT1Perc/100*1000*JarT1SG,2)&\" mg/L\"","v":"1 mL = 40.27 mg/L"}]
[null,"Specific gravity of liquid chemical:",1.2,null,null,"% Strength of Stock Solution:",null,null,{"$f":"(_PercentSol1*TVol1*_SG1)/(_StockSol_L1*1000*JarT1SG)","v":4.0001128426453132},{"$f":"JarT1Perc*1000000/100","v":40001.128426453128},{"$f":"\"mg/L, \"&C7","v":"mg/L, AdvFloc"}]
[null,"Chemical solution strength:",100,"%",null,"2. Enter in blue the Jar volume and desired dose for each jar"]
[null,"2. Preparation of Stock Solution",null,null,null,"Jar Vol (mL)",1000,{"$f":"JarT1JarVol/1000&\" Liter\"","v":"1 Liter"},null,null,null,null,null,null,null,null,null,null,null,null,null,null,null,null,null,null,{"$f":"IF(AB10=\"L\",C11,C11/1000)","v":0.1},{"$f":"D11","v":"mL"}]
[null,"Enter Volume of stock solution:",100,"mL",null,null,"Jar 1","Jar 2","Jar 3","Jar 4","Jar 5","Jar 6",null,null,null,null,null,null,null,null,null,null,null,null,null,null,{"$f":"Aliquot1(_SG1,_PercentSol1,_StockSol1,TargetPer1,D11)","v":3.3558000000000097}]
[null,"Enter Targeted % Stength of stock solution:",4,"%",null,null,"Dose","Dose","Dose","Dose","Dose","Dose",null,null,null,null,null,null,null,null,null,null,null,null,null,null,{"$f":"AA11","v":3.3558000000000097}]
[null,"3. Stock Solution Results",null,null,null,"Dose, mg/L",10,12,15,18,25,30]
[null,{"$f":"IF(TVol1>0.1,\"Add \"&ROUND(TVol1,2)&\" mL of product solution (Step 1) to \"&ROUND((_StockSol_L1*1000-TVol1),2)&\" \"&D11&\" of water (Step 2) to make a \"&TargetPer1&\" %, \"&_StockSol1&\" \"&D11&\" stock solution\", \"Add \"&ROUND(TVol1,3)&\" mL of product solution (Step 1) to \"&ROUND((_StockSol_L1*1000-TVol1),2)&\" \"&D11&\" of water (Step 2) to make a \"&TargetPer1&\" %, \"&_StockSol1&\" \"&D11&\" stock solution\")","v":"Add 3.36 mL of product solution (Step 1) to 96.64 mL of water (Step 2) to make a 4 %, 100 mL stock solution"},null,null,null,"Delivered \nVol (mL)",{"$f":"jar1ml($I$7,$I$8,$G$10,G13)","v":0.25000000000000006},{"$f":"jar2ml($I$7,$I$8,$G$10,H13)","v":0.3000000000000001},{"$f":"jar3ml($I$7,$I$8,$G$10,I13)","v":0.38000000000000017},{"$f":"jar4ml($I$7,$I$8,$G$10,J13)","v":0.45000000000000023},{"$f":"jar5ml($I$7,$I$8,$G$10,K13)","v":0.63000000000000034},{"$f":"jar6ml($I$7,$I$8,$G$10,L13)","v":0.75000000000000044}]
[]
[]
[null,"Jar Test Stock Solution Preparation (2)",null,null,null,"Jar Test Dose Results (2)"]
[null,"1. Enter Product Characteristics",null,null,null,"1. Stock Solution Characteristics"]
[null,"Name of Liquid Chemical:","PA 50",null,null,"Specific Gravity of Stock Solution:",null,null,{"$f":"((AA24*C20)+1*(1000*AA22-AA24))/(AA22*1000)","v":1.0002465825627478},{"$f":"\"1 mL = \"&ROUND(JarT2Perc/100*1000*JarT2SG,2)&\" mg/L\"","v":"1 mL = 1.89 mg/L"}]
[null,"Specific gravity of liquid chemical:",1.1499999999999999,null,null,"% Strength of Stock Solution:",null,null,{"$f":"($C$21*$AA$24*$C$20)/($AA$22*1000*$I$19)","v":0.18900002732879612},{"$f":"JarT2Perc*1000000/100","v":1890.0002732879611},{"$f":"\"mg/L, \"&C19","v":"mg/L, PA 50"}]
[null,"Chemical solution strength:",100,"%",null,"2. Enter in blue the Jar volume and desired dose for each jar"]
[null,"2. Preparation of Stock Solution",null,null,null,"Jar Vol (mL)",1000,{"$f":"JarT2JarVol/1000&\" Liter\"","v":"1 Liter"},null,null,null,null,null,null,null,null,null,null,null,null,null,null,null,null,null,null,{"$f":"IF(AB22=\"L\",C23,C23/1000)","v":3.7850000000000001},{"$f":"D23","v":"L"}]
[null,"Enter Volume of stock solution:",3.7850000000000001,"L",null,null,"Jar 1","Jar 2","Jar 3","Jar 4","Jar 5","Jar 6",null,null,null,null,null,null,null,null,null,null,null,null,null,null,{"$f":"Aliquot2(_SG2,_PercentSol2,_StockSol2,TargetPer2,D23)","v":6.2220999999999975}]
[null,"Enter Targeted % Stength of stock solution:",0.189,"%",null,null,"Dose","Dose","Dose","Dose","Dose","Dose",null,null,null,null,null,null,null,null,null,null,null,null,null,null,{"$f":"AA23","v":6.2220999999999975}]
[null,"3. Stock Solution Results",null,null,null,"Dose, mg/L",5,10,15,20,30,40]
[null,{"$f":"IF(Tvol2>0.1,\"Add \"&ROUND(Tvol2,2)&\" mL of product solution (Step 1) to \"&ROUND((_StockSol_L2*1000-Tvol2),2)&\" \"&D23&\" of water (Step 2) to make a \"&TargetPer2&\" %, \"&_StockSol2&\" \"&D23&\" stock solution\",\"Add \"&ROUND(Tvol2,3)&\" mL of product solution (Step 1) to \"&ROUND((_StockSol_L2*1000-Tvol2),2)&\" \"&D23&\" of water (Step 2) to make a \"&TargetPer2&\" %, \"&_StockSol2&\" \"&D23&\" stock solution\")","v":"Add 6.22 mL of product solution (Step 1) to 3778.78 L of water (Step 2) to make a 0.189 %, 3.785 L stock solution"},null,null,null,"Delivered \nVol (mL)",{"$f":"jar1ml1($I$19,$I$20,$G$22,G25)","v":2.6599999999999859},{"$f":"jar1ml2($I$19,$I$20,$G$22,H25)","v":5.3199999999999932},{"$f":"jar1ml3($I$19,$I$20,$G$22,I25)","v":7.9999999999999787},{"$f":"jar1ml4($I$19,$I$20,$G$22,J25)","v":10.699999999999985},{"$f":"jar1ml5($I$19,$I$20,$G$22,K25)","v":16.13000000000002},{"$f":"jar1ml6($I$19,$I$20,$G$22,L25)","v":21.620000000000097}]

{"sheet":"Contact","index":6,"n_rows":7,"n_cols":7,"rows_kept":7,"cut":false,"hidden":true,"merged":[]}
[]
[]
[null,"For questions and ",null,null,"Guy Schott, P.E."]
[null,"comments, you may",null,null,"707-322-2001",null,"cell"]
[null,"contact:",null,null,"707-576-2732",null,"work"]
[null,null,null,null,"gschott@schotteng.com"]
[null,null,null,null,"guy.schott@waterboards.ca.gov"]